{"text_format":"1","workbook":"xlsx","n_sheets":8,"sheets":["Sheet1","レンタカー","集計用","エラーチェック","補助","第1様式_A","第1様式_B","レンタ"],"not_rendered":{"charts":0,"images":2,"macros":1,"external_links":0,"defined_names":7,"comments":0,"pivot_tables":0},"unopened":[],"bounds":{"document_bytes":16777216,"sheet_cells":100000,"rows_first":2000,"rows_last":500,"rows_between":2000,"halvings":0,"cell_chars":16384,"cell_head_chars":4096},"cells_cut":0,"cells_raw":0,"read":"whole","date_system":"1900"}

{"sheet":"Sheet1","index":0,"n_rows":54,"n_cols":14,"rows_kept":54,"cut":false,"hidden":true,"merged":[[19,4,19,13],[16,8,16,9],[16,11,16,13],[17,8,17,9],[17,11,17,13],[13,8,13,9],[13,11,13,13],[14,8,14,9],[14,11,14,13],[15,8,15,9],[15,11,15,13],[2,3,2,13],[4,3,4,13],[42,4,42,11],[24,9,24,13],[25,9,25,13],[22,4,22,6],[22,7,22,13],[23,4,23,6],[24,4,24,6],[25,4,25,6],[23,7,23,8],[24,7,24,8],[11,4,11,13],[12,4,12,13],[25,7,25,8],[23,9,23,13],[53,4,53,13],[41,4,41,13],[28,4,28,13],[29,12,29,13],[21,4,21,13],[30,4,30,11],[31,4,31,11],[32,4,32,11],[33,4,33,11],[34,4,34,11],[35,4,35,11],[36,4,36,11],[26,4,26,6],[37,4,37,11],[38,4,38,11],[39,4,39,11],[26,7,26,8],[26,9,26,13],[42,12,42,13],[51,4,51,11],[52,4,52,11],[43,4,43,11],[44,4,44,11],[45,4,45,11],[46,4,46,11],[47,4,47,11],[48,4,48,11],[49,4,49,11],[50,4,50,11]]}
[]
[]
[null,null,null,"令和元年度　バス関係補助事業にかかる要望調査　回答票"]
[]
[null,null,null,"会社名：　　　　　　　　　　　　　　　　担当者：　　　　　　　　　連絡先：　　　　　　　　　　　　."]
[]
[]
[]
[]
[]
[]
[null,null,null,"Ⅰ．","計画等に関して"]
[null,null,null,null,"Ｑ１．事業の実施を計画している都道府県、市町村名および事業実施路線が観光庁長官が国際観光振興法※による告示で指定した区間に該当する場合は、そちらについてもお答えください（複数回答可）。"]
[null,null,null,null,"実施地域①","都道府県名",null,"市町村名",null,null,"告示区間"]
[null,null,null,null,"実施地域②","都道府県名",null,"市町村名",null,null,"告示区間"]
[null,null,null,null,"実施地域③","都道府県名",null,"市町村名",null,null,"告示区間"]
[null,null,null,null,"実施地域④","都道府県名",null,"市町村名",null,null,"告示区間"]
[null,null,null,null,"実施地域⑤","都道府県名",null,"市町村名",null,null,"告示区間"]
[]
[null,null,null,null,"Ｑ２．訪日外国人旅行者のニーズが特に高い取り組みを一体的に進める事業で、重点的に国の支援を受ける（補助率１／２～）場合は、「観光振興事業費補助金交付要綱」に定める「公共交通利用環境刷新計画」を提出する必要があります。\nそちらの提出状況をお答えください。"]
[]
[null,null,null,"Ⅰ．\n","　Ｈ２９年度の要望調査において、提出した事業の計画期間について、A又はBに○を付け、Bの場合はその年度を記載して下さい。"]
[null,null,null,"項番","事　　　　　　業",null,null,"計画期間"]
[null,null,null,"１．","全国共通ＩＣカードシステム",null,null,"A．平成２９単年度",null,"B．　複数年度（平成　　年度～平成　　年度）"]
[null,null,null,"２．","多言語バスロケーションシステム",null,null,"A．平成２９単年度",null,"B．　複数年度（平成　　年度～平成　　年度）"]
[null,null,null,"\n３．\n","多言語標記等",null,null,"A．平成２９単年度",null,"B．　複数年度（平成　　年度～平成　　年度）"]
[null,null,null,"\n４．\n","無料公衆無線ＬＡＮ",null,null,"A．平成２９単年度",null,"B．　複数年度（平成　　年度～平成　　年度）"]
[]
[null,null,null,"Ⅱ．\n","　補助対象事業を実施する地域が、次の訪日外国人の受け入れに関し一定の体制を整えている地域又は観光振興に意欲を有する地域に該当する場合は、回答欄の「はい」、「いいえ」のいずれかに○を付して、当該市町村名をお答え下さい。"]
[null,null,null,"項番","質問",null,null,null,null,null,null,null,"回答"]
[null,null,null,"１．\n"," カテゴリーⅡ以上のJNTO認定外国観光案内所が立地する地域\n　（市町村名：　　　　　　　　　　　　　　　　　　　　　　　　　　　　　　　　　　　　　　　　　）",null,null,null,null,null,null,null,"はい","いいえ"]
[null,null,null,"２．\n"," 広域観光周遊ルート形成計画の広域観光拠点地区\n　（市町村名：　　　　　　　　　　　　　　　　　　　　　　　　　　　　　　　　　　　　　　　　　）",null,null,null,null,null,null,null,"はい","いいえ"]
[null,null,null,"３．\n"," 観光圏整備実施計画認定地域\n　（市町村名：　　　　　　　　　　　　　　　　　　　　　　　　　　　　　　　　　　　　　　　　　）",null,null,null,null,null,null,null,"はい","いいえ"]
[null,null,null,"４．\n"," 観光地魅力創造事業の認定地域\n　（市町村名：　　　　　　　　　　　　　　　　　　　　　　　　　　　　　　　　　　　　　　　　　）",null,null,null,null,null,null,null,"はい","いいえ"]
[null,null,null,"５．\n\n"," 「文化財総合活用・観光振興戦略プラン」に基づき文化財を中核とする観光拠点の整備に取り組む地域\n　（市町村名：　　　　　　　　　　　　　　　　　　　　　　　　　　　　　　　　　　　　　　　　　）",null,null,null,null,null,null,null,"はい","いいえ"]
[null,null,null,"６．\n\n"," 「国立公園満喫プロジェクト」の先導モデルとして選定され、「国立公園ステップアッププログラム２０２０」の策定に取り組む地域\n　（市町村名：　　　　　　　　　　　　　　　　　　　　　　　　　　　　　　　　　　　　　　　　　）",null,null,null,null,null,null,null,"はい","いいえ"]
[null,null,null,"７．\n"," 観光立国ショーケース選定都市\n　（市町村名：　　　　　　　　　　　　　　　　　　　　　　　　　　　　　　　　　　　　　　　　　）",null,null,null,null,null,null,null,"はい","いいえ"]
[null,null,null,"８．\n"," 東京オリンピック・パラリンピック競技会場立地都市\n　（市町村名：　　　　　　　　　　　　　　　　　　　　　　　　　　　　　　　　　　　　　　　　　）",null,null,null,null,null,null,null,"はい","いいえ"]
[null,null,null,"９．\n"," ラグビーワールドカップ競技会場立地都市\n　（市町村名：　　　　　　　　　　　　　　　　　　　　　　　　　　　　　　　　　　　　　　　　　）",null,null,null,null,null,null,null,"はい","いいえ"]
[null,null,null,"10．\n\n"," その他観光ビジョン推進地方ブロック戦略会議が訪日外国人旅行者の受入環境整備を実施すべき地域と認めたもの\n　（市町村名：　　　　　　　　　　　　　　　　　　　　　　　　　　　　　　　　　　　　　　　　　）",null,null,null,null,null,null,null,"はい","いいえ"]
[]
[null,null,null,"Ⅲ．\n","　貴社で実施しているインバンド対策の取組について回答欄の「はい」、「いいえ」のいずれかに○を付してお答え下さい。また、質問欄の（　　）には「はい」と回答した場合の具体的内容を記載して下さい。"]
[null,null,null,"項番","質問",null,null,null,null,null,null,null,"回答"]
[null,null,null,"１．","多言語でバス路線図やバスマップを作成し配布している",null,null,null,null,null,null,null,"はい","いいえ"]
[null,null,null,"２．\n","バス車内で多言語案内を行っている\n　（内容：　　　　　　　　　　　　　　　　　　　　　　　　　　　　　　　　　　　　　　　　　）",null,null,null,null,null,null,null,"はい","いいえ"]
[null,null,null,"３．","停留所等標板の多言語表示を行っている",null,null,null,null,null,null,null,"はい","いいえ"]
[null,null,null,"４．\n","外国人専用のバス案内所を設置している\n　（設置場所：　　　　　　　　　　　　　　　　　　　　　　　　　　　　　　　　　　　　　　）",null,null,null,null,null,null,null,"はい","いいえ"]
[null,null,null,"５．","多言語対応のバスロケーションシステムを導入している",null,null,null,null,null,null,null,"はい","いいえ"]
[null,null,null,"６．","全国共通ＩＣカードシステムを導入している",null,null,null,null,null,null,null,"はい","いいえ"]
[null,null,null,"７．\n","インバウンド対策として観光施設等と連携した企画乗車券を発売している\n　（内容：　　　　　　　　　　　　　　　　　　　　　　　　　　　　　　　　　　　　　　　　　）",null,null,null,null,null,null,null,"はい","いいえ"]
[null,null,null,"８．\n","インバウンド対策として他の交通機関と連携した企画乗車券を発売している\n　（内容：　　　　　　　　　　　　　　　　　　　　　　　　　　　　　　　　　　　　　　　　　）",null,null,null,null,null,null,null,"はい","いいえ"]
[null,null,null,"９．\n","インバウンド対応で自治体から助成を受けている\n　（自治体名、内容：　　　　　　　　　　　　　　　　　　　　　　　　　　　　　　　　　　）",null,null,null,null,null,null,null,"はい","いいえ"]
[null,null,null,"１０．\n","インバウンド対策で自治体と連携して施策を行っている\n　（自治体名、内容：　　　　　　　　　　　　　　　　　　　　　　　　　　　　　　　　　　　　　　）",null,null,null,null,null,null,null,"はい","いいえ"]
[null,null,null,"\n１１．","\nその他のインバウンド対策（自由表記）"]

{"sheet":"レンタカー","index":1,"n_rows":113,"n_cols":67,"rows_kept":113,"cut":false,"hidden":false,"merged":[[27,18,27,22],[31,34,37,57],[13,36,14,50],[16,36,17,36],[16,37,17,37],[16,38,17,38],[16,39,17,39],[16,40,17,40],[16,41,17,41],[16,42,17,42],[16,43,17,43],[16,44,17,44],[16,45,17,45],[16,46,17,46],[16,47,17,47],[16,48,17,48],[16,49,17,49],[16,50,17,50],[32,11,32,19],[32,20,32,23],[32,24,32,27],[34,20,34,23],[36,20,36,23],[2,2,2,4],[66,43,66,47],[66,48,66,52],[67,43,67,45],[67,46,67,47],[67,48,67,50],[68,43,68,45],[68,46,68,47],[75,28,75,35],[75,36,75,37],[73,48,73,52],[74,48,74,50],[69,28,69,35],[69,36,69,37],[61,2,61,3],[62,2,63,3],[60,4,60,14],[61,4,61,14],[61,18,61,21],[60,18,60,21],[66,2,66,3],[67,18,67,21],[66,23,66,27],[67,23,67,25],[86,4,86,14],[84,2,84,28],[74,4,74,14],[74,18,74,21],[69,15,69,16],[60,2,60,3],[60,15,60,16],[69,2,69,3],[62,4,62,14],[67,4,67,14],[68,4,68,14],[69,4,69,14],[66,4,66,14],[67,15,67,16],[67,2,67,3],[73,23,73,27],[75,4,75,14],[73,4,73,14],[76,15,76,16],[74,2,74,3],[74,15,74,16],[72,2,72,28],[66,18,66,22],[65,2,65,28],[67,26,67,27],[77,38,77,40],[73,2,73,3],[73,15,73,17],[73,18,73,22],[75,15,75,16],[85,4,85,14],[75,26,75,27],[69,26,69,27],[69,38,69,40],[76,38,76,40],[76,4,76,14],[69,18,69,21],[75,38,75,40],[86,26,86,27],[73,28,73,37],[85,23,85,27],[85,28,85,37],[76,23,76,25],[76,26,76,27],[76,28,76,35],[76,36,76,37],[77,23,77,25],[77,26,77,27],[77,28,77,35],[77,36,77,37],[109,24,109,26],[104,5,104,14],[105,5,105,14],[106,5,106,14],[107,5,107,14],[108,5,108,14],[109,5,109,14],[110,5,110,14],[104,21,104,23],[106,15,106,17],[107,15,107,17],[106,24,106,26],[108,24,108,26],[109,15,109,17],[104,18,104,20],[105,18,105,20],[106,18,106,20],[107,18,107,20],[108,18,108,20],[109,18,109,20],[104,15,104,17],[105,15,105,17],[111,5,111,14],[112,5,112,14],[110,27,110,34],[111,27,111,34],[112,27,112,34],[110,21,110,23],[111,21,111,23],[112,21,112,23],[110,24,110,26],[111,24,111,26],[110,15,110,17],[111,15,111,17],[112,15,112,17],[110,18,110,20],[111,18,111,20],[112,18,112,20],[111,3,111,4],[112,3,112,4],[109,3,109,4],[110,3,110,4],[105,3,105,4],[106,3,106,4],[108,3,108,4],[103,3,103,4],[104,3,104,4],[107,3,107,4],[11,2,12,4],[13,2,14,4],[15,2,16,4],[17,2,18,4],[21,2,22,4],[23,2,24,4],[88,15,88,16],[88,38,88,40],[87,38,87,40],[87,4,87,14],[87,18,87,21],[88,18,88,21],[88,2,88,3],[85,2,85,3],[85,18,85,22],[77,2,77,3],[85,15,85,17],[77,15,77,16],[79,2,82,2],[56,4,56,14],[57,4,57,14],[76,2,76,3],[68,38,68,40],[68,18,68,21],[3,2,3,4],[7,2,8,4],[5,2,5,4],[29,2,29,55],[30,2,30,55],[19,2,20,4],[3,12,3,15],[3,5,3,11],[10,1,10,4],[3,16,3,27],[13,5,14,27],[15,5,16,27],[17,5,18,27],[19,5,20,27],[21,5,22,27],[23,5,24,27],[27,2,27,13],[5,5,5,11],[7,5,8,11],[5,12,5,15],[7,12,8,15],[5,16,5,27],[7,16,8,27],[11,12,12,15],[56,53,56,57],[56,58,56,62],[56,63,56,67],[57,41,57,42],[57,53,57,55],[57,58,57,60],[57,63,57,65],[57,51,57,52],[56,48,56,52],[57,66,57,67],[57,61,57,62],[56,43,56,47],[57,56,57,57],[57,48,57,50],[57,43,57,45],[57,46,57,47],[56,38,56,42],[44,3,44,13],[45,3,45,13],[57,28,57,35],[62,15,62,16],[62,38,62,40],[62,18,62,21],[61,15,61,16],[61,38,61,40],[58,15,58,16],[58,38,58,40],[58,4,58,14],[59,4,59,14],[56,15,56,17],[56,18,56,22],[57,36,57,37],[61,41,61,42],[62,41,62,42],[60,38,60,40],[57,38,57,40],[58,41,58,42],[59,41,59,42],[38,24,38,27],[59,2,59,3],[59,15,59,16],[57,18,57,21],[58,18,58,21],[59,18,59,21],[58,2,58,3],[56,2,56,3],[55,2,55,28],[56,23,56,27],[56,28,56,37],[57,23,57,25],[57,26,57,27],[57,15,57,16],[57,2,57,3],[40,11,40,19],[40,20,40,23],[40,24,40,27],[60,48,60,50],[61,48,61,50],[62,48,62,50],[59,38,59,40],[58,36,58,37],[59,36,59,37],[60,36,60,37],[58,61,58,62],[59,61,59,62],[60,61,60,62],[61,61,61,62],[62,61,62,62],[58,58,58,60],[59,58,59,60],[60,58,60,60],[61,58,61,60],[62,58,62,60],[58,53,58,55],[59,53,59,55],[60,53,60,55],[61,53,61,55],[62,53,62,55],[62,56,62,57],[60,41,60,42],[58,66,58,67],[59,66,59,67],[60,66,60,67],[61,66,61,67],[58,63,58,65],[59,63,59,65],[60,63,60,65],[61,63,61,65],[62,66,62,67],[62,63,62,65],[68,48,68,50],[69,43,69,45],[69,46,69,47],[69,48,69,50],[61,43,61,45],[61,46,61,47],[62,43,62,45],[62,46,62,47],[58,56,58,57],[59,56,59,57],[60,56,60,57],[61,56,61,57],[60,51,60,52],[61,51,61,52],[62,51,62,52],[58,51,58,52],[59,51,59,52],[58,48,58,50],[58,43,58,45],[58,46,58,47],[59,43,59,45],[59,46,59,47],[60,43,60,45],[59,48,59,50],[67,66,67,67],[69,51,69,52],[69,53,69,55],[69,56,69,57],[69,58,69,60],[69,61,69,62],[69,63,69,65],[69,66,69,67],[67,51,67,52],[67,53,67,55],[67,56,67,57],[67,58,67,60],[67,61,67,62],[67,63,67,65],[68,51,68,52],[68,53,68,55],[68,56,68,57],[68,58,68,60],[68,61,68,62],[68,63,68,65],[68,66,68,67],[74,51,74,52],[74,53,74,55],[74,56,74,57],[74,58,74,60],[74,61,74,62],[74,63,74,65],[74,66,74,67],[73,53,73,57],[73,58,73,62],[73,63,73,67],[76,58,76,60],[76,61,76,62],[76,63,76,65],[76,66,76,67],[75,41,75,42],[75,51,75,52],[75,53,75,55],[75,56,75,57],[75,58,75,60],[75,61,75,62],[75,63,75,65],[75,66,75,67],[76,56,76,57],[75,48,75,50],[76,43,76,45],[76,46,76,47],[76,48,76,50],[76,41,76,42],[76,51,76,52],[76,53,76,55],[77,58,77,60],[77,53,77,55],[86,43,86,45],[86,46,86,47],[86,48,86,50],[85,38,85,42],[85,53,85,57],[85,58,85,62],[85,63,85,67],[86,41,86,42],[86,51,86,52],[86,53,86,55],[86,56,86,57],[86,58,86,60],[86,61,86,62],[86,63,86,65],[86,66,86,67],[77,43,77,45],[86,38,86,40],[77,46,77,47],[77,48,77,50],[85,43,85,47],[85,48,85,52],[79,3,82,67],[88,51,88,52],[88,53,88,55],[88,56,88,57],[88,58,88,60],[88,61,88,62],[88,63,88,65],[88,66,88,67],[87,41,87,42],[87,51,87,52],[87,53,87,55],[87,56,87,57],[87,58,87,60],[87,61,87,62],[87,63,87,65],[87,66,87,67],[87,43,87,45],[87,46,87,47],[87,48,87,50],[88,43,88,45],[88,46,88,47],[88,48,88,50],[88,41,88,42],[101,24,101,26],[101,27,101,34],[58,23,58,25],[58,26,58,27],[58,28,58,35],[59,23,59,25],[59,26,59,27],[59,28,59,35],[60,23,60,25],[60,26,60,27],[60,28,60,35],[63,4,63,67],[74,23,74,25],[74,26,74,27],[74,28,74,35],[74,36,74,37],[67,38,67,40],[67,28,67,35],[67,36,67,37],[68,23,68,25],[68,26,68,27],[66,53,66,57],[66,58,66,62],[66,63,66,67],[102,3,102,4],[68,2,68,3],[87,15,87,16],[66,15,66,17],[86,18,86,21],[77,4,77,14],[68,15,68,16],[102,5,102,14],[103,5,103,14],[103,21,103,23],[101,15,101,17],[101,18,101,20],[101,21,101,23],[69,23,69,25],[86,23,86,25],[75,18,75,21],[76,18,76,21],[77,18,77,21],[75,2,75,3],[75,23,75,25],[103,18,103,20],[103,15,103,17],[101,3,101,4],[101,5,101,6],[109,35,109,37],[110,35,110,37],[102,15,102,17],[102,18,102,20],[102,21,102,23],[102,24,102,26],[102,27,102,34],[103,27,103,34],[104,27,104,34],[105,27,105,34],[102,35,102,37],[105,21,105,23],[103,24,103,26],[104,24,104,26],[105,24,105,26],[106,27,106,34],[107,27,107,34],[108,27,108,34],[109,27,109,34],[106,21,106,23],[107,21,107,23],[108,21,108,23],[109,21,109,23],[108,15,108,17],[101,35,101,37],[101,38,101,40],[100,38,100,40],[112,24,112,26],[103,38,103,40],[104,38,104,40],[105,38,105,40],[106,38,106,40],[107,38,107,40],[108,38,108,40],[109,38,109,40],[110,38,110,40],[111,38,111,40],[112,38,112,40],[111,35,111,37],[112,35,112,37],[102,38,102,40],[103,35,103,37],[104,35,104,37],[105,35,105,37],[106,35,106,37],[107,35,107,37],[108,35,108,37],[107,24,107,26],[74,41,74,42],[69,41,69,42],[66,38,66,42],[68,28,68,35],[68,36,68,37],[68,41,68,42],[73,38,73,42],[67,41,67,42],[74,38,74,40],[66,28,66,37],[77,41,77,42],[77,51,77,52],[77,56,77,57],[77,61,77,62],[77,66,77,67],[77,63,77,65],[49,2,49,4],[49,5,49,11],[86,28,86,35],[86,36,86,37],[86,2,86,3],[60,46,60,47],[73,43,73,47],[74,43,74,45],[74,46,74,47],[75,43,75,45],[75,46,75,47],[61,23,61,25],[61,26,61,27],[61,28,61,35],[61,36,61,37],[62,23,62,25],[62,26,62,27],[62,28,62,35],[88,4,88,14],[87,2,87,3],[34,11,34,19],[34,24,34,27],[2,5,2,11],[87,23,87,25],[87,26,87,27],[87,28,87,35],[87,36,87,37],[88,23,88,25],[88,26,88,27],[88,28,88,35],[88,36,88,37],[42,20,42,23],[42,24,42,27],[44,15,44,27],[45,15,45,27],[86,15,86,16],[62,36,62,37],[11,5,12,11],[11,16,12,27],[36,24,36,27],[38,11,38,19],[38,20,38,23]]}
[null,null,null,null,null,null,null,null,null,null,null,null,null,null,null,null,null,null,null,null,null,null,null,null,null,null,null,null,null,null,"☑"]
[null,null,null,null,null,null,null,null,null,null,null,null,null,null,null,null,null,null,null,null,null,null,null,null,null,null,null,null,null,null,"□"]
[null,null,"整理番号"]
[null,null,"事業者名",null,null,null,null,null,null,null,null,null,"住所"]
[]
[null,null,"代表者氏名",null,null,null,null,null,null,null,null,null,"ご担当者名"]
[]
[null,null,"ご連絡先\n(ご担当者)",null,null,null,null,null,null,null,null,null,"E-mail \n（ご担当者）"]
[]
[null,null,null,null,null,null,null,null,null,null,null,null,null,null,null,null,null,null,null,null,null,null,null,null,null,null,null,null,null,null,{"$f":"IF(F8=\"\",1,0)","v":1}]
[null,"振込先銀行情報"]
[null,null,"銀行名",null,null,null,null,null,null,null,null,null,"金融機関\nコード"]
[]
[null,null,"支店名",null,null,null,null,null,null,null,null,null,null,null,null,null,null,null,null,null,null,null,null,null,null,null,null,null,null,null,null,null,null,null,null,null,"ゆうちょ銀行の方は銀行名に「ゆうちょ銀行」と入力してから\n下記に入力してください"]
[]
[null,null,"支店番号",null,null,null,null,null,null,null,null,null,null,null,null,null,null,null,null,null,null,null,null,null,null,null,null,null,null,null,null,null,null,null,null,null,null,"A","B","C","D","E",null,"F","G","H","I","J","K","L","M"]
[null,null,null,null,null,null,null,null,null,null,null,null,null,null,null,null,null,null,null,null,null,null,null,null,null,null,null,null,null,null,null,null,null,null,null,null,"記号",null,null,null,null,null,"番号"]
[null,null,"口座の種類"]
[null,null,null,null,null,null,null,null,null,null,null,null,null,null,null,null,null,null,null,null,null,null,null,null,null,null,null,null,null,null,null,null,null,null,null,null,"※A～Mは１桁ずつ入力してください"]
[null,null,"口座番号",null,null,null,null,null,null,null,null,null,null,null,null,null,null,null,null,null,null,null,null,null,null,null,null,null,null,null,null,null,null,null,null,null,"※記号（A～E）は計５桁,Fは記入なし,番号(F～M)は最大計８桁"]
[null,null,null,null,null,null,null,null,null,null,null,null,null,null,null,null,null,null,null,null,null,null,null,null,null,null,null,null,null,null,null,null,null,null,null,null,"※番号が８桁未満の場合は左詰めで記入してください"]
[null,null,"フリガナ"]
[]
[null,null,"口座名義人"]
[null,null,null,null,null,null,null,null,null,null,null,null,null,null,null,null,null,null,null,null,null,null,null,null,null,null,null,null,null,null,null,null,null,null,null,null,null,"↑記号・番号入力後に押してください"]
[null,null,null,null,null,null,null,null,null,null,null,null,null,null,null,null,null,null,null,null,null,null,null,null,null,null,null,null,null,null,{"$f":"IF(#REF!=\"\",1,0)","v":{"$error":"#REF!"}}]
[null,null,"※本用紙入力後に、一度は下記チェックボタンを押下してください。"]
[null,null,"チェックボタン",null,null,null,null,null,null,null,null,null,null,null,null,null,null,null,"未チェック"]
[null,null,"※エラーが表示されたら修正を行い、再度チェックボタンを押下してください。",null,null,null,null,null,null,null,null,null,null,null,null,null,null,null,null,null,null,null,null,null,null,null,null,null,null,null,{"$f":"IF(C29=AE$1,0,1)","v":1},null,null,null,"エラーメッセージボックス"]
[null,null,"交付決定額"]
[null,null,{"$f":"SUM(Z:Z)","v":0}]
[]
[null,null,null,null,null,null,null,null,null,null,null,"A. 交通DX・GXによる\n    経営改善支援事業",null,null,null,null,null,null,null,null,"交付申請額計",null,null,null,{"$f":"集計用!AD7","v":0}]
[null,null,null,null,null,null,null,null,null,null,null,null,null,null,null,null,null,null,null,null,null,null,null,null,null,null,null,null,null,null,{"$f":"IF(COUNTA(AE49,AE5,AE10,AE26,AE28)=1,0,1)","v":1}]
[null,null,null,null,null,null,null,null,null,null,null,"B. 交通サービスインバウンド\n    対応支援事業",null,null,null,null,null,null,null,null,"交付申請額計",null,null,null,{"$f":"集計用!AE7","v":0}]
[]
[null,null,null,null,null,null,null,null,null,null,null,null,null,null,null,null,null,null,null,null,"交付申請額総計",null,null,null,{"$f":"集計用!AF7","v":0}]
[]
[]
[]
[]
[]
[]
[]
[]
[null,null,null,"様式第9A作成ボタン",null,null,null,null,null,null,null,null,null,null,null,"様式第9B作成ボタン"]
[]
[]
[null,null,null,null,null,null,null,null,null,null,null,null,null,null,null,null,null,null,null,null,null,null,null,null,null,null,null,null,null,null,{"$f":"IF(F4=\"\",1,0)","v":1}]
[null,null,"整理番号"]
[]
[]
[]
[]
[]
[null,"①","多言語化への取組み"]
[null,null,"整理記号",null,"事業概要",null,null,null,null,null,null,null,null,null,null,"申請台数",null,null,"補助対象経費（税抜）",null,null,null,null,"要望額",null,null,null,null,"内示額",null,null,null,null,null,null,null,null,null,"別紙様式第1\n交付申請額\n（対象経費／３）",null,null,null,null,"別紙様式第2\n交付決定額",null,null,null,null,"別紙様式第3\n交付決定変更申請額",null,null,null,null,"別紙様式第4\n交付決定変更額",null,null,null,null,"別紙様式第6\n進捗状況額",null,null,null,null,"別紙様式第7\n完了実績額"]
[{"$f":"IF(C58>0,C58,A57&\"a\")","v":1},null,1,null,"多言語案内用タブレット",null,null,null,null,null,null,null,null,null,null,null,null,"台",null,null,null,null,"円",null,null,null,"千円",null,null,null,null,null,null,null,null,null,"千円",null,{"$f":"IF(AND(P58>0,S58>0),ROUNDDOWN(S58/3000,0),\"\")","v":""},null,null,"千円",null,null,null,null,"千円",null,null,null,null,"千円",null,null,null,null,"千円",null,null,null,null,"千円",null,null,null,null,"千円"]
[{"$f":"IF(C59>0,C59,A58&\"a\")","v":2},null,{"$f":"C58+1","v":2},null,"多言語翻訳システム機器",null,null,null,null,null,null,null,null,null,null,null,null,"台",null,null,null,null,"円",null,null,null,"千円",null,null,null,null,null,null,null,null,null,"千円",null,{"$f":"IF(AND(P59>0,S59>0),ROUNDDOWN(S59/3000,0),\"\")","v":""},null,null,"千円",null,null,null,null,"千円",null,null,null,null,"千円",null,null,null,null,"千円",null,null,null,null,"千円",null,null,null,null,"千円"]
[3,null,{"$f":"C59+1","v":3},null,"多言語案内サイネージの導入",null,null,null,null,null,null,null,null,null,null,null,null,"台",null,null,null,null,"円",null,null,null,"千円",null,null,null,null,null,null,null,null,null,"千円",null,{"$f":"IF(AND(P60>0,S60>0),ROUNDDOWN(S60/3000,0),\"\")","v":""},null,null,"千円",null,null,null,null,"千円",null,null,null,null,"千円",null,null,null,null,"千円",null,null,null,null,"千円",null,null,null,null,"千円"]
[4,null,4,null,"ホームページの多言語表記",null,null,null,null,null,null,null,null,null,null,"ー",null,null,null,null,null,null,"円",null,null,null,"千円",null,null,null,null,null,null,null,null,null,"千円",null,{"$f":"IF(S61>0,ROUNDDOWN(S61/3000,0),\"\")","v":""},null,null,"千円",null,null,null,null,"千円",null,null,null,null,"千円",null,null,null,null,"千円",null,null,null,null,"千円",null,null,null,null,"千円"]
[5,null,5,null,"多言語研修の実施",null,null,null,null,null,null,null,null,null,null,null,null,"回",null,null,null,null,"円",null,null,null,"千円",null,null,null,null,null,null,null,null,null,"千円",null,{"$f":"IF(AND(P62>0,S62>0),ROUNDDOWN(S62/3000,0),\"\")","v":""},null,null,"千円",null,null,null,null,"千円",null,null,null,null,"千円",null,null,null,null,"千円",null,null,null,null,"千円",null,null,null,null,"千円"]
[6,null,{"$f":"C62+1","v":6},null,"その他",null,null,null,null,null,null,null,null,null,null,null,null,"式",null,null,null,null,"円",null,null,null,"千円",null,null,null,null,null,null,null,null,null,"千円",null,{"$f":"IF(AND(P63>0,S63>0),ROUNDDOWN(S63/3000,0),\"\")","v":""},null,null,"千円",null,null,null,null,"千円",null,null,null,null,"千円",null,null,null,null,"千円",null,null,null,null,"千円",null,null,null,null,"千円"]
["6a",null,null,null,"事業概要："]
[]
[null,"②","外国人利用者に対する支援"]
[null,null,"整理記号",null,"事業概要",null,null,null,null,null,null,null,null,null,null,"申請台数",null,null,"補助対象経費（税抜）",null,null,null,null,"要望額",null,null,null,null,"内示額",null,null,null,null,null,null,null,null,null,"別紙様式第1\n交付申請額\n（対象経費／３）",null,null,null,null,"別紙様式第2\n交付決定額",null,null,null,null,"別紙様式第3\n交付決定変更申請額",null,null,null,null,"別紙様式第4\n交付決定変更額",null,null,null,null,"別紙様式第6\n進捗状況額",null,null,null,null,"別紙様式第7\n完了実績額"]
[{"$f":"IF(C68>0,C68,A67&\"a\")","v":7},null,{"$f":"C63+1","v":7},null,"日本の交通ルール説明用多言語パンフレット等作成",null,null,null,null,null,null,null,null,null,null,null,null,"台",null,null,null,null,"円",null,null,null,"千円",null,null,null,null,null,null,null,null,null,"千円",null,{"$f":"IF(AND(P68>0,S68>0),ROUNDDOWN(S68/3000,0),\"\")","v":""},null,null,"千円",null,null,null,null,"千円",null,null,null,null,"千円",null,null,null,null,"千円",null,null,null,null,"千円",null,null,null,null,"千円"]
[8,null,{"$f":"C68+1","v":8},null,"訪日外国人旅行者運転中ステッカー作成",null,null,null,null,null,null,null,null,null,null,null,null,"台",null,null,null,null,"円",null,null,null,"千円",null,null,null,null,null,null,null,null,null,"千円",null,{"$f":"IF(AND(P69>0,S69>0),ROUNDDOWN(S69/3000,0),\"\")","v":""},null,null,"千円",null,null,null,null,"千円",null,null,null,null,"千円",null,null,null,null,"千円",null,null,null,null,"千円",null,null,null,null,"千円"]
[9,null,9,null,"訪日外国人旅行者ドライブ支援アプリ開発",null,null,null,null,null,null,null,null,null,null,null,null,"式",null,null,null,null,"円",null,null,null,"千円",null,null,null,null,null,null,null,null,null,"千円",null,"",null,null,"千円",null,null,null,null,"千円",null,null,null,null,"千円",null,null,null,null,"千円",null,null,null,null,"千円",null,null,null,null,"千円"]
[]
[]
[null,"③","キャッシュレス機器・システムの導入"]
[null,null,"整理記号",null,"事業概要",null,null,null,null,null,null,null,null,null,null,"申請台数",null,null,"補助対象経費（税抜）",null,null,null,null,"要望額",null,null,null,null,"内示額",null,null,null,null,null,null,null,null,null,"別紙様式第1\n交付申請額\n（対象経費／３）",null,null,null,null,"別紙様式第2\n交付決定額",null,null,null,null,"別紙様式第3\n交付決定変更申請額",null,null,null,null,"別紙様式第4\n交付決定変更額",null,null,null,null,"別紙様式第6\n進捗状況額",null,null,null,null,"別紙様式第7\n完了実績額"]
[{"$f":"IF(C75>0,C75,A74&\"a\")","v":10},null,{"$f":"C70+1","v":10},null,"クレジット決済機器",null,null,null,null,null,null,null,null,null,null,null,null,"台",null,null,null,null,"円",null,null,null,"千円",null,null,null,null,null,null,null,null,null,"千円",null,{"$f":"IF(AND(P75>0,S75>0),ROUNDDOWN(S75/3000,0),\"\")","v":""},null,null,"千円",null,null,null,null,"千円",null,null,null,null,"千円",null,null,null,null,"千円",null,null,null,null,"千円",null,null,null,null,"千円"]
[11,null,{"$f":"C75+1","v":11},null,"二次元コード決済機器",null,null,null,null,null,null,null,null,null,null,null,null,"台",null,null,null,null,"円",null,null,null,"千円",null,null,null,null,null,null,null,null,null,"千円",null,{"$f":"IF(AND(P76>0,S76>0),ROUNDDOWN(S76/3000,0),\"\")","v":""},null,null,"千円",null,null,null,null,"千円",null,null,null,null,"千円",null,null,null,null,"千円",null,null,null,null,"千円",null,null,null,null,"千円"]
[12,null,12,null,"交通系ＩＣ決済機器",null,null,null,null,null,null,null,null,null,null,null,null,"台",null,null,null,null,"円",null,null,null,"千円",null,null,null,null,null,null,null,null,null,"千円",null,"",null,null,"千円",null,null,null,null,"千円",null,null,null,null,"千円",null,null,null,null,"千円",null,null,null,null,"千円",null,null,null,null,"千円"]
[13,null,{"$f":"C77+1","v":13},null,"ＥＴＣ読取機・プリンターの導入",null,null,null,null,null,null,null,null,null,null,null,null,"台",null,null,null,null,"円",null,null,null,"千円",null,null,null,null,null,null,null,null,null,"千円",null,{"$f":"IF(AND(P78>0,S78>0),ROUNDDOWN(S78/3000,0),\"\")","v":""},null,null,"千円",null,null,null,null,"千円",null,null,null,null,"千円",null,null,null,null,"千円",null,null,null,null,"千円",null,null,null,null,"千円"]
[]
[null,null,"※","ＥＴＣ読取機・プリンターの導入（R-13）については、訪日外国人旅行者がＥＴＣカードを活用して高速自動車道等有料道路をキャッシュレスで使用するサービスを提供するため、営業所に整備する機器が補助対象になります。ＥＴＣ車載器は対象になりません。"]
[]
[]
[]
[]
[null,"④","情報端末への電源供給機器、非常用電源装置の導入"]
[null,null,"整理記号",null,"事業概要",null,null,null,null,null,null,null,null,null,null,"申請台数",null,null,"補助対象経費（税抜）",null,null,null,null,"要望額",null,null,null,null,"内示額",null,null,null,null,null,null,null,null,null,"別紙様式第1\n交付申請額\n（対象経費／２）",null,null,null,null,"別紙様式第2\n交付決定額",null,null,null,null,"別紙様式第3\n交付決定変更申請額",null,null,null,null,"別紙様式第4\n交付決定変更額",null,null,null,null,"別紙様式第6\n進捗状況額",null,null,null,null,"別紙様式第7\n完了実績額"]
[{"$f":"IF(C87>0,C87,A86&\"a\")","v":14},null,{"$f":"C78+1","v":14},null,"情報端末への電源供給機器",null,null,null,null,null,null,null,null,null,null,null,null,"台",null,null,null,null,"円",null,null,null,"千円",null,null,null,null,null,null,null,null,null,"千円",null,{"$f":"IF(AND(P87>0,S87>0),ROUNDDOWN(S87/2000,0),\"\")","v":""},null,null,"千円",null,null,null,null,"千円",null,null,null,null,"千円",null,null,null,null,"千円",null,null,null,null,"千円",null,null,null,null,"千円"]
[15,null,{"$f":"C87+1","v":15},null,"非常用電源装置",null,null,null,null,null,null,null,null,null,null,null,null,"台",null,null,null,null,"円",null,null,null,"千円",null,null,null,null,null,null,null,null,null,"千円",null,{"$f":"IF(AND(P88>0,S88>0),ROUNDDOWN(S88/2000,0),\"\")","v":""},null,null,"千円",null,null,null,null,"千円",null,null,null,null,"千円",null,null,null,null,"千円",null,null,null,null,"千円",null,null,null,null,"千円"]
[16,null,16,null,"その他付随機器",null,null,null,null,null,null,null,null,null,null,null,null,"台",null,null,null,null,"円",null,null,null,"千円",null,null,null,null,null,null,null,null,null,"千円",null,"",null,null,"千円",null,null,null,null,"千円",null,null,null,null,"千円",null,null,null,null,"千円",null,null,null,null,"千円",null,null,null,null,"千円"]
[]
[]
[]
[]
[]
[]
[]
[]
[]
[]
[null,null,"導入予定営業所について（複数の営業所に導入する場合は以下に内訳を整理の上記載してください。）"]
[null,null,null,null,null,null,null,null,null,null,null,null,null,null,null,null,null,null,null,null,null,null,null,null,null,null,null,null,null,null,null,null,null,"（単位：台）",null,null,null,null,"（単位：台）"]
[null,null,null,null,null,null,null,null,null,null,null,null,null,null,null,"R-1",null,null,"R-2",null,null,"R-3",null,null,"R-13",null,null,"R-14",null,null,null,null,null,null,null,"R-15",null,null,"R-16"]
[20,null,"No","営業\n所名",null,"所在地（○県○○市等）",null,null,null,null,null,null,null,null,null,"多言語案内用タブレット",null,null,"多言語翻訳システム機器",null,null,"多言語案内サイネージの導入",null,null,"ＥＴＣ読取機・プリンター",null,null,"携帯端末機器用充電機器",null,null,null,null,null,null,null,"非常用電源装置",null,null,"その他"]
[21,null,1]
[22,null,2]
[23,null,3]
[24,null,4]
[25,null,5]
[26,null,6]
[27,null,7]
[28,null,8]
[29,null,9]
[30,null,10]

{"sheet":"集計用","index":2,"n_rows":7,"n_cols":298,"rows_kept":7,"cut":false,"hidden":true,"merged":[[3,244,3,261],[3,262,3,279],[3,208,3,225],[3,226,3,243],[3,97,3,107],[3,118,3,127],[3,128,3,137],[3,138,3,147],[3,148,3,157],[3,168,3,177],[3,178,3,187],[3,188,3,197],[3,198,3,207],[3,158,3,167],[3,108,3,117],[3,57,3,66],[3,47,3,56],[3,67,3,76],[3,77,3,86],[3,87,3,96]]}
[1,2,3,4,5,6,7,8,9,10,11,12,13,14,15,16,17,18,19,20,21,22,23,24,25,26,27,28,29,30,31,32,33,34,35,36,37,38,39,40,41,42,43,44,45,46,47,48,49,50,51,52,53,54,55,56,57,58,59,60,61,62,63,64,65,66,67,68,69,70,71,72,73,74,75,76,77,78,79,80,81,82,83,84,85,86,87,88,89,90,91,92,93,94,95,96,97,98,99,100,101,102,103,104,105,106,107,108,109,110,111,112,113,114,115,116,117,118,119,120,121,122,123,124,125,126,127,128,129,130,131,132,133,134,135,136,137,138,139,140,141,142,143,144,145,146,147,148,149,150,151,152,153,154,155,156,157,158,159,160,161,162,163,164,165,166,167,168,169,170,171,172,173,174,175,176,177,178,179,180,181,182,183,184,185,186,187,188,189,190,191,192,193,194,195,196,197,198,199,200,201,202,203,204,205,206,207,208,209,210,211,212,213,214,215,216,217,218,219,220,221,222,223,224,225,226,227,228,229,230,231,232,233,234,235,236,237,238,239,240,241,242,243,244,245,246,247,248,249,250,251,252,253,254,255,256,257,258,259,260,261,262,263,264,265,266,267,268,269,270,271,272,273,274,275,276,277,278,279,280,281,282,283,284,285,286,287,288,289,290,291,292,293,294,295,296,297,298]
[null,null,null,null,null,null,null,null,null,null,null,null,null,null,null,null,null,null,null,null,null,null,null,null,null,null,null,null,null,null,null,null,null,null,null,null,null,null,null,null,null,null,null,null,null,null,null,16,19,24,29,39,44,49,54,59,64,16,19,24,29,39,44,49,54,59,64,16,19,24,29,39,44,49,54,59,64,16,19,24,29,39,44,49,54,59,64,16,19,24,29,39,44,49,54,59,64,16,19,24,29,39,44,49,54,59,64,5,16,19,24,29,39,44,49,54,59,64,16,19,24,29,39,44,49,54,59,64,16,19,24,29,39,44,49,54,59,64,16,19,24,29,39,44,49,54,59,64,16,19,24,29,39,44,49,54,59,64,16,19,24,29,39,44,49,54,59,64,16,19,24,29,39,44,49,54,59,64,16,19,24,29,39,44,49,54,59,64,16,19,24,29,39,44,49,54,59,64,16,19,24,29,39,44,49,54,59,64,4,6,16,19,22,25,28,36,39,4,6,16,19,22,25,28,36,39,4,6,16,19,22,25,28,36,39,4,6,16,19,22,25,28,36,39,4,6,16,19,22,25,28,36,39,4,6,16,19,22,25,28,36,39,4,6,16,19,22,25,28,36,39,4,6,16,19,22,25,28,36,39,4,6,16,19,22,25,28,36,39,4,6,16,19,22,25,28,36,39]
[null,null,null,null,null,null,null,null,null,null,null,null,null,null,null,null,null,null,null,null,null,null,null,null,null,null,null,null,null,null,null,null,null,null,null,null,null,null,null,null,null,null,null,null,null,null,null,1,{"$f":" AV3","v":1},{"$f":" AW3","v":1},1,1,1,1,1,1,1,{"$f":" BE3 + 1","v":2},2,2,2,2,2,2,2,2,2,{"$f":" BO3 + 1","v":3},3,3,3,3,3,3,3,3,3,{"$f":" BY3 + 1","v":4},4,4,4,4,4,4,4,4,4,{"$f":" CI3 + 1","v":5},5,5,5,5,5,5,5,5,5,{"$f":" CS3 + 1","v":6},6,6,6,6,6,6,6,6,6,{"$f":" DC3 & \"a\"","v":"6a"},{"$f":" DC3 + 1","v":7},7,7,7,7,{"$f":" DI3","v":7},7,7,7,7,{"$f":" DN3 + 1","v":8},8,8,8,8,8,8,8,8,8,{"$f":" DX3 + 1","v":9},9,9,9,9,9,9,9,9,9,{"$f":" EH3 + 1","v":10},10,10,10,10,10,10,10,10,10,{"$f":" ER3 + 1","v":11},11,11,11,11,11,11,11,11,11,{"$f":" FB3 + 1","v":12},12,12,12,12,12,12,12,12,12,{"$f":" FL3 + 1","v":13},13,13,13,13,13,13,13,13,{"$f":" FU3","v":13},{"$f":" FV3 + 1","v":14},14,14,14,14,14,14,14,14,14,{"$f":" GF3 + 1","v":15},15,15,15,15,15,15,15,15,15,{"$f":" GP3 + 1","v":16},16,16,16,16,16,16,16,16,16,21,{"$f":"HA3","v":21},{"$f":"HB3","v":21},21,21,21,21,21,21,{"$f":"HI3 + 1","v":22},{"$f":" HJ3","v":22},{"$f":" HK3","v":22},22,22,22,22,22,22,{"$f":"HR3 + 1","v":23},{"$f":" HS3","v":23},{"$f":" HT3","v":23},23,23,23,23,23,23,{"$f":"IA3 + 1","v":24},{"$f":" IB3","v":24},{"$f":" IC3","v":24},24,24,24,24,24,24,{"$f":"IJ3 + 1","v":25},{"$f":" IK3","v":25},{"$f":" IL3","v":25},25,25,25,25,25,25,{"$f":"IS3 + 1","v":26},{"$f":" IT3","v":26},{"$f":" IU3","v":26},26,26,26,26,26,26,{"$f":"JB3 + 1","v":27},{"$f":" JC3","v":27},{"$f":" JD3","v":27},27,27,27,27,27,27,{"$f":"JK3 + 1","v":28},{"$f":" JL3","v":28},{"$f":" JM3","v":28},28,28,28,28,28,28,{"$f":"JT3 + 1","v":29},{"$f":" JU3","v":29},{"$f":" JV3","v":29},29,29,29,29,29,29,{"$f":"KC3 + 1","v":30},{"$f":" KD3","v":30},{"$f":" KE3","v":30},30,30,30,30,30,30]
[null,null,null,null,null,null,null,null,null,null,null,null,null,null,null,null,null,null,null,null,null,null,null,null,null,null,null,null,null,null,null,null,null,null,null,null,null,null,null,null,null,null,null,null,null,null,null,"R-1（多言語タブレット）",null,null,null,null,null,null,null,null,null,"R-2（ポケトーク等）",null,null,null,null,null,null,null,null,null,"R-3（サイネージ）",null,null,null,null,null,null,null,null,null,"R-4（ホームページ）",null,null,null,null,null,null,null,null,null,"R-5（多言語研修）",null,null,null,null,null,null,null,null,null,"R-6（その他多言語化）",null,null,null,null,null,null,null,null,null,null,"R-7（多言語パンフレット）",null,null,null,null,null,null,null,null,null,"R-8(運転中ステッカー)",null,null,null,null,null,null,null,null,null,"R-9(ドライブ支援アプリ)",null,null,null,null,null,null,null,null,null,"R-10（クレジット決済機器）",null,null,null,null,null,null,null,null,null,"R-11（ＱＲ決済機器）",null,null,null,null,null,null,null,null,null,"R-12（交通系ＩＣ決済機器）",null,null,null,null,null,null,null,null,null,"R-13（ＥＴＣ読取機・プリンターの導入）",null,null,null,null,null,null,null,null,null,"R-14（情報端末への電源供給機器）",null,null,null,null,null,null,null,null,null,"R-15（非常用電源装置）",null,null,null,null,null,null,null,null,null,"R-16（その他付随機器）",null,null,null,null,null,null,null,null,null,"導入予定営業所の内訳",null,null,null,null,null,null,null,null,null,null,null,null,null,null,null,null,null,"導入予定営業所の内訳",null,null,null,null,null,null,null,null,null,null,null,null,null,null,null,null,null,"導入予定営業所の内訳",null,null,null,null,null,null,null,null,null,null,null,null,null,null,null,null,null,"導入予定営業所の内訳"]
[null,null,null,null,null,null,null,null,null,null,null,null,null,null,null,null,null,null,null,null,0,99,null,1,3,null,2,4,null,-1,5,null,-2,6,null,-3,7,null,-4,8,null,-5,9,null,-6,10,null,null,99,3,4,5,6,7,8,9,10,null,99,3,4,5,6,7,8,9,10,null,99,3,4,5,6,7,8,9,10,null,99,3,4,5,6,7,8,9,10,null,99,3,4,5,6,7,8,9,10,null,99,3,4,5,6,7,8,9,10,null,null,99,3,4,5,6,7,8,9,10,null,99,3,4,5,6,7,8,9,10,null,99,3,4,5,6,7,8,9,10,null,99,3,4,5,6,7,8,9,10,null,99,3,4,5,6,7,8,9,10,null,99,3,4,5,6,7,8,9,10,null,99,3,4,5,6,7,8,9,10,null,99,3,4,5,6,7,8,9,10,null,99,3,4,5,6,7,8,9,10,null,99,3,4,5,6,7,8,9,10,"営業所１",null,null,null,null,null,null,null,null,"営業所２",null,null,null,null,null,null,null,null,"営業所３",null,null,null,null,null,null,null,null,"営業所４",null,null,null,null,null,null,null,null,"営業所５",null,null,null,null,null,null,null,null,"営業所６",null,null,null,null,null,null,null,null,"営業所７",null,null,null,null,null,null,null,null,"営業所８",null,null,null,null,null,null,null,null,"営業所９",null,null,null,null,null,null,null,null,"営業所１０"]
["整理番号","事業者フラグ","番号","運輸局","支局","事業者名","住所","代表者氏名","ご担当者名","ご連絡先(ＴＥＬ)","ご連絡先(E-mail アドレス)","銀行名","金融機関コード","支店名","支店番号","口座の\n種類","口座番号","フリガナ","口座\n名義人","記載内容に誤りが無いこと","A：補助対象経費計","B：補助対象経費計","A＋B：補助対象経費計","A：要望額計","B：要望額計","A＋B：要望額計","A：内示額計","B：内示額計","A＋B：内示額計","様式１\nA：交付申請額計","様式１\nB：交付申請額計","様式１\nA+B：交付申請額計","様式２\nA：交付決定額計","様式２\nB：交付決定額計","様式２\nA+B：交付決定額計","様式３\nA：交付決定変更申請額計\n","様式３\nB：交付決定変更申請額計\n","様式３\nA+B：交付決定変更申請額計\n","様式４\nA：交付決定変更額計\n","様式４\nB：交付決定変更額計\n","様式４\nA+B：交付決定変更額計\n","様式６\nA：進捗状況額計\n","様式６\nB：進捗状況額計\n","様式６\nA+B：進捗状況額\n","様式７\nA：完了実績額計\n","様式７\nB：完了実績額計\n","様式７\nA+B：完了実績額計\n","申請台数","補助対象経費","要望額","内示額","様式１\n交付申請額","様式２\n交付決定額","様式３\n交付決定変更申請額","様式４\n交付決定変更額","様式６\n進捗状況額","様式７\n完了実績額","申請台数","補助対象経費","要望額","内示額","様式１\n交付申請額","様式２\n交付決定額","様式３\n交付決定変更申請額","様式４\n交付決定変更額","様式６\n進捗状況額","様式７\n完了実績額","申請台数","補助対象経費","要望額","内示額","様式１\n交付申請額","様式２\n交付決定額","様式３\n交付決定変更申請額","様式４\n交付決定変更額","様式６\n進捗状況額","様式７\n完了実績額","申請台数","補助対象経費","要望額","内示額","様式１\n交付申請額","様式２\n交付決定額","様式３\n交付決定変更申請額","様式４\n交付決定変更額","様式６\n進捗状況額","様式７\n完了実績額","申請台数","補助対象経費","要望額","内示額","様式１\n交付申請額","様式２\n交付決定額","様式３\n交付決定変更申請額","様式４\n交付決定変更額","様式６\n進捗状況額","様式７\n完了実績額","申請台数","補助対象経費","要望額","内示額","様式１\n交付申請額","様式２\n交付決定額","様式３\n交付決定変更申請額","様式４\n交付決定変更額","様式６\n進捗状況額","様式７\n完了実績額","事業概要","申請台数","補助対象経費","要望額","内示額","様式１\n交付申請額","様式２\n交付決定額","様式３\n交付決定変更申請額","様式４\n交付決定変更額","様式６\n進捗状況額","様式７\n完了実績額","申請台数","補助対象経費","要望額","内示額","様式１\n交付申請額","様式２\n交付決定額","様式３\n交付決定変更申請額","様式４\n交付決定変更額","様式６\n進捗状況額","様式７\n完了実績額","申請台数","補助対象経費","要望額","内示額","様式１\n交付申請額","様式２\n交付決定額","様式３\n交付決定変更申請額","様式４\n交付決定変更額","様式６\n進捗状況額","様式７\n完了実績額","申請台数","補助対象経費","要望額","内示額","様式１\n交付申請額","様式２\n交付決定額","様式３\n交付決定変更申請額","様式４\n交付決定変更額","様式６\n進捗状況額","様式７\n完了実績額","申請台数","補助対象経費","要望額","内示額","様式１\n交付申請額","様式２\n交付決定額","様式３\n交付決定変更申請額","様式４\n交付決定変更額","様式６\n進捗状況額","様式７\n完了実績額","申請台数","補助対象経費","要望額","内示額","様式１\n交付申請額","様式２\n交付決定額","様式３\n交付決定変更申請額","様式４\n交付決定変更額","様式６\n進捗状況額","様式７\n完了実績額","申請台数","補助対象経費","要望額","内示額","様式１\n交付申請額","様式２\n交付決定額","様式３\n交付決定変更申請額","様式４\n交付決定変更額","様式６\n進捗状況額","様式７\n完了実績額","申請台数","補助対象経費","要望額","内示額","様式１\n交付申請額","様式２\n交付決定額","様式３\n交付決定変更申請額","様式４\n交付決定変更額","様式６\n進捗状況額","様式７\n完了実績額","申請台数","補助対象経費","要望額","内示額","様式１\n交付申請額","様式２\n交付決定額","様式３\n交付決定変更申請額","様式４\n交付決定変更額","様式６\n進捗状況額","様式７\n完了実績額","申請台数","補助対象経費","要望額","内示額","様式１\n交付申請額","様式２\n交付決定額","様式３\n交付決定変更申請額","様式４\n交付決定変更額","様式６\n進捗状況額","様式７\n完了実績額","営業所名","所在地","多言語案内用タブレット","多言語翻訳システム機器","多言語案内サイネージ","ETC読取機・プリンター","携帯端末機器用重電機器","非常用電源装置","その他","営業所名","所在地","多言語案内用タブレット","多言語翻訳システム機器","多言語案内サイネージ","ETC読取機・プリンター","携帯端末機器用重電機器","非常用電源装置","その他","営業所名","所在地","多言語案内用タブレット","多言語翻訳システム機器","多言語案内サイネージ","ETC読取機・プリンター","携帯端末機器用重電機器","非常用電源装置","その他","営業所名","所在地","多言語案内用タブレット","多言語翻訳システム機器","多言語案内サイネージ","ETC読取機・プリンター","携帯端末機器用重電機器","非常用電源装置","その他","営業所名","所在地","多言語案内用タブレット","多言語翻訳システム機器","多言語案内サイネージ","ETC読取機・プリンター","携帯端末機器用重電機器","非常用電源装置","その他","営業所名","所在地","多言語案内用タブレット","多言語翻訳システム機器","多言語案内サイネージ","ETC読取機・プリンター","携帯端末機器用重電機器","非常用電源装置","その他","営業所名","所在地","多言語案内用タブレット","多言語翻訳システム機器","多言語案内サイネージ","ETC読取機・プリンター","携帯端末機器用重電機器","非常用電源装置","その他","営業所名","所在地","多言語案内用タブレット","多言語翻訳システム機器","多言語案内サイネージ","ETC読取機・プリンター","携帯端末機器用重電機器","非常用電源装置","その他","営業所名","所在地","多言語案内用タブレット","多言語翻訳システム機器","多言語案内サイネージ","ETC読取機・プリンター","携帯端末機器用重電機器","非常用電源装置","その他","営業所名","所在地","多言語案内用タブレット","多言語翻訳システム機器","多言語案内サイネージ","ETC読取機・プリンター","携帯端末機器用重電機器","非常用電源装置","その他"]
[{"$f":"レンタカー!$F$3","v":0},{"$f":"レンタカー!$BQ$1","v":0},null,null,null,{"$f":"レンタカー!$F$4","v":0},{"$f":"レンタカー!$Q$4","v":0},{"$f":"レンタカー!$F$6","v":0},{"$f":"レンタカー!$Q$6","v":0},{"$f":"レンタカー!$F$8","v":0},{"$f":"レンタカー!$Q$8","v":0},{"$f":"レンタカー!$F$12","v":0},{"$f":"レンタカー!$Q$12","v":0},{"$f":"レンタカー!$F$14","v":0},{"$f":"レンタカー!$F$16","v":0},{"$f":"レンタカー!$F$18","v":0},{"$f":"レンタカー!$F$20","v":0},{"$f":"レンタカー!$F$22","v":0},{"$f":"レンタカー!$F$24","v":0},null,{"$f":"SUMIFS($AV$7:$GZ$7,$AV$5:$GZ$5,U5)","v":0},{"$f":"SUMIFS($AV$7:$GZ$7,$AV$5:$GZ$5,V5)","v":0},{"$f":"U7+V7","v":0},0,0,{"$f":"X7+Y7","v":0},0,0,{"$f":"AA7+AB7","v":0},0,0,{"$f":"AD7+AE7","v":0},0,0,{"$f":"AG7+AH7","v":0},0,0,{"$f":"AJ7+AK7","v":0},0,0,{"$f":"AM7+AN7","v":0},0,0,{"$f":"AP7+AQ7","v":0},0,0,{"$f":"AS7+AT7","v":0},{"$f":"VLOOKUP(AV3,レンタカー!$A:$BL,AV2,0)","v":0},{"$f":"VLOOKUP(AW3,レンタカー!$A:$BL,AW2,0)","v":0},{"$f":"VLOOKUP(AX3,レンタカー!$A:$BL,AX2,0)","v":0},{"$f":"VLOOKUP(AY3,レンタカー!$A:$BL,AY2,0)","v":0},{"$f":"VLOOKUP(AZ3,レンタカー!$A:$BL,AZ2,0)","v":""},{"$f":"VLOOKUP(BA3,レンタカー!$A:$BL,BA2,0)","v":0},{"$f":"VLOOKUP(BB3,レンタカー!$A:$BL,BB2,0)","v":0},{"$f":"VLOOKUP(BC3,レンタカー!$A:$BL,BC2,0)","v":0},{"$f":"VLOOKUP(BD3,レンタカー!$A:$BL,BD2,0)","v":0},{"$f":"VLOOKUP(BE3,レンタカー!$A:$BL,BE2,0)","v":0},{"$f":"VLOOKUP(BF3,レンタカー!$A:$BL,BF2,0)","v":0},{"$f":"VLOOKUP(BG3,レンタカー!$A:$BL,BG2,0)","v":0},{"$f":"VLOOKUP(BH3,レンタカー!$A:$BL,BH2,0)","v":0},{"$f":"VLOOKUP(BI3,レンタカー!$A:$BL,BI2,0)","v":0},{"$f":"VLOOKUP(BJ3,レンタカー!$A:$BL,BJ2,0)","v":""},{"$f":"VLOOKUP(BK3,レンタカー!$A:$BL,BK2,0)","v":0},{"$f":"VLOOKUP(BL3,レンタカー!$A:$BL,BL2,0)","v":0},{"$f":"VLOOKUP(BM3,レンタカー!$A:$BL,BM2,0)","v":0},{"$f":"VLOOKUP(BN3,レンタカー!$A:$BL,BN2,0)","v":0},{"$f":"VLOOKUP(BO3,レンタカー!$A:$BL,BO2,0)","v":0},{"$f":"VLOOKUP(BP3,レンタカー!$A:$BL,BP2,0)","v":0},{"$f":"VLOOKUP(BQ3,レンタカー!$A:$BL,BQ2,0)","v":0},{"$f":"VLOOKUP(BR3,レンタカー!$A:$BL,BR2,0)","v":0},{"$f":"VLOOKUP(BS3,レンタカー!$A:$BL,BS2,0)","v":0},{"$f":"VLOOKUP(BT3,レンタカー!$A:$BL,BT2,0)","v":""},{"$f":"VLOOKUP(BU3,レンタカー!$A:$BL,BU2,0)","v":0},{"$f":"VLOOKUP(BV3,レンタカー!$A:$BL,BV2,0)","v":0},{"$f":"VLOOKUP(BW3,レンタカー!$A:$BL,BW2,0)","v":0},{"$f":"VLOOKUP(BX3,レンタカー!$A:$BL,BX2,0)","v":0},{"$f":"VLOOKUP(BY3,レンタカー!$A:$BL,BY2,0)","v":0},{"$f":"VLOOKUP(BZ3,レンタカー!$A:$BL,BZ2,0)","v":"ー"},{"$f":"VLOOKUP(CA3,レンタカー!$A:$BL,CA2,0)","v":0},{"$f":"VLOOKUP(CB3,レンタカー!$A:$BL,CB2,0)","v":0},{"$f":"VLOOKUP(CC3,レンタカー!$A:$BL,CC2,0)","v":0},{"$f":"VLOOKUP(CD3,レンタカー!$A:$BL,CD2,0)","v":""},{"$f":"VLOOKUP(CE3,レンタカー!$A:$BL,CE2,0)","v":0},{"$f":"VLOOKUP(CF3,レンタカー!$A:$BL,CF2,0)","v":0},{"$f":"VLOOKUP(CG3,レンタカー!$A:$BL,CG2,0)","v":0},{"$f":"VLOOKUP(CH3,レンタカー!$A:$BL,CH2,0)","v":0},{"$f":"VLOOKUP(CI3,レンタカー!$A:$BL,CI2,0)","v":0},{"$f":"VLOOKUP(CJ3,レンタカー!$A:$BL,CJ2,0)","v":0},{"$f":"VLOOKUP(CK3,レンタカー!$A:$BL,CK2,0)","v":0},{"$f":"VLOOKUP(CL3,レンタカー!$A:$BL,CL2,0)","v":0},{"$f":"VLOOKUP(CM3,レンタカー!$A:$BL,CM2,0)","v":0},{"$f":"VLOOKUP(CN3,レンタカー!$A:$BL,CN2,0)","v":""},{"$f":"VLOOKUP(CO3,レンタカー!$A:$BL,CO2,0)","v":0},{"$f":"VLOOKUP(CP3,レンタカー!$A:$BL,CP2,0)","v":0},{"$f":"VLOOKUP(CQ3,レンタカー!$A:$BL,CQ2,0)","v":0},{"$f":"VLOOKUP(CR3,レンタカー!$A:$BL,CR2,0)","v":0},{"$f":"VLOOKUP(CS3,レンタカー!$A:$BL,CS2,0)","v":0},{"$f":"VLOOKUP(CT3,レンタカー!$A:$BL,CT2,0)","v":0},{"$f":"VLOOKUP(CU3,レンタカー!$A:$BL,CU2,0)","v":0},{"$f":"VLOOKUP(CV3,レンタカー!$A:$BL,CV2,0)","v":0},{"$f":"VLOOKUP(CW3,レンタカー!$A:$BL,CW2,0)","v":0},{"$f":"VLOOKUP(CX3,レンタカー!$A:$BL,CX2,0)","v":""},{"$f":"VLOOKUP(CY3,レンタカー!$A:$BL,CY2,0)","v":0},{"$f":"VLOOKUP(CZ3,レンタカー!$A:$BL,CZ2,0)","v":0},{"$f":"VLOOKUP(DA3,レンタカー!$A:$BL,DA2,0)","v":0},{"$f":"VLOOKUP(DB3,レンタカー!$A:$BL,DB2,0)","v":0},{"$f":"VLOOKUP(DC3,レンタカー!$A:$BL,DC2,0)","v":0},{"$f":"VLOOKUP(DD3,レンタカー!$A:$BL,DD2,0)","v":"事業概要："},{"$f":"VLOOKUP(DE3,レンタカー!$A:$BL,DE2,0)","v":0},{"$f":"VLOOKUP(DF3,レンタカー!$A:$BL,DF2,0)","v":0},{"$f":"VLOOKUP(DG3,レンタカー!$A:$BL,DG2,0)","v":0},{"$f":"VLOOKUP(DH3,レンタカー!$A:$BL,DH2,0)","v":0},{"$f":"VLOOKUP(DI3,レンタカー!$A:$BL,DI2,0)","v":""},{"$f":"VLOOKUP(DJ3,レンタカー!$A:$BL,DJ2,0)","v":0},{"$f":"VLOOKUP(DK3,レンタカー!$A:$BL,DK2,0)","v":0},{"$f":"VLOOKUP(DL3,レンタカー!$A:$BL,DL2,0)","v":0},{"$f":"VLOOKUP(DM3,レンタカー!$A:$BL,DM2,0)","v":0},{"$f":"VLOOKUP(DN3,レンタカー!$A:$BL,DN2,0)","v":0},{"$f":"VLOOKUP(DO3,レンタカー!$A:$BL,DO2,0)","v":0},{"$f":"VLOOKUP(DP3,レンタカー!$A:$BL,DP2,0)","v":0},{"$f":"VLOOKUP(DQ3,レンタカー!$A:$BL,DQ2,0)","v":0},{"$f":"VLOOKUP(DR3,レンタカー!$A:$BL,DR2,0)","v":0},{"$f":"VLOOKUP(DS3,レンタカー!$A:$BL,DS2,0)","v":""},{"$f":"VLOOKUP(DT3,レンタカー!$A:$BL,DT2,0)","v":0},{"$f":"VLOOKUP(DU3,レンタカー!$A:$BL,DU2,0)","v":0},{"$f":"VLOOKUP(DV3,レンタカー!$A:$BL,DV2,0)","v":0},{"$f":"VLOOKUP(DW3,レンタカー!$A:$BL,DW2,0)","v":0},{"$f":"VLOOKUP(DX3,レンタカー!$A:$BL,DX2,0)","v":0},{"$f":"VLOOKUP(DY3,レンタカー!$A:$BL,DY2,0)","v":0},{"$f":"VLOOKUP(DZ3,レンタカー!$A:$BL,DZ2,0)","v":0},{"$f":"VLOOKUP(EA3,レンタカー!$A:$BL,EA2,0)","v":0},{"$f":"VLOOKUP(EB3,レンタカー!$A:$BL,EB2,0)","v":0},{"$f":"VLOOKUP(EC3,レンタカー!$A:$BL,EC2,0)","v":""},{"$f":"VLOOKUP(ED3,レンタカー!$A:$BL,ED2,0)","v":0},{"$f":"VLOOKUP(EE3,レンタカー!$A:$BL,EE2,0)","v":0},{"$f":"VLOOKUP(EF3,レンタカー!$A:$BL,EF2,0)","v":0},{"$f":"VLOOKUP(EG3,レンタカー!$A:$BL,EG2,0)","v":0},{"$f":"VLOOKUP(EH3,レンタカー!$A:$BL,EH2,0)","v":0},{"$f":"VLOOKUP(EI3,レンタカー!$A:$BL,EI2,0)","v":0},{"$f":"VLOOKUP(EJ3,レンタカー!$A:$BL,EJ2,0)","v":0},{"$f":"VLOOKUP(EK3,レンタカー!$A:$BL,EK2,0)","v":0},{"$f":"VLOOKUP(EL3,レンタカー!$A:$BL,EL2,0)","v":0},{"$f":"VLOOKUP(EM3,レンタカー!$A:$BL,EM2,0)","v":""},{"$f":"VLOOKUP(EN3,レンタカー!$A:$BL,EN2,0)","v":0},{"$f":"VLOOKUP(EO3,レンタカー!$A:$BL,EO2,0)","v":0},{"$f":"VLOOKUP(EP3,レンタカー!$A:$BL,EP2,0)","v":0},{"$f":"VLOOKUP(EQ3,レンタカー!$A:$BL,EQ2,0)","v":0},{"$f":"VLOOKUP(ER3,レンタカー!$A:$BL,ER2,0)","v":0},{"$f":"VLOOKUP(ES3,レンタカー!$A:$BL,ES2,0)","v":0},{"$f":"VLOOKUP(ET3,レンタカー!$A:$BL,ET2,0)","v":0},{"$f":"VLOOKUP(EU3,レンタカー!$A:$BL,EU2,0)","v":0},{"$f":"VLOOKUP(EV3,レンタカー!$A:$BL,EV2,0)","v":0},{"$f":"VLOOKUP(EW3,レンタカー!$A:$BL,EW2,0)","v":""},{"$f":"VLOOKUP(EX3,レンタカー!$A:$BL,EX2,0)","v":0},{"$f":"VLOOKUP(EY3,レンタカー!$A:$BL,EY2,0)","v":0},{"$f":"VLOOKUP(EZ3,レンタカー!$A:$BL,EZ2,0)","v":0},{"$f":"VLOOKUP(FA3,レンタカー!$A:$BL,FA2,0)","v":0},{"$f":"VLOOKUP(FB3,レンタカー!$A:$BL,FB2,0)","v":0},{"$f":"VLOOKUP(FC3,レンタカー!$A:$BL,FC2,0)","v":0},{"$f":"VLOOKUP(FD3,レンタカー!$A:$BL,FD2,0)","v":0},{"$f":"VLOOKUP(FE3,レンタカー!$A:$BL,FE2,0)","v":0},{"$f":"VLOOKUP(FF3,レンタカー!$A:$BL,FF2,0)","v":0},{"$f":"VLOOKUP(FG3,レンタカー!$A:$BL,FG2,0)","v":""},{"$f":"VLOOKUP(FH3,レンタカー!$A:$BL,FH2,0)","v":0},{"$f":"VLOOKUP(FI3,レンタカー!$A:$BL,FI2,0)","v":0},{"$f":"VLOOKUP(FJ3,レンタカー!$A:$BL,FJ2,0)","v":0},{"$f":"VLOOKUP(FK3,レンタカー!$A:$BL,FK2,0)","v":0},{"$f":"VLOOKUP(FL3,レンタカー!$A:$BL,FL2,0)","v":0},{"$f":"VLOOKUP(FM3,レンタカー!$A:$BL,FM2,0)","v":0},{"$f":"VLOOKUP(FN3,レンタカー!$A:$BL,FN2,0)","v":0},{"$f":"VLOOKUP(FO3,レンタカー!$A:$BL,FO2,0)","v":0},{"$f":"VLOOKUP(FP3,レンタカー!$A:$BL,FP2,0)","v":0},{"$f":"VLOOKUP(FQ3,レンタカー!$A:$BL,FQ2,0)","v":""},{"$f":"VLOOKUP(FR3,レンタカー!$A:$BL,FR2,0)","v":0},{"$f":"VLOOKUP(FS3,レンタカー!$A:$BL,FS2,0)","v":0},{"$f":"VLOOKUP(FT3,レンタカー!$A:$BL,FT2,0)","v":0},{"$f":"VLOOKUP(FU3,レンタカー!$A:$BL,FU2,0)","v":0},{"$f":"VLOOKUP(FV3,レンタカー!$A:$BL,FV2,0)","v":0},{"$f":"VLOOKUP(FW3,レンタカー!$A:$BL,FW2,0)","v":0},{"$f":"VLOOKUP(FX3,レンタカー!$A:$BL,FX2,0)","v":0},{"$f":"VLOOKUP(FY3,レンタカー!$A:$BL,FY2,0)","v":0},{"$f":"VLOOKUP(FZ3,レンタカー!$A:$BL,FZ2,0)","v":0},{"$f":"VLOOKUP(GA3,レンタカー!$A:$BL,GA2,0)","v":""},{"$f":"VLOOKUP(GB3,レンタカー!$A:$BL,GB2,0)","v":0},{"$f":"VLOOKUP(GC3,レンタカー!$A:$BL,GC2,0)","v":0},{"$f":"VLOOKUP(GD3,レンタカー!$A:$BL,GD2,0)","v":0},{"$f":"VLOOKUP(GE3,レンタカー!$A:$BL,GE2,0)","v":0},{"$f":"VLOOKUP(GF3,レンタカー!$A:$BL,GF2,0)","v":0},{"$f":"VLOOKUP(GG3,レンタカー!$A:$BL,GG2,0)","v":0},{"$f":"VLOOKUP(GH3,レンタカー!$A:$BL,GH2,0)","v":0},{"$f":"VLOOKUP(GI3,レンタカー!$A:$BL,GI2,0)","v":0},{"$f":"VLOOKUP(GJ3,レンタカー!$A:$BL,GJ2,0)","v":0},{"$f":"VLOOKUP(GK3,レンタカー!$A:$BL,GK2,0)","v":""},{"$f":"VLOOKUP(GL3,レンタカー!$A:$BL,GL2,0)","v":0},{"$f":"VLOOKUP(GM3,レンタカー!$A:$BL,GM2,0)","v":0},{"$f":"VLOOKUP(GN3,レンタカー!$A:$BL,GN2,0)","v":0},{"$f":"VLOOKUP(GO3,レンタカー!$A:$BL,GO2,0)","v":0},{"$f":"VLOOKUP(GP3,レンタカー!$A:$BL,GP2,0)","v":0},{"$f":"VLOOKUP(GQ3,レンタカー!$A:$BL,GQ2,0)","v":0},{"$f":"VLOOKUP(GR3,レンタカー!$A:$BL,GR2,0)","v":0},{"$f":"VLOOKUP(GS3,レンタカー!$A:$BL,GS2,0)","v":0},{"$f":"VLOOKUP(GT3,レンタカー!$A:$BL,GT2,0)","v":0},{"$f":"VLOOKUP(GU3,レンタカー!$A:$BL,GU2,0)","v":""},{"$f":"VLOOKUP(GV3,レンタカー!$A:$BL,GV2,0)","v":0},{"$f":"VLOOKUP(GW3,レンタカー!$A:$BL,GW2,0)","v":0},{"$f":"VLOOKUP(GX3,レンタカー!$A:$BL,GX2,0)","v":0},{"$f":"VLOOKUP(GY3,レンタカー!$A:$BL,GY2,0)","v":0},{"$f":"VLOOKUP(GZ3,レンタカー!$A:$BL,GZ2,0)","v":0},{"$f":"VLOOKUP(HA3,レンタカー!$A:$BL,HA2,0)","v":0},{"$f":"VLOOKUP(HB3,レンタカー!$A:$BL,HB2,0)","v":0},{"$f":"VLOOKUP(HC3,レンタカー!$A:$BL,HC2,0)","v":0},{"$f":"VLOOKUP(HD3,レンタカー!$A:$BL,HD2,0)","v":0},{"$f":"VLOOKUP(HE3,レンタカー!$A:$BL,HE2,0)","v":0},{"$f":"VLOOKUP(HF3,レンタカー!$A:$BL,HF2,0)","v":0},{"$f":"VLOOKUP(HG3,レンタカー!$A:$BL,HG2,0)","v":0},{"$f":"VLOOKUP(HH3,レンタカー!$A:$BL,HH2,0)","v":0},{"$f":"VLOOKUP(HI3,レンタカー!$A:$BL,HI2,0)","v":0},{"$f":"VLOOKUP(HJ3,レンタカー!$A:$BL,HJ2,0)","v":0},{"$f":"VLOOKUP(HK3,レンタカー!$A:$BL,HK2,0)","v":0},{"$f":"VLOOKUP(HL3,レンタカー!$A:$BL,HL2,0)","v":0},{"$f":"VLOOKUP(HM3,レンタカー!$A:$BL,HM2,0)","v":0},{"$f":"VLOOKUP(HN3,レンタカー!$A:$BL,HN2,0)","v":0},{"$f":"VLOOKUP(HO3,レンタカー!$A:$BL,HO2,0)","v":0},{"$f":"VLOOKUP(HP3,レンタカー!$A:$BL,HP2,0)","v":0},{"$f":"VLOOKUP(HQ3,レンタカー!$A:$BL,HQ2,0)","v":0},{"$f":"VLOOKUP(HR3,レンタカー!$A:$BL,HR2,0)","v":0},{"$f":"VLOOKUP(HS3,レンタカー!$A:$BL,HS2,0)","v":0},{"$f":"VLOOKUP(HT3,レンタカー!$A:$BL,HT2,0)","v":0},{"$f":"VLOOKUP(HU3,レンタカー!$A:$BL,HU2,0)","v":0},{"$f":"VLOOKUP(HV3,レンタカー!$A:$BL,HV2,0)","v":0},{"$f":"VLOOKUP(HW3,レンタカー!$A:$BL,HW2,0)","v":0},{"$f":"VLOOKUP(HX3,レンタカー!$A:$BL,HX2,0)","v":0},{"$f":"VLOOKUP(HY3,レンタカー!$A:$BL,HY2,0)","v":0},{"$f":"VLOOKUP(HZ3,レンタカー!$A:$BL,HZ2,0)","v":0},{"$f":"VLOOKUP(IA3,レンタカー!$A:$BL,IA2,0)","v":0},{"$f":"VLOOKUP(IB3,レンタカー!$A:$BL,IB2,0)","v":0},{"$f":"VLOOKUP(IC3,レンタカー!$A:$BL,IC2,0)","v":0},{"$f":"VLOOKUP(ID3,レンタカー!$A:$BL,ID2,0)","v":0},{"$f":"VLOOKUP(IE3,レンタカー!$A:$BL,IE2,0)","v":0},{"$f":"VLOOKUP(IF3,レンタカー!$A:$BL,IF2,0)","v":0},{"$f":"VLOOKUP(IG3,レンタカー!$A:$BL,IG2,0)","v":0},{"$f":"VLOOKUP(IH3,レンタカー!$A:$BL,IH2,0)","v":0},{"$f":"VLOOKUP(II3,レンタカー!$A:$BL,II2,0)","v":0},{"$f":"VLOOKUP(IJ3,レンタカー!$A:$BL,IJ2,0)","v":0},{"$f":"VLOOKUP(IK3,レンタカー!$A:$BL,IK2,0)","v":0},{"$f":"VLOOKUP(IL3,レンタカー!$A:$BL,IL2,0)","v":0},{"$f":"VLOOKUP(IM3,レンタカー!$A:$BL,IM2,0)","v":0},{"$f":"VLOOKUP(IN3,レンタカー!$A:$BL,IN2,0)","v":0},{"$f":"VLOOKUP(IO3,レンタカー!$A:$BL,IO2,0)","v":0},{"$f":"VLOOKUP(IP3,レンタカー!$A:$BL,IP2,0)","v":0},{"$f":"VLOOKUP(IQ3,レンタカー!$A:$BL,IQ2,0)","v":0},{"$f":"VLOOKUP(IR3,レンタカー!$A:$BL,IR2,0)","v":0},{"$f":"VLOOKUP(IS3,レンタカー!$A:$BL,IS2,0)","v":0},{"$f":"VLOOKUP(IT3,レンタカー!$A:$BL,IT2,0)","v":0},{"$f":"VLOOKUP(IU3,レンタカー!$A:$BL,IU2,0)","v":0},{"$f":"VLOOKUP(IV3,レンタカー!$A:$BL,IV2,0)","v":0},{"$f":"VLOOKUP(IW3,レンタカー!$A:$BL,IW2,0)","v":0},{"$f":"VLOOKUP(IX3,レンタカー!$A:$BL,IX2,0)","v":0},{"$f":"VLOOKUP(IY3,レンタカー!$A:$BL,IY2,0)","v":0},{"$f":"VLOOKUP(IZ3,レンタカー!$A:$BL,IZ2,0)","v":0},{"$f":"VLOOKUP(JA3,レンタカー!$A:$BL,JA2,0)","v":0},{"$f":"VLOOKUP(JB3,レンタカー!$A:$BL,JB2,0)","v":0},{"$f":"VLOOKUP(JC3,レンタカー!$A:$BL,JC2,0)","v":0},{"$f":"VLOOKUP(JD3,レンタカー!$A:$BL,JD2,0)","v":0},{"$f":"VLOOKUP(JE3,レンタカー!$A:$BL,JE2,0)","v":0},{"$f":"VLOOKUP(JF3,レンタカー!$A:$BL,JF2,0)","v":0},{"$f":"VLOOKUP(JG3,レンタカー!$A:$BL,JG2,0)","v":0},{"$f":"VLOOKUP(JH3,レンタカー!$A:$BL,JH2,0)","v":0},{"$f":"VLOOKUP(JI3,レンタカー!$A:$BL,JI2,0)","v":0},{"$f":"VLOOKUP(JJ3,レンタカー!$A:$BL,JJ2,0)","v":0},{"$f":"VLOOKUP(JK3,レンタカー!$A:$BL,JK2,0)","v":0},{"$f":"VLOOKUP(JL3,レンタカー!$A:$BL,JL2,0)","v":0},{"$f":"VLOOKUP(JM3,レンタカー!$A:$BL,JM2,0)","v":0},{"$f":"VLOOKUP(JN3,レンタカー!$A:$BL,JN2,0)","v":0},{"$f":"VLOOKUP(JO3,レンタカー!$A:$BL,JO2,0)","v":0},{"$f":"VLOOKUP(JP3,レンタカー!$A:$BL,JP2,0)","v":0},{"$f":"VLOOKUP(JQ3,レンタカー!$A:$BL,JQ2,0)","v":0},{"$f":"VLOOKUP(JR3,レンタカー!$A:$BL,JR2,0)","v":0},{"$f":"VLOOKUP(JS3,レンタカー!$A:$BL,JS2,0)","v":0},{"$f":"VLOOKUP(JT3,レンタカー!$A:$BL,JT2,0)","v":0},{"$f":"VLOOKUP(JU3,レンタカー!$A:$BL,JU2,0)","v":0},{"$f":"VLOOKUP(JV3,レンタカー!$A:$BL,JV2,0)","v":0},{"$f":"VLOOKUP(JW3,レンタカー!$A:$BL,JW2,0)","v":0},{"$f":"VLOOKUP(JX3,レンタカー!$A:$BL,JX2,0)","v":0},{"$f":"VLOOKUP(JY3,レンタカー!$A:$BL,JY2,0)","v":0},{"$f":"VLOOKUP(JZ3,レンタカー!$A:$BL,JZ2,0)","v":0},{"$f":"VLOOKUP(KA3,レンタカー!$A:$BL,KA2,0)","v":0},{"$f":"VLOOKUP(KB3,レンタカー!$A:$BL,KB2,0)","v":0},{"$f":"VLOOKUP(KC3,レンタカー!$A:$BL,KC2,0)","v":0},{"$f":"VLOOKUP(KD3,レンタカー!$A:$BL,KD2,0)","v":0},{"$f":"VLOOKUP(KE3,レンタカー!$A:$BL,KE2,0)","v":0},{"$f":"VLOOKUP(KF3,レンタカー!$A:$BL,KF2,0)","v":0},{"$f":"VLOOKUP(KG3,レンタカー!$A:$BL,KG2,0)","v":0},{"$f":"VLOOKUP(KH3,レンタカー!$A:$BL,KH2,0)","v":0},{"$f":"VLOOKUP(KI3,レンタカー!$A:$BL,KI2,0)","v":0},{"$f":"VLOOKUP(KJ3,レンタカー!$A:$BL,KJ2,0)","v":0},{"$f":"VLOOKUP(KK3,レンタカー!$A:$BL,KK2,0)","v":0},{"$f":"VLOOKUP(KL3,レンタカー!$A:$BL,KL2,0)","v":0}]

{"sheet":"エラーチェック","index":3,"n_rows":12,"n_cols":320,"rows_kept":12,"cut":false,"hidden":true,"merged":[[3,158,3,167],[3,47,3,56],[3,57,3,66],[3,67,3,76],[3,77,3,86],[3,87,3,96],[3,97,3,107],[3,108,3,117],[3,118,3,127],[3,128,3,137],[3,138,3,147],[3,148,3,157],[3,244,3,261],[3,262,3,279],[3,168,3,177],[3,178,3,187],[3,188,3,197],[3,198,3,207],[3,208,3,225],[3,226,3,243]]}
[1,2,3,4,5,6,7,8,9,10,11,12,13,14,15,16,17,18,19,20,21,22,23,24,25,26,27,28,29,30,31,32,33,34,35,36,37,38,39,40,41,42,43,44,45,46,47,48,49,50,51,52,53,54,55,56,57,58,59,60,61,62,63,64,65,66,67,68,69,70,71,72,73,74,75,76,77,78,79,80,81,82,83,84,85,86,87,88,89,90,91,92,93,94,95,96,97,98,99,100,101,102,103,104,105,106,107,108,109,110,111,112,113,114,115,116,117,118,119,120,121,122,123,124,125,126,127,128,129,130,131,132,133,134,135,136,137,138,139,140,141,142,143,144,145,146,147,148,149,150,151,152,153,154,155,156,157,158,159,160,161,162,163,164,165,166,167,168,169,170,171,172,173,174,175,176,177,178,179,180,181,182,183,184,185,186,187,188,189,190,191,192,193,194,195,196,197,198,199,200,201,202,203,204,205,206,207,208,209,210,211,212,213,214,215,216,217,218,219,220,221,222,223,224,225,226,227,228,229,230,231,232,233,234,235,236,237,238,239,240,241,242,243,244,245,246,247,248,249,250,251,252,253,254,255,256,257,258,259,260,261,262,263,264,265,266,267,268,269,270,271,272,273,274,275,276,277,278,279,280,281,282,283,284,285,286,287,288,289,290,291,292,293,294,295,296,297,298]
[null,null,null,null,null,null,null,null,null,null,null,null,null,null,null,null,null,null,null,null,null,null,null,null,null,null,null,null,null,null,null,null,null,null,null,null,null,null,null,null,null,null,null,null,null,null,null,16,19,24,29,39,44,49,54,59,64,16,19,24,29,39,44,49,54,59,64,16,19,24,29,39,44,49,54,59,64,16,19,24,29,39,44,49,54,59,64,16,19,24,29,39,44,49,54,59,64,16,19,24,29,39,44,49,54,59,64,5,16,19,24,29,39,44,49,54,59,64,16,19,24,29,39,44,49,54,59,64,16,19,24,29,39,44,49,54,59,64,16,19,24,29,39,44,49,54,59,64,16,19,24,29,39,44,49,54,59,64,16,19,24,29,39,44,49,54,59,64,16,19,24,29,39,44,49,54,59,64,16,19,24,29,39,44,49,54,59,64,16,19,24,29,39,44,49,54,59,64,16,19,24,29,39,44,49,54,59,64,4,6,16,19,22,25,28,36,39,4,6,16,19,22,25,28,36,39,4,6,16,19,22,25,28,36,39,4,6,16,19,22,25,28,36,39,4,6,16,19,22,25,28,36,39,4,6,16,19,22,25,28,36,39,4,6,16,19,22,25,28,36,39,4,6,16,19,22,25,28,36,39,4,6,16,19,22,25,28,36,39,4,6,16,19,22,25,28,36,39]
[null,null,null,null,null,null,null,null,null,null,null,null,null,null,null,null,null,null,null,null,null,null,null,null,null,null,null,null,null,null,null,null,null,null,null,null,null,null,null,null,null,null,null,null,null,null,null,1,{"$f":" AV3","v":1},{"$f":" AW3","v":1},1,1,1,1,1,1,1,{"$f":" BE3 + 1","v":2},2,2,2,2,2,2,2,2,2,{"$f":" BO3 + 1","v":3},3,3,3,3,3,3,3,3,3,{"$f":" BY3 + 1","v":4},4,4,4,4,4,4,4,4,4,{"$f":" CI3 + 1","v":5},5,5,5,5,5,5,5,5,5,{"$f":" CS3 + 1","v":6},6,6,6,6,6,6,6,6,6,{"$f":" DC3 & \"a\"","v":"6a"},{"$f":" DC3 + 1","v":7},7,7,7,7,{"$f":" DI3","v":7},7,7,7,7,{"$f":" DN3 + 1","v":8},8,8,8,8,8,8,8,8,8,{"$f":" DX3 + 1","v":9},9,9,9,9,9,9,9,9,9,{"$f":" EH3 + 1","v":10},10,10,10,10,10,10,10,10,10,{"$f":" ER3 + 1","v":11},11,11,11,11,11,11,11,11,11,{"$f":" FB3 + 1","v":12},12,12,12,12,12,12,12,12,12,{"$f":" FL3 + 1","v":13},13,13,13,13,13,13,13,13,{"$f":" FU3","v":13},{"$f":" FV3 + 1","v":14},14,14,14,14,14,14,14,14,14,{"$f":" GF3 + 1","v":15},15,15,15,15,15,15,15,15,15,{"$f":" GP3 + 1","v":16},16,16,16,16,16,16,16,16,16,21,{"$f":"HA3","v":21},{"$f":"HB3","v":21},21,21,21,21,21,21,{"$f":"HI3 + 1","v":22},{"$f":" HJ3","v":22},{"$f":" HK3","v":22},22,22,22,22,22,22,{"$f":"HR3 + 1","v":23},{"$f":" HS3","v":23},{"$f":" HT3","v":23},23,23,23,23,23,23,{"$f":"IA3 + 1","v":24},{"$f":" IB3","v":24},{"$f":" IC3","v":24},24,24,24,24,24,24,{"$f":"IJ3 + 1","v":25},{"$f":" IK3","v":25},{"$f":" IL3","v":25},25,25,25,25,25,25,{"$f":"IS3 + 1","v":26},{"$f":" IT3","v":26},{"$f":" IU3","v":26},26,26,26,26,26,26,{"$f":"JB3 + 1","v":27},{"$f":" JC3","v":27},{"$f":" JD3","v":27},27,27,27,27,27,27,{"$f":"JK3 + 1","v":28},{"$f":" JL3","v":28},{"$f":" JM3","v":28},28,28,28,28,28,28,{"$f":"JT3 + 1","v":29},{"$f":" JU3","v":29},{"$f":" JV3","v":29},29,29,29,29,29,29,{"$f":"KC3 + 1","v":30},{"$f":" KD3","v":30},{"$f":" KE3","v":30},30,30,30,30,30,30,null,null,null,null,null,null,null,null,null,null,null,null,null,null,null,null,null,null,null,null,null,{"$f":"KO4+KY4","v":16}]
[null,null,null,null,null,null,null,null,null,null,null,null,null,null,null,null,null,null,null,null,null,null,null,null,null,null,null,null,null,null,null,null,null,null,null,null,null,null,null,null,null,null,null,null,null,null,null,"R-1（多言語タブレット）",null,null,null,null,null,null,null,null,null,"R-2（ポケトーク等）",null,null,null,null,null,null,null,null,null,"R-3（サイネージ）",null,null,null,null,null,null,null,null,null,"R-4（ホームページ）",null,null,null,null,null,null,null,null,null,"R-5（多言語研修）",null,null,null,null,null,null,null,null,null,"R-6（その他多言語化）",null,null,null,null,null,null,null,null,null,null,"R-7（多言語パンフレット）",null,null,null,null,null,null,null,null,null,"R-8(運転中ステッカー)",null,null,null,null,null,null,null,null,null,"R-9(ドライブ支援アプリ)",null,null,null,null,null,null,null,null,null,"R-10（クレジット決済機器）",null,null,null,null,null,null,null,null,null,"R-11（ＱＲ決済機器）",null,null,null,null,null,null,null,null,null,"R-12（交通系ＩＣ決済機器）",null,null,null,null,null,null,null,null,null,"R-13（ＥＴＣ読取機・プリンターの導入）",null,null,null,null,null,null,null,null,null,"R-14（情報端末への電源供給機器）",null,null,null,null,null,null,null,null,null,"R-15（非常用電源装置）",null,null,null,null,null,null,null,null,null,"R-16（その他付随機器）",null,null,null,null,null,null,null,null,null,"導入予定営業所の内訳",null,null,null,null,null,null,null,null,null,null,null,null,null,null,null,null,null,"導入予定営業所の内訳",null,null,null,null,null,null,null,null,null,null,null,null,null,null,null,null,null,"導入予定営業所の内訳",null,null,null,null,null,null,null,null,null,null,null,null,null,null,null,null,null,"導入予定営業所の内訳",null,null,null,null,null,null,null,null,null,null,null,null,null,null,null,null,null,null,null,null,null,null,null,null,null,null,null,null,null,null,null,null,null,null,null,null,null,{"$f":"COUNTIF($AV$5:$GZ$5,KO5)","v":0},{"$f":"COUNTIF($AV$5:$GZ$5,KP5)","v":0},0,0,0,0,0,0,0,null,16,16,16,16,16,16,16,16,16,{"$f":"COUNTA(AV4:GQ4)","v":16}]
[null,null,null,null,null,null,null,null,null,null,null,null,null,null,null,null,null,null,null,null,0,99,null,1,3,null,2,4,null,-1,5,null,-2,6,null,-3,7,null,-4,8,null,-5,9,null,-6,10,null,null,99,3,4,5,6,7,8,9,10,null,99,3,4,5,6,7,8,9,10,null,99,3,4,5,6,7,8,9,10,null,99,3,4,5,6,7,8,9,10,null,99,3,4,5,6,7,8,9,10,null,99,3,4,5,6,7,8,9,10,null,null,99,3,4,5,6,7,8,9,10,null,99,3,4,5,6,7,8,9,10,null,99,3,4,5,6,7,8,9,10,null,99,3,4,5,6,7,8,9,10,null,99,3,4,5,6,7,8,9,10,null,99,3,4,5,6,7,8,9,10,null,99,3,4,5,6,7,8,9,10,null,99,3,4,5,6,7,8,9,10,null,99,3,4,5,6,7,8,9,10,null,99,3,4,5,6,7,8,9,10,"営業所１",null,null,null,null,null,null,null,null,"営業所２",null,null,null,null,null,null,null,null,"営業所３",null,null,null,null,null,null,null,null,"営業所４",null,null,null,null,null,null,null,null,"営業所５",null,null,null,null,null,null,null,null,"営業所６",null,null,null,null,null,null,null,null,"営業所７",null,null,null,null,null,null,null,null,"営業所８",null,null,null,null,null,null,null,null,"営業所９",null,null,null,null,null,null,null,null,"営業所１０",null,null,null,null,null,null,null,null,null,"A",0,1,2,-1,-2,-3,-4,-5,-6,"B",99,3,4,5,6,7,8,9,10,"合計"]
["整理番号","事業者フラグ","番号","運輸局","支局","事業者名","住所","代表者氏名","ご担当者名","ご連絡先(ＴＥＬ)","ご連絡先(E-mail アドレス)","銀行名","金融機関コード","支店名","支店番号","口座の\n種類","口座番号","フリガナ","口座\n名義人","記載内容に誤りが無いこと","A：補助対象経費計","B：補助対象経費計","A＋B：補助対象経費計","A：要望額計","B：要望額計","A＋B：要望額計","A：内示額計","B：内示額計","A＋B：内示額計","様式１\nA：交付申請額計","様式１\nB：交付申請額計","様式１\nA+B：交付申請額計","様式２\nA：交付決定額計","様式２\nB：交付決定額計","様式２\nA+B：交付決定額計","様式３\nA：交付決定変更申請額計\n","様式３\nB：交付決定変更申請額計\n","様式３\nA+B：交付決定変更申請額計\n","様式４\nA：交付決定変更額計\n","様式４\nB：交付決定変更額計\n","様式４\nA+B：交付決定変更額計\n","様式６\nA：進捗状況額計\n","様式６\nB：進捗状況額計\n","様式６\nA+B：進捗状況額\n","様式７\nA：完了実績額計\n","様式７\nB：完了実績額計\n","様式７\nA+B：完了実績額計\n","申請台数","補助対象経費","要望額","内示額","交付申請額","交付決定額","交付決定変更申請額","交付決定変更額","進捗状況額","完了実績額","申請台数","補助対象経費","要望額","内示額","交付申請額","交付決定額","交付決定変更申請額","交付決定変更額","進捗状況額","完了実績額","申請台数","補助対象経費","要望額","内示額","交付申請額","交付決定額","交付決定変更申請額","交付決定変更額","進捗状況額","完了実績額","申請台数","補助対象経費","要望額","内示額","交付申請額","交付決定額","交付決定変更申請額","交付決定変更額","進捗状況額","完了実績額","申請台数","補助対象経費","要望額","内示額","交付申請額","交付決定額","交付決定変更申請額","交付決定変更額","進捗状況額","完了実績額","申請台数","補助対象経費","要望額","内示額","交付申請額","交付決定額","交付決定変更申請額","交付決定変更額","進捗状況額","完了実績額","事業概要","申請台数","補助対象経費","要望額","内示額","交付申請額","交付決定額","交付決定変更申請額","交付決定変更額","進捗状況額","完了実績額","申請台数","補助対象経費","要望額","内示額","交付申請額","交付決定額","交付決定変更申請額","交付決定変更額","進捗状況額","完了実績額","申請台数","補助対象経費","要望額","内示額","交付申請額","交付決定額","交付決定変更申請額","交付決定変更額","進捗状況額","完了実績額","申請台数","補助対象経費","要望額","内示額","交付申請額","交付決定額","交付決定変更申請額","交付決定変更額","進捗状況額","完了実績額","申請台数","補助対象経費","要望額","内示額","交付申請額","交付決定額","交付決定変更申請額","交付決定変更額","進捗状況額","完了実績額","申請台数","補助対象経費","要望額","内示額","交付申請額","交付決定額","交付決定変更申請額","交付決定変更額","進捗状況額","完了実績額","申請台数","補助対象経費","要望額","内示額","交付申請額","交付決定額","交付決定変更申請額","交付決定変更額","進捗状況額","完了実績額","申請台数","補助対象経費","要望額","内示額","交付申請額","交付決定額","交付決定変更申請額","交付決定変更額","進捗状況額","完了実績額","申請台数","補助対象経費","要望額","内示額","交付申請額","交付決定額","交付決定変更申請額","交付決定変更額","進捗状況額","完了実績額","申請台数","補助対象経費","要望額","内示額","交付申請額","交付決定額","交付決定変更申請額","交付決定変更額","進捗状況額","完了実績額","営業所名","所在地","多言語案内用タブレット","多言語翻訳システム機器","多言語案内サイネージ","ETC読取機・プリンター","携帯端末機器用重電機器","非常用電源装置","その他","営業所名","所在地","多言語案内用タブレット","多言語翻訳システム機器","多言語案内サイネージ","ETC読取機・プリンター","携帯端末機器用重電機器","非常用電源装置","その他","営業所名","所在地","多言語案内用タブレット","多言語翻訳システム機器","多言語案内サイネージ","ETC読取機・プリンター","携帯端末機器用重電機器","非常用電源装置","その他","営業所名","所在地","多言語案内用タブレット","多言語翻訳システム機器","多言語案内サイネージ","ETC読取機・プリンター","携帯端末機器用重電機器","非常用電源装置","その他","営業所名","所在地","多言語案内用タブレット","多言語翻訳システム機器","多言語案内サイネージ","ETC読取機・プリンター","携帯端末機器用重電機器","非常用電源装置","その他","営業所名","所在地","多言語案内用タブレット","多言語翻訳システム機器","多言語案内サイネージ","ETC読取機・プリンター","携帯端末機器用重電機器","非常用電源装置","その他","営業所名","所在地","多言語案内用タブレット","多言語翻訳システム機器","多言語案内サイネージ","ETC読取機・プリンター","携帯端末機器用重電機器","非常用電源装置","その他","営業所名","所在地","多言語案内用タブレット","多言語翻訳システム機器","多言語案内サイネージ","ETC読取機・プリンター","携帯端末機器用重電機器","非常用電源装置","その他","営業所名","所在地","多言語案内用タブレット","多言語翻訳システム機器","多言語案内サイネージ","ETC読取機・プリンター","携帯端末機器用重電機器","非常用電源装置","その他","営業所名","所在地","多言語案内用タブレット","多言語翻訳システム機器","多言語案内サイネージ","ETC読取機・プリンター","携帯端末機器用重電機器","非常用電源装置","その他"]
[0,0,0,0,0,{"$f":"IF(OR(EXACT(集計用!F7,\"事業概要：\"), EXACT(集計用!F7,\"ー\"), EXACT(集計用!F7,0), NOT(ISNUMBER(VALUE(集計用!F7)))), 0, IF(集計用!F7=\"\", 0, F12))","v":0},{"$f":"IF(OR(EXACT(集計用!G7,\"事業概要：\"), EXACT(集計用!G7,\"ー\"), EXACT(集計用!G7,0), NOT(ISNUMBER(VALUE(集計用!G7)))), 0, IF(集計用!G7=\"\", 0, G12))","v":0},{"$f":"IF(OR(EXACT(集計用!H7,\"事業概要：\"), EXACT(集計用!H7,\"ー\"), EXACT(集計用!H7,0), NOT(ISNUMBER(VALUE(集計用!H7)))), 0, IF(集計用!H7=\"\", 0, H12))","v":0},{"$f":"IF(OR(EXACT(集計用!I7,\"事業概要：\"), EXACT(集計用!I7,\"ー\"), EXACT(集計用!I7,0), NOT(ISNUMBER(VALUE(集計用!I7)))), 0, IF(集計用!I7=\"\", 0, I12))","v":0},{"$f":"IF(OR(EXACT(集計用!J7,\"事業概要：\"), EXACT(集計用!J7,\"ー\"), ISNUMBER(VALUE(集計用!J7))), 0, IF(集計用!J7=\"\", 0, J12))","v":0},{"$f":"IF(OR(EXACT(集計用!K7,\"事業概要：\"), EXACT(集計用!K7,\"ー\"), EXACT(集計用!K7,0), NOT(ISNUMBER(VALUE(集計用!K7)))), 0, IF(集計用!K7=\"\", 0, K12))","v":0},{"$f":"IF(OR(EXACT(集計用!L7,\"事業概要：\"), EXACT(集計用!L7,\"ー\"), EXACT(集計用!L7,0), NOT(ISNUMBER(VALUE(集計用!L7)))), 0, IF(集計用!L7=\"\", 0, L12))","v":0},{"$f":"IF(OR(EXACT(集計用!M7,\"事業概要：\"), EXACT(集計用!M7,\"ー\"), ISNUMBER(VALUE(集計用!M7))), 0, IF(集計用!M7=\"\", 0, M12))","v":0},{"$f":"IF(OR(EXACT(集計用!N7,\"事業概要：\"), EXACT(集計用!N7,\"ー\"), EXACT(集計用!N7,0), NOT(ISNUMBER(VALUE(集計用!N7)))), 0, IF(集計用!N7=\"\", 0, N12))","v":0},{"$f":"IF(OR(EXACT(集計用!O7,\"事業概要：\"), EXACT(集計用!O7,\"ー\"), ISNUMBER(VALUE(集計用!O7))), 0, IF(集計用!O7=\"\", 0, O12))","v":0},{"$f":"IF(OR(EXACT(集計用!P7,\"事業概要：\"), EXACT(集計用!P7,\"ー\"), EXACT(集計用!P7,0), NOT(ISNUMBER(VALUE(集計用!P7)))), 0, IF(集計用!P7=\"\", 0, P12))","v":0},{"$f":"IF(OR(EXACT(集計用!Q7,\"事業概要：\"), EXACT(集計用!Q7,\"ー\"), ISNUMBER(VALUE(集計用!Q7))), 0, IF(集計用!Q7=\"\", 0, Q12))","v":0},{"$f":"IF(COUNT(INDEX(FIND(補助!I4:I93,集計用!R7),))=LEN(B7),0,3)","v":0},{"$f":"IF(OR(EXACT(集計用!S7,\"事業概要：\"), EXACT(集計用!S7,\"ー\"), EXACT(集計用!S7,0), NOT(ISNUMBER(VALUE(集計用!S7)))), 0, IF(集計用!S7=\"\", 0, S12))","v":0},{"$f":"IF(OR(EXACT(集計用!T7,\"事業概要：\"), EXACT(集計用!T7,\"ー\"), ISNUMBER(VALUE(集計用!T7))), 0, IF(集計用!T7=\"\", 0, T12))","v":0},{"$f":"IF(OR(EXACT(集計用!U7,\"事業概要：\"), EXACT(集計用!U7,\"ー\"), ISNUMBER(VALUE(集計用!U7))), 0, IF(集計用!U7=\"\", 0, U12))","v":0},{"$f":"IF(OR(EXACT(集計用!V7,\"事業概要：\"), EXACT(集計用!V7,\"ー\"), ISNUMBER(VALUE(集計用!V7))), 0, IF(集計用!V7=\"\", 0, V12))","v":0},{"$f":"IF(OR(EXACT(集計用!W7,\"事業概要：\"), EXACT(集計用!W7,\"ー\"), ISNUMBER(VALUE(集計用!W7))), 0, IF(集計用!W7=\"\", 0, W12))","v":0},{"$f":"IF(OR(EXACT(集計用!X7,\"事業概要：\"), EXACT(集計用!X7,\"ー\"), ISNUMBER(VALUE(集計用!X7))), 0, IF(集計用!X7=\"\", 0, X12))","v":0},{"$f":"IF(OR(EXACT(集計用!Y7,\"事業概要：\"), EXACT(集計用!Y7,\"ー\"), ISNUMBER(VALUE(集計用!Y7))), 0, IF(集計用!Y7=\"\", 0, Y12))","v":0},{"$f":"IF(OR(EXACT(集計用!Z7,\"事業概要：\"), EXACT(集計用!Z7,\"ー\"), ISNUMBER(VALUE(集計用!Z7))), 0, IF(集計用!Z7=\"\", 0, Z12))","v":0},{"$f":"IF(OR(EXACT(集計用!AA7,\"事業概要：\"), EXACT(集計用!AA7,\"ー\"), ISNUMBER(VALUE(集計用!AA7))), 0, IF(集計用!AA7=\"\", 0, AA12))","v":0},{"$f":"IF(OR(EXACT(集計用!AB7,\"事業概要：\"), EXACT(集計用!AB7,\"ー\"), ISNUMBER(VALUE(集計用!AB7))), 0, IF(集計用!AB7=\"\", 0, AB12))","v":0},{"$f":"IF(OR(EXACT(集計用!AC7,\"事業概要：\"), EXACT(集計用!AC7,\"ー\"), ISNUMBER(VALUE(集計用!AC7))), 0, IF(集計用!AC7=\"\", 0, AC12))","v":0},{"$f":"IF(OR(EXACT(集計用!AD7,\"事業概要：\"), EXACT(集計用!AD7,\"ー\"), ISNUMBER(VALUE(集計用!AD7))), 0, IF(集計用!AD7=\"\", 0, AD12))","v":0},{"$f":"IF(OR(EXACT(集計用!AE7,\"事業概要：\"), EXACT(集計用!AE7,\"ー\"), ISNUMBER(VALUE(集計用!AE7))), 0, IF(集計用!AE7=\"\", 0, AE12))","v":0},{"$f":"IF(OR(EXACT(集計用!AF7,\"事業概要：\"), EXACT(集計用!AF7,\"ー\"), ISNUMBER(VALUE(集計用!AF7))), 0, IF(集計用!AF7=\"\", 0, AF12))","v":0},{"$f":"IF(OR(EXACT(集計用!AG7,\"事業概要：\"), EXACT(集計用!AG7,\"ー\"), ISNUMBER(VALUE(集計用!AG7))), 0, IF(集計用!AG7=\"\", 0, AG12))","v":0},{"$f":"IF(OR(EXACT(集計用!AH7,\"事業概要：\"), EXACT(集計用!AH7,\"ー\"), ISNUMBER(VALUE(集計用!AH7))), 0, IF(集計用!AH7=\"\", 0, AH12))","v":0},{"$f":"IF(OR(EXACT(集計用!AI7,\"事業概要：\"), EXACT(集計用!AI7,\"ー\"), ISNUMBER(VALUE(集計用!AI7))), 0, IF(集計用!AI7=\"\", 0, AI12))","v":0},{"$f":"IF(OR(EXACT(集計用!AJ7,\"事業概要：\"), EXACT(集計用!AJ7,\"ー\"), ISNUMBER(VALUE(集計用!AJ7))), 0, IF(集計用!AJ7=\"\", 0, AJ12))","v":0},{"$f":"IF(OR(EXACT(集計用!AK7,\"事業概要：\"), EXACT(集計用!AK7,\"ー\"), ISNUMBER(VALUE(集計用!AK7))), 0, IF(集計用!AK7=\"\", 0, AK12))","v":0},{"$f":"IF(OR(EXACT(集計用!AL7,\"事業概要：\"), EXACT(集計用!AL7,\"ー\"), ISNUMBER(VALUE(集計用!AL7))), 0, IF(集計用!AL7=\"\", 0, AL12))","v":0},{"$f":"IF(OR(EXACT(集計用!AM7,\"事業概要：\"), EXACT(集計用!AM7,\"ー\"), ISNUMBER(VALUE(集計用!AM7))), 0, IF(集計用!AM7=\"\", 0, AM12))","v":0},{"$f":"IF(OR(EXACT(集計用!AN7,\"事業概要：\"), EXACT(集計用!AN7,\"ー\"), ISNUMBER(VALUE(集計用!AN7))), 0, IF(集計用!AN7=\"\", 0, AN12))","v":0},{"$f":"IF(OR(EXACT(集計用!AO7,\"事業概要：\"), EXACT(集計用!AO7,\"ー\"), ISNUMBER(VALUE(集計用!AO7))), 0, IF(集計用!AO7=\"\", 0, AO12))","v":0},{"$f":"IF(OR(EXACT(集計用!AP7,\"事業概要：\"), EXACT(集計用!AP7,\"ー\"), ISNUMBER(VALUE(集計用!AP7))), 0, IF(集計用!AP7=\"\", 0, AP12))","v":0},{"$f":"IF(OR(EXACT(集計用!AQ7,\"事業概要：\"), EXACT(集計用!AQ7,\"ー\"), ISNUMBER(VALUE(集計用!AQ7))), 0, IF(集計用!AQ7=\"\", 0, AQ12))","v":0},{"$f":"IF(OR(EXACT(集計用!AR7,\"事業概要：\"), EXACT(集計用!AR7,\"ー\"), ISNUMBER(VALUE(集計用!AR7))), 0, IF(集計用!AR7=\"\", 0, AR12))","v":0},{"$f":"IF(OR(EXACT(集計用!AS7,\"事業概要：\"), EXACT(集計用!AS7,\"ー\"), ISNUMBER(VALUE(集計用!AS7))), 0, IF(集計用!AS7=\"\", 0, AS12))","v":0},{"$f":"IF(OR(EXACT(集計用!AT7,\"事業概要：\"), EXACT(集計用!AT7,\"ー\"), ISNUMBER(VALUE(集計用!AT7))), 0, IF(集計用!AT7=\"\", 0, AT12))","v":0},{"$f":"IF(OR(EXACT(集計用!AU7,\"事業概要：\"), EXACT(集計用!AU7,\"ー\"), ISNUMBER(VALUE(集計用!AU7))), 0, IF(集計用!AU7=\"\", 0, AU12))","v":0},{"$f":"IF(OR(EXACT(集計用!AV7,\"事業概要：\"), EXACT(集計用!AV7,\"ー\"), ISNUMBER(VALUE(集計用!AV7))), 0, IF(集計用!AV7=\"\", 0, AV12))","v":0},{"$f":"IF(OR(EXACT(集計用!AW7,\"事業概要：\"), EXACT(集計用!AW7,\"ー\"), ISNUMBER(VALUE(集計用!AW7))), 0, IF(集計用!AW7=\"\", 0, AW12))","v":0},{"$f":"IF(OR(EXACT(集計用!AX7,\"事業概要：\"), EXACT(集計用!AX7,\"ー\"), ISNUMBER(VALUE(集計用!AX7))), 0, IF(集計用!AX7=\"\", 0, AX12))","v":0},{"$f":"IF(OR(EXACT(集計用!AY7,\"事業概要：\"), EXACT(集計用!AY7,\"ー\"), ISNUMBER(VALUE(集計用!AY7))), 0, IF(集計用!AY7=\"\", 0, AY12))","v":0},{"$f":"IF(OR(EXACT(集計用!AZ7,\"事業概要：\"), EXACT(集計用!AZ7,\"ー\"), ISNUMBER(VALUE(集計用!AZ7))), 0, IF(集計用!AZ7=\"\", 0, AZ12))","v":0},{"$f":"IF(OR(EXACT(集計用!BA7,\"事業概要：\"), EXACT(集計用!BA7,\"ー\"), ISNUMBER(VALUE(集計用!BA7))), 0, IF(集計用!BA7=\"\", 0, BA12))","v":0},{"$f":"IF(OR(EXACT(集計用!BB7,\"事業概要：\"), EXACT(集計用!BB7,\"ー\"), ISNUMBER(VALUE(集計用!BB7))), 0, IF(集計用!BB7=\"\", 0, BB12))","v":0},{"$f":"IF(OR(EXACT(集計用!BC7,\"事業概要：\"), EXACT(集計用!BC7,\"ー\"), ISNUMBER(VALUE(集計用!BC7))), 0, IF(集計用!BC7=\"\", 0, BC12))","v":0},{"$f":"IF(OR(EXACT(集計用!BD7,\"事業概要：\"), EXACT(集計用!BD7,\"ー\"), ISNUMBER(VALUE(集計用!BD7))), 0, IF(集計用!BD7=\"\", 0, BD12))","v":0},{"$f":"IF(OR(EXACT(集計用!BE7,\"事業概要：\"), EXACT(集計用!BE7,\"ー\"), ISNUMBER(VALUE(集計用!BE7))), 0, IF(集計用!BE7=\"\", 0, BE12))","v":0},{"$f":"IF(OR(EXACT(集計用!BF7,\"事業概要：\"), EXACT(集計用!BF7,\"ー\"), ISNUMBER(VALUE(集計用!BF7))), 0, IF(集計用!BF7=\"\", 0, BF12))","v":0},{"$f":"IF(OR(EXACT(集計用!BG7,\"事業概要：\"), EXACT(集計用!BG7,\"ー\"), ISNUMBER(VALUE(集計用!BG7))), 0, IF(集計用!BG7=\"\", 0, BG12))","v":0},{"$f":"IF(OR(EXACT(集計用!BH7,\"事業概要：\"), EXACT(集計用!BH7,\"ー\"), ISNUMBER(VALUE(集計用!BH7))), 0, IF(集計用!BH7=\"\", 0, BH12))","v":0},{"$f":"IF(OR(EXACT(集計用!BI7,\"事業概要：\"), EXACT(集計用!BI7,\"ー\"), ISNUMBER(VALUE(集計用!BI7))), 0, IF(集計用!BI7=\"\", 0, BI12))","v":0},{"$f":"IF(OR(EXACT(集計用!BJ7,\"事業概要：\"), EXACT(集計用!BJ7,\"ー\"), ISNUMBER(VALUE(集計用!BJ7))), 0, IF(集計用!BJ7=\"\", 0, BJ12))","v":0},{"$f":"IF(OR(EXACT(集計用!BK7,\"事業概要：\"), EXACT(集計用!BK7,\"ー\"), ISNUMBER(VALUE(集計用!BK7))), 0, IF(集計用!BK7=\"\", 0, BK12))","v":0},{"$f":"IF(OR(EXACT(集計用!BL7,\"事業概要：\"), EXACT(集計用!BL7,\"ー\"), ISNUMBER(VALUE(集計用!BL7))), 0, IF(集計用!BL7=\"\", 0, BL12))","v":0},{"$f":"IF(OR(EXACT(集計用!BM7,\"事業概要：\"), EXACT(集計用!BM7,\"ー\"), ISNUMBER(VALUE(集計用!BM7))), 0, IF(集計用!BM7=\"\", 0, BM12))","v":0},{"$f":"IF(OR(EXACT(集計用!BN7,\"事業概要：\"), EXACT(集計用!BN7,\"ー\"), ISNUMBER(VALUE(集計用!BN7))), 0, IF(集計用!BN7=\"\", 0, BN12))","v":0},{"$f":"IF(OR(EXACT(集計用!BO7,\"事業概要：\"), EXACT(集計用!BO7,\"ー\"), ISNUMBER(VALUE(集計用!BO7))), 0, IF(集計用!BO7=\"\", 0, BO12))","v":0},{"$f":"IF(OR(EXACT(集計用!BP7,\"事業概要：\"), EXACT(集計用!BP7,\"ー\"), ISNUMBER(VALUE(集計用!BP7))), 0, IF(集計用!BP7=\"\", 0, BP12))","v":0},{"$f":"IF(OR(EXACT(集計用!BQ7,\"事業概要：\"), EXACT(集計用!BQ7,\"ー\"), ISNUMBER(VALUE(集計用!BQ7))), 0, IF(集計用!BQ7=\"\", 0, BQ12))","v":0},{"$f":"IF(OR(EXACT(集計用!BR7,\"事業概要：\"), EXACT(集計用!BR7,\"ー\"), ISNUMBER(VALUE(集計用!BR7))), 0, IF(集計用!BR7=\"\", 0, BR12))","v":0},{"$f":"IF(OR(EXACT(集計用!BS7,\"事業概要：\"), EXACT(集計用!BS7,\"ー\"), ISNUMBER(VALUE(集計用!BS7))), 0, IF(集計用!BS7=\"\", 0, BS12))","v":0},{"$f":"IF(OR(EXACT(集計用!BT7,\"事業概要：\"), EXACT(集計用!BT7,\"ー\"), ISNUMBER(VALUE(集計用!BT7))), 0, IF(集計用!BT7=\"\", 0, BT12))","v":0},{"$f":"IF(OR(EXACT(集計用!BU7,\"事業概要：\"), EXACT(集計用!BU7,\"ー\"), ISNUMBER(VALUE(集計用!BU7))), 0, IF(集計用!BU7=\"\", 0, BU12))","v":0},{"$f":"IF(OR(EXACT(集計用!BV7,\"事業概要：\"), EXACT(集計用!BV7,\"ー\"), ISNUMBER(VALUE(集計用!BV7))), 0, IF(集計用!BV7=\"\", 0, BV12))","v":0},{"$f":"IF(OR(EXACT(集計用!BW7,\"事業概要：\"), EXACT(集計用!BW7,\"ー\"), ISNUMBER(VALUE(集計用!BW7))), 0, IF(集計用!BW7=\"\", 0, BW12))","v":0},{"$f":"IF(OR(EXACT(集計用!BX7,\"事業概要：\"), EXACT(集計用!BX7,\"ー\"), ISNUMBER(VALUE(集計用!BX7))), 0, IF(集計用!BX7=\"\", 0, BX12))","v":0},{"$f":"IF(OR(EXACT(集計用!BY7,\"事業概要：\"), EXACT(集計用!BY7,\"ー\"), ISNUMBER(VALUE(集計用!BY7))), 0, IF(集計用!BY7=\"\", 0, BY12))","v":0},{"$f":"IF(OR(EXACT(集計用!BZ7,\"事業概要：\"), EXACT(集計用!BZ7,\"ー\"), ISNUMBER(VALUE(集計用!BZ7))), 0, IF(集計用!BZ7=\"\", 0, BZ12))","v":0},{"$f":"IF(OR(EXACT(集計用!CA7,\"事業概要：\"), EXACT(集計用!CA7,\"ー\"), ISNUMBER(VALUE(集計用!CA7))), 0, IF(集計用!CA7=\"\", 0, CA12))","v":0},{"$f":"IF(OR(EXACT(集計用!CB7,\"事業概要：\"), EXACT(集計用!CB7,\"ー\"), ISNUMBER(VALUE(集計用!CB7))), 0, IF(集計用!CB7=\"\", 0, CB12))","v":0},{"$f":"IF(OR(EXACT(集計用!CC7,\"事業概要：\"), EXACT(集計用!CC7,\"ー\"), ISNUMBER(VALUE(集計用!CC7))), 0, IF(集計用!CC7=\"\", 0, CC12))","v":0},{"$f":"IF(OR(EXACT(集計用!CD7,\"事業概要：\"), EXACT(集計用!CD7,\"ー\"), ISNUMBER(VALUE(集計用!CD7))), 0, IF(集計用!CD7=\"\", 0, CD12))","v":0},{"$f":"IF(OR(EXACT(集計用!CE7,\"事業概要：\"), EXACT(集計用!CE7,\"ー\"), ISNUMBER(VALUE(集計用!CE7))), 0, IF(集計用!CE7=\"\", 0, CE12))","v":0},{"$f":"IF(OR(EXACT(集計用!CF7,\"事業概要：\"), EXACT(集計用!CF7,\"ー\"), ISNUMBER(VALUE(集計用!CF7))), 0, IF(集計用!CF7=\"\", 0, CF12))","v":0},{"$f":"IF(OR(EXACT(集計用!CG7,\"事業概要：\"), EXACT(集計用!CG7,\"ー\"), ISNUMBER(VALUE(集計用!CG7))), 0, IF(集計用!CG7=\"\", 0, CG12))","v":0},{"$f":"IF(OR(EXACT(集計用!CH7,\"事業概要：\"), EXACT(集計用!CH7,\"ー\"), ISNUMBER(VALUE(集計用!CH7))), 0, IF(集計用!CH7=\"\", 0, CH12))","v":0},{"$f":"IF(OR(EXACT(集計用!CI7,\"事業概要：\"), EXACT(集計用!CI7,\"ー\"), ISNUMBER(VALUE(集計用!CI7))), 0, IF(集計用!CI7=\"\", 0, CI12))","v":0},{"$f":"IF(OR(EXACT(集計用!CJ7,\"事業概要：\"), EXACT(集計用!CJ7,\"ー\"), ISNUMBER(VALUE(集計用!CJ7))), 0, IF(集計用!CJ7=\"\", 0, CJ12))","v":0},{"$f":"IF(OR(EXACT(集計用!CK7,\"事業概要：\"), EXACT(集計用!CK7,\"ー\"), ISNUMBER(VALUE(集計用!CK7))), 0, IF(集計用!CK7=\"\", 0, CK12))","v":0},{"$f":"IF(OR(EXACT(集計用!CL7,\"事業概要：\"), EXACT(集計用!CL7,\"ー\"), ISNUMBER(VALUE(集計用!CL7))), 0, IF(集計用!CL7=\"\", 0, CL12))","v":0},{"$f":"IF(OR(EXACT(集計用!CM7,\"事業概要：\"), EXACT(集計用!CM7,\"ー\"), ISNUMBER(VALUE(集計用!CM7))), 0, IF(集計用!CM7=\"\", 0, CM12))","v":0},{"$f":"IF(OR(EXACT(集計用!CN7,\"事業概要：\"), EXACT(集計用!CN7,\"ー\"), ISNUMBER(VALUE(集計用!CN7))), 0, IF(集計用!CN7=\"\", 0, CN12))","v":0},{"$f":"IF(OR(EXACT(集計用!CO7,\"事業概要：\"), EXACT(集計用!CO7,\"ー\"), ISNUMBER(VALUE(集計用!CO7))), 0, IF(集計用!CO7=\"\", 0, CO12))","v":0},{"$f":"IF(OR(EXACT(集計用!CP7,\"事業概要：\"), EXACT(集計用!CP7,\"ー\"), ISNUMBER(VALUE(集計用!CP7))), 0, IF(集計用!CP7=\"\", 0, CP12))","v":0},{"$f":"IF(OR(EXACT(集計用!CQ7,\"事業概要：\"), EXACT(集計用!CQ7,\"ー\"), ISNUMBER(VALUE(集計用!CQ7))), 0, IF(集計用!CQ7=\"\", 0, CQ12))","v":0},{"$f":"IF(OR(EXACT(集計用!CR7,\"事業概要：\"), EXACT(集計用!CR7,\"ー\"), ISNUMBER(VALUE(集計用!CR7))), 0, IF(集計用!CR7=\"\", 0, CR12))","v":0},{"$f":"IF(OR(EXACT(集計用!CS7,\"事業概要：\"), EXACT(集計用!CS7,\"ー\"), ISNUMBER(VALUE(集計用!CS7))), 0, IF(集計用!CS7=\"\", 0, CS12))","v":0},{"$f":"IF(OR(EXACT(集計用!CT7,\"事業概要：\"), EXACT(集計用!CT7,\"ー\"), ISNUMBER(VALUE(集計用!CT7))), 0, IF(集計用!CT7=\"\", 0, CT12))","v":0},{"$f":"IF(OR(EXACT(集計用!CU7,\"事業概要：\"), EXACT(集計用!CU7,\"ー\"), ISNUMBER(VALUE(集計用!CU7))), 0, IF(集計用!CU7=\"\", 0, CU12))","v":0},{"$f":"IF(OR(EXACT(集計用!CV7,\"事業概要：\"), EXACT(集計用!CV7,\"ー\"), ISNUMBER(VALUE(集計用!CV7))), 0, IF(集計用!CV7=\"\", 0, CV12))","v":0},{"$f":"IF(OR(EXACT(集計用!CW7,\"事業概要：\"), EXACT(集計用!CW7,\"ー\"), ISNUMBER(VALUE(集計用!CW7))), 0, IF(集計用!CW7=\"\", 0, CW12))","v":0},{"$f":"IF(OR(EXACT(集計用!CX7,\"事業概要：\"), EXACT(集計用!CX7,\"ー\"), ISNUMBER(VALUE(集計用!CX7))), 0, IF(集計用!CX7=\"\", 0, CX12))","v":0},{"$f":"IF(OR(EXACT(集計用!CY7,\"事業概要：\"), EXACT(集計用!CY7,\"ー\"), ISNUMBER(VALUE(集計用!CY7))), 0, IF(集計用!CY7=\"\", 0, CY12))","v":0},{"$f":"IF(OR(EXACT(集計用!CZ7,\"事業概要：\"), EXACT(集計用!CZ7,\"ー\"), ISNUMBER(VALUE(集計用!CZ7))), 0, IF(集計用!CZ7=\"\", 0, CZ12))","v":0},{"$f":"IF(OR(EXACT(集計用!DA7,\"事業概要：\"), EXACT(集計用!DA7,\"ー\"), ISNUMBER(VALUE(集計用!DA7))), 0, IF(集計用!DA7=\"\", 0, DA12))","v":0},{"$f":"IF(OR(EXACT(集計用!DB7,\"事業概要：\"), EXACT(集計用!DB7,\"ー\"), ISNUMBER(VALUE(集計用!DB7))), 0, IF(集計用!DB7=\"\", 0, DB12))","v":0},{"$f":"IF(OR(EXACT(集計用!DC7,\"事業概要：\"), EXACT(集計用!DC7,\"ー\"), ISNUMBER(VALUE(集計用!DC7))), 0, IF(集計用!DC7=\"\", 0, DC12))","v":0},{"$f":"IF(OR(EXACT(集計用!DD7,\"事業概要：\"), EXACT(集計用!DD7,\"ー\"), EXACT(集計用!DD7,0), NOT(ISNUMBER(VALUE(集計用!DD7)))), 0, IF(集計用!DD7=\"\", 0, DD12))","v":0},{"$f":"IF(OR(EXACT(集計用!DE7,\"事業概要：\"), EXACT(集計用!DE7,\"ー\"), ISNUMBER(VALUE(集計用!DE7))), 0, IF(集計用!DE7=\"\", 0, DE12))","v":0},{"$f":"IF(OR(EXACT(集計用!DF7,\"事業概要：\"), EXACT(集計用!DF7,\"ー\"), ISNUMBER(VALUE(集計用!DF7))), 0, IF(集計用!DF7=\"\", 0, DF12))","v":0},{"$f":"IF(OR(EXACT(集計用!DG7,\"事業概要：\"), EXACT(集計用!DG7,\"ー\"), ISNUMBER(VALUE(集計用!DG7))), 0, IF(集計用!DG7=\"\", 0, DG12))","v":0},{"$f":"IF(OR(EXACT(集計用!DH7,\"事業概要：\"), EXACT(集計用!DH7,\"ー\"), ISNUMBER(VALUE(集計用!DH7))), 0, IF(集計用!DH7=\"\", 0, DH12))","v":0},{"$f":"IF(OR(EXACT(集計用!DI7,\"事業概要：\"), EXACT(集計用!DI7,\"ー\"), ISNUMBER(VALUE(集計用!DI7))), 0, IF(集計用!DI7=\"\", 0, DI12))","v":0},{"$f":"IF(OR(EXACT(集計用!DJ7,\"事業概要：\"), EXACT(集計用!DJ7,\"ー\"), ISNUMBER(VALUE(集計用!DJ7))), 0, IF(集計用!DJ7=\"\", 0, DJ12))","v":0},{"$f":"IF(OR(EXACT(集計用!DK7,\"事業概要：\"), EXACT(集計用!DK7,\"ー\"), ISNUMBER(VALUE(集計用!DK7))), 0, IF(集計用!DK7=\"\", 0, DK12))","v":0},{"$f":"IF(OR(EXACT(集計用!DL7,\"事業概要：\"), EXACT(集計用!DL7,\"ー\"), ISNUMBER(VALUE(集計用!DL7))), 0, IF(集計用!DL7=\"\", 0, DL12))","v":0},{"$f":"IF(OR(EXACT(集計用!DM7,\"事業概要：\"), EXACT(集計用!DM7,\"ー\"), ISNUMBER(VALUE(集計用!DM7))), 0, IF(集計用!DM7=\"\", 0, DM12))","v":0},{"$f":"IF(OR(EXACT(集計用!DN7,\"事業概要：\"), EXACT(集計用!DN7,\"ー\"), ISNUMBER(VALUE(集計用!DN7))), 0, IF(集計用!DN7=\"\", 0, DN12))","v":0},{"$f":"IF(OR(EXACT(集計用!DO7,\"事業概要：\"), EXACT(集計用!DO7,\"ー\"), ISNUMBER(VALUE(集計用!DO7))), 0, IF(集計用!DO7=\"\", 0, DO12))","v":0},{"$f":"IF(OR(EXACT(集計用!DP7,\"事業概要：\"), EXACT(集計用!DP7,\"ー\"), ISNUMBER(VALUE(集計用!DP7))), 0, IF(集計用!DP7=\"\", 0, DP12))","v":0},{"$f":"IF(OR(EXACT(集計用!DQ7,\"事業概要：\"), EXACT(集計用!DQ7,\"ー\"), ISNUMBER(VALUE(集計用!DQ7))), 0, IF(集計用!DQ7=\"\", 0, DQ12))","v":0},{"$f":"IF(OR(EXACT(集計用!DR7,\"事業概要：\"), EXACT(集計用!DR7,\"ー\"), ISNUMBER(VALUE(集計用!DR7))), 0, IF(集計用!DR7=\"\", 0, DR12))","v":0},{"$f":"IF(OR(EXACT(集計用!DS7,\"事業概要：\"), EXACT(集計用!DS7,\"ー\"), ISNUMBER(VALUE(集計用!DS7))), 0, IF(集計用!DS7=\"\", 0, DS12))","v":0},{"$f":"IF(OR(EXACT(集計用!DT7,\"事業概要：\"), EXACT(集計用!DT7,\"ー\"), ISNUMBER(VALUE(集計用!DT7))), 0, IF(集計用!DT7=\"\", 0, DT12))","v":0},{"$f":"IF(OR(EXACT(集計用!DU7,\"事業概要：\"), EXACT(集計用!DU7,\"ー\"), ISNUMBER(VALUE(集計用!DU7))), 0, IF(集計用!DU7=\"\", 0, DU12))","v":0},{"$f":"IF(OR(EXACT(集計用!DV7,\"事業概要：\"), EXACT(集計用!DV7,\"ー\"), ISNUMBER(VALUE(集計用!DV7))), 0, IF(集計用!DV7=\"\", 0, DV12))","v":0},{"$f":"IF(OR(EXACT(集計用!DW7,\"事業概要：\"), EXACT(集計用!DW7,\"ー\"), ISNUMBER(VALUE(集計用!DW7))), 0, IF(集計用!DW7=\"\", 0, DW12))","v":0},{"$f":"IF(OR(EXACT(集計用!DX7,\"事業概要：\"), EXACT(集計用!DX7,\"ー\"), ISNUMBER(VALUE(集計用!DX7))), 0, IF(集計用!DX7=\"\", 0, DX12))","v":0},{"$f":"IF(OR(EXACT(集計用!DY7,\"事業概要：\"), EXACT(集計用!DY7,\"ー\"), ISNUMBER(VALUE(集計用!DY7))), 0, IF(集計用!DY7=\"\", 0, DY12))","v":0},{"$f":"IF(OR(EXACT(集計用!DZ7,\"事業概要：\"), EXACT(集計用!DZ7,\"ー\"), ISNUMBER(VALUE(集計用!DZ7))), 0, IF(集計用!DZ7=\"\", 0, DZ12))","v":0},{"$f":"IF(OR(EXACT(集計用!EA7,\"事業概要：\"), EXACT(集計用!EA7,\"ー\"), ISNUMBER(VALUE(集計用!EA7))), 0, IF(集計用!EA7=\"\", 0, EA12))","v":0},{"$f":"IF(OR(EXACT(集計用!EB7,\"事業概要：\"), EXACT(集計用!EB7,\"ー\"), ISNUMBER(VALUE(集計用!EB7))), 0, IF(集計用!EB7=\"\", 0, EB12))","v":0},{"$f":"IF(OR(EXACT(集計用!EC7,\"事業概要：\"), EXACT(集計用!EC7,\"ー\"), ISNUMBER(VALUE(集計用!EC7))), 0, IF(集計用!EC7=\"\", 0, EC12))","v":0},{"$f":"IF(OR(EXACT(集計用!ED7,\"事業概要：\"), EXACT(集計用!ED7,\"ー\"), ISNUMBER(VALUE(集計用!ED7))), 0, IF(集計用!ED7=\"\", 0, ED12))","v":0},{"$f":"IF(OR(EXACT(集計用!EE7,\"事業概要：\"), EXACT(集計用!EE7,\"ー\"), ISNUMBER(VALUE(集計用!EE7))), 0, IF(集計用!EE7=\"\", 0, EE12))","v":0},{"$f":"IF(OR(EXACT(集計用!EF7,\"事業概要：\"), EXACT(集計用!EF7,\"ー\"), ISNUMBER(VALUE(集計用!EF7))), 0, IF(集計用!EF7=\"\", 0, EF12))","v":0},{"$f":"IF(OR(EXACT(集計用!EG7,\"事業概要：\"), EXACT(集計用!EG7,\"ー\"), ISNUMBER(VALUE(集計用!EG7))), 0, IF(集計用!EG7=\"\", 0, EG12))","v":0},{"$f":"IF(OR(EXACT(集計用!EH7,\"事業概要：\"), EXACT(集計用!EH7,\"ー\"), ISNUMBER(VALUE(集計用!EH7))), 0, IF(集計用!EH7=\"\", 0, EH12))","v":0},{"$f":"IF(OR(EXACT(集計用!EI7,\"事業概要：\"), EXACT(集計用!EI7,\"ー\"), ISNUMBER(VALUE(集計用!EI7))), 0, IF(集計用!EI7=\"\", 0, EI12))","v":0},{"$f":"IF(OR(EXACT(集計用!EJ7,\"事業概要：\"), EXACT(集計用!EJ7,\"ー\"), ISNUMBER(VALUE(集計用!EJ7))), 0, IF(集計用!EJ7=\"\", 0, EJ12))","v":0},{"$f":"IF(OR(EXACT(集計用!EK7,\"事業概要：\"), EXACT(集計用!EK7,\"ー\"), ISNUMBER(VALUE(集計用!EK7))), 0, IF(集計用!EK7=\"\", 0, EK12))","v":0},{"$f":"IF(OR(EXACT(集計用!EL7,\"事業概要：\"), EXACT(集計用!EL7,\"ー\"), ISNUMBER(VALUE(集計用!EL7))), 0, IF(集計用!EL7=\"\", 0, EL12))","v":0},{"$f":"IF(OR(EXACT(集計用!EM7,\"事業概要：\"), EXACT(集計用!EM7,\"ー\"), ISNUMBER(VALUE(集計用!EM7))), 0, IF(集計用!EM7=\"\", 0, EM12))","v":0},{"$f":"IF(OR(EXACT(集計用!EN7,\"事業概要：\"), EXACT(集計用!EN7,\"ー\"), ISNUMBER(VALUE(集計用!EN7))), 0, IF(集計用!EN7=\"\", 0, EN12))","v":0},{"$f":"IF(OR(EXACT(集計用!EO7,\"事業概要：\"), EXACT(集計用!EO7,\"ー\"), ISNUMBER(VALUE(集計用!EO7))), 0, IF(集計用!EO7=\"\", 0, EO12))","v":0},{"$f":"IF(OR(EXACT(集計用!EP7,\"事業概要：\"), EXACT(集計用!EP7,\"ー\"), ISNUMBER(VALUE(集計用!EP7))), 0, IF(集計用!EP7=\"\", 0, EP12))","v":0},{"$f":"IF(OR(EXACT(集計用!EQ7,\"事業概要：\"), EXACT(集計用!EQ7,\"ー\"), ISNUMBER(VALUE(集計用!EQ7))), 0, IF(集計用!EQ7=\"\", 0, EQ12))","v":0},{"$f":"IF(OR(EXACT(集計用!ER7,\"事業概要：\"), EXACT(集計用!ER7,\"ー\"), ISNUMBER(VALUE(集計用!ER7))), 0, IF(集計用!ER7=\"\", 0, ER12))","v":0},{"$f":"IF(OR(EXACT(集計用!ES7,\"事業概要：\"), EXACT(集計用!ES7,\"ー\"), ISNUMBER(VALUE(集計用!ES7))), 0, IF(集計用!ES7=\"\", 0, ES12))","v":0},{"$f":"IF(OR(EXACT(集計用!ET7,\"事業概要：\"), EXACT(集計用!ET7,\"ー\"), ISNUMBER(VALUE(集計用!ET7))), 0, IF(集計用!ET7=\"\", 0, ET12))","v":0},{"$f":"IF(OR(EXACT(集計用!EU7,\"事業概要：\"), EXACT(集計用!EU7,\"ー\"), ISNUMBER(VALUE(集計用!EU7))), 0, IF(集計用!EU7=\"\", 0, EU12))","v":0},{"$f":"IF(OR(EXACT(集計用!EV7,\"事業概要：\"), EXACT(集計用!EV7,\"ー\"), ISNUMBER(VALUE(集計用!EV7))), 0, IF(集計用!EV7=\"\", 0, EV12))","v":0},{"$f":"IF(OR(EXACT(集計用!EW7,\"事業概要：\"), EXACT(集計用!EW7,\"ー\"), ISNUMBER(VALUE(集計用!EW7))), 0, IF(集計用!EW7=\"\", 0, EW12))","v":0},{"$f":"IF(OR(EXACT(集計用!EX7,\"事業概要：\"), EXACT(集計用!EX7,\"ー\"), ISNUMBER(VALUE(集計用!EX7))), 0, IF(集計用!EX7=\"\", 0, EX12))","v":0},{"$f":"IF(OR(EXACT(集計用!EY7,\"事業概要：\"), EXACT(集計用!EY7,\"ー\"), ISNUMBER(VALUE(集計用!EY7))), 0, IF(集計用!EY7=\"\", 0, EY12))","v":0},{"$f":"IF(OR(EXACT(集計用!EZ7,\"事業概要：\"), EXACT(集計用!EZ7,\"ー\"), ISNUMBER(VALUE(集計用!EZ7))), 0, IF(集計用!EZ7=\"\", 0, EZ12))","v":0},{"$f":"IF(OR(EXACT(集計用!FA7,\"事業概要：\"), EXACT(集計用!FA7,\"ー\"), ISNUMBER(VALUE(集計用!FA7))), 0, IF(集計用!FA7=\"\", 0, FA12))","v":0},{"$f":"IF(OR(EXACT(集計用!FB7,\"事業概要：\"), EXACT(集計用!FB7,\"ー\"), ISNUMBER(VALUE(集計用!FB7))), 0, IF(集計用!FB7=\"\", 0, FB12))","v":0},{"$f":"IF(OR(EXACT(集計用!FC7,\"事業概要：\"), EXACT(集計用!FC7,\"ー\"), ISNUMBER(VALUE(集計用!FC7))), 0, IF(集計用!FC7=\"\", 0, FC12))","v":0},{"$f":"IF(OR(EXACT(集計用!FD7,\"事業概要：\"), EXACT(集計用!FD7,\"ー\"), ISNUMBER(VALUE(集計用!FD7))), 0, IF(集計用!FD7=\"\", 0, FD12))","v":0},{"$f":"IF(OR(EXACT(集計用!FE7,\"事業概要：\"), EXACT(集計用!FE7,\"ー\"), ISNUMBER(VALUE(集計用!FE7))), 0, IF(集計用!FE7=\"\", 0, FE12))","v":0},{"$f":"IF(OR(EXACT(集計用!FF7,\"事業概要：\"), EXACT(集計用!FF7,\"ー\"), ISNUMBER(VALUE(集計用!FF7))), 0, IF(集計用!FF7=\"\", 0, FF12))","v":0},{"$f":"IF(OR(EXACT(集計用!FG7,\"事業概要：\"), EXACT(集計用!FG7,\"ー\"), ISNUMBER(VALUE(集計用!FG7))), 0, IF(集計用!FG7=\"\", 0, FG12))","v":0},{"$f":"IF(OR(EXACT(集計用!FH7,\"事業概要：\"), EXACT(集計用!FH7,\"ー\"), ISNUMBER(VALUE(集計用!FH7))), 0, IF(集計用!FH7=\"\", 0, FH12))","v":0},{"$f":"IF(OR(EXACT(集計用!FI7,\"事業概要：\"), EXACT(集計用!FI7,\"ー\"), ISNUMBER(VALUE(集計用!FI7))), 0, IF(集計用!FI7=\"\", 0, FI12))","v":0},{"$f":"IF(OR(EXACT(集計用!FJ7,\"事業概要：\"), EXACT(集計用!FJ7,\"ー\"), ISNUMBER(VALUE(集計用!FJ7))), 0, IF(集計用!FJ7=\"\", 0, FJ12))","v":0},{"$f":"IF(OR(EXACT(集計用!FK7,\"事業概要：\"), EXACT(集計用!FK7,\"ー\"), ISNUMBER(VALUE(集計用!FK7))), 0, IF(集計用!FK7=\"\", 0, FK12))","v":0},{"$f":"IF(OR(EXACT(集計用!FL7,\"事業概要：\"), EXACT(集計用!FL7,\"ー\"), ISNUMBER(VALUE(集計用!FL7))), 0, IF(集計用!FL7=\"\", 0, FL12))","v":0},{"$f":"IF(OR(EXACT(集計用!FM7,\"事業概要：\"), EXACT(集計用!FM7,\"ー\"), ISNUMBER(VALUE(集計用!FM7))), 0, IF(集計用!FM7=\"\", 0, FM12))","v":0},{"$f":"IF(OR(EXACT(集計用!FN7,\"事業概要：\"), EXACT(集計用!FN7,\"ー\"), ISNUMBER(VALUE(集計用!FN7))), 0, IF(集計用!FN7=\"\", 0, FN12))","v":0},{"$f":"IF(OR(EXACT(集計用!FO7,\"事業概要：\"), EXACT(集計用!FO7,\"ー\"), ISNUMBER(VALUE(集計用!FO7))), 0, IF(集計用!FO7=\"\", 0, FO12))","v":0},{"$f":"IF(OR(EXACT(集計用!FP7,\"事業概要：\"), EXACT(集計用!FP7,\"ー\"), ISNUMBER(VALUE(集計用!FP7))), 0, IF(集計用!FP7=\"\", 0, FP12))","v":0},{"$f":"IF(OR(EXACT(集計用!FQ7,\"事業概要：\"), EXACT(集計用!FQ7,\"ー\"), ISNUMBER(VALUE(集計用!FQ7))), 0, IF(集計用!FQ7=\"\", 0, FQ12))","v":0},{"$f":"IF(OR(EXACT(集計用!FR7,\"事業概要：\"), EXACT(集計用!FR7,\"ー\"), ISNUMBER(VALUE(集計用!FR7))), 0, IF(集計用!FR7=\"\", 0, FR12))","v":0},{"$f":"IF(OR(EXACT(集計用!FS7,\"事業概要：\"), EXACT(集計用!FS7,\"ー\"), ISNUMBER(VALUE(集計用!FS7))), 0, IF(集計用!FS7=\"\", 0, FS12))","v":0},{"$f":"IF(OR(EXACT(集計用!FT7,\"事業概要：\"), EXACT(集計用!FT7,\"ー\"), ISNUMBER(VALUE(集計用!FT7))), 0, IF(集計用!FT7=\"\", 0, FT12))","v":0},{"$f":"IF(OR(EXACT(集計用!FU7,\"事業概要：\"), EXACT(集計用!FU7,\"ー\"), ISNUMBER(VALUE(集計用!FU7))), 0, IF(集計用!FU7=\"\", 0, FU12))","v":0},{"$f":"IF(OR(EXACT(集計用!FV7,\"事業概要：\"), EXACT(集計用!FV7,\"ー\"), ISNUMBER(VALUE(集計用!FV7))), 0, IF(集計用!FV7=\"\", 0, FV12))","v":0},{"$f":"IF(OR(EXACT(集計用!FW7,\"事業概要：\"), EXACT(集計用!FW7,\"ー\"), ISNUMBER(VALUE(集計用!FW7))), 0, IF(集計用!FW7=\"\", 0, FW12))","v":0},{"$f":"IF(OR(EXACT(集計用!FX7,\"事業概要：\"), EXACT(集計用!FX7,\"ー\"), ISNUMBER(VALUE(集計用!FX7))), 0, IF(集計用!FX7=\"\", 0, FX12))","v":0},{"$f":"IF(OR(EXACT(集計用!FY7,\"事業概要：\"), EXACT(集計用!FY7,\"ー\"), ISNUMBER(VALUE(集計用!FY7))), 0, IF(集計用!FY7=\"\", 0, FY12))","v":0},{"$f":"IF(OR(EXACT(集計用!FZ7,\"事業概要：\"), EXACT(集計用!FZ7,\"ー\"), ISNUMBER(VALUE(集計用!FZ7))), 0, IF(集計用!FZ7=\"\", 0, FZ12))","v":0},{"$f":"IF(OR(EXACT(集計用!GA7,\"事業概要：\"), EXACT(集計用!GA7,\"ー\"), ISNUMBER(VALUE(集計用!GA7))), 0, IF(集計用!GA7=\"\", 0, GA12))","v":0},{"$f":"IF(OR(EXACT(集計用!GB7,\"事業概要：\"), EXACT(集計用!GB7,\"ー\"), ISNUMBER(VALUE(集計用!GB7))), 0, IF(集計用!GB7=\"\", 0, GB12))","v":0},{"$f":"IF(OR(EXACT(集計用!GC7,\"事業概要：\"), EXACT(集計用!GC7,\"ー\"), ISNUMBER(VALUE(集計用!GC7))), 0, IF(集計用!GC7=\"\", 0, GC12))","v":0},{"$f":"IF(OR(EXACT(集計用!GD7,\"事業概要：\"), EXACT(集計用!GD7,\"ー\"), ISNUMBER(VALUE(集計用!GD7))), 0, IF(集計用!GD7=\"\", 0, GD12))","v":0},{"$f":"IF(OR(EXACT(集計用!GE7,\"事業概要：\"), EXACT(集計用!GE7,\"ー\"), ISNUMBER(VALUE(集計用!GE7))), 0, IF(集計用!GE7=\"\", 0, GE12))","v":0},{"$f":"IF(OR(EXACT(集計用!GF7,\"事業概要：\"), EXACT(集計用!GF7,\"ー\"), ISNUMBER(VALUE(集計用!GF7))), 0, IF(集計用!GF7=\"\", 0, GF12))","v":0},{"$f":"IF(OR(EXACT(集計用!GG7,\"事業概要：\"), EXACT(集計用!GG7,\"ー\"), ISNUMBER(VALUE(集計用!GG7))), 0, IF(集計用!GG7=\"\", 0, GG12))","v":0},{"$f":"IF(OR(EXACT(集計用!GH7,\"事業概要：\"), EXACT(集計用!GH7,\"ー\"), ISNUMBER(VALUE(集計用!GH7))), 0, IF(集計用!GH7=\"\", 0, GH12))","v":0},{"$f":"IF(OR(EXACT(集計用!GI7,\"事業概要：\"), EXACT(集計用!GI7,\"ー\"), ISNUMBER(VALUE(集計用!GI7))), 0, IF(集計用!GI7=\"\", 0, GI12))","v":0},{"$f":"IF(OR(EXACT(集計用!GJ7,\"事業概要：\"), EXACT(集計用!GJ7,\"ー\"), ISNUMBER(VALUE(集計用!GJ7))), 0, IF(集計用!GJ7=\"\", 0, GJ12))","v":0},{"$f":"IF(OR(EXACT(集計用!GK7,\"事業概要：\"), EXACT(集計用!GK7,\"ー\"), ISNUMBER(VALUE(集計用!GK7))), 0, IF(集計用!GK7=\"\", 0, GK12))","v":0},{"$f":"IF(OR(EXACT(集計用!GL7,\"事業概要：\"), EXACT(集計用!GL7,\"ー\"), ISNUMBER(VALUE(集計用!GL7))), 0, IF(集計用!GL7=\"\", 0, GL12))","v":0},{"$f":"IF(OR(EXACT(集計用!GM7,\"事業概要：\"), EXACT(集計用!GM7,\"ー\"), ISNUMBER(VALUE(集計用!GM7))), 0, IF(集計用!GM7=\"\", 0, GM12))","v":0},{"$f":"IF(OR(EXACT(集計用!GN7,\"事業概要：\"), EXACT(集計用!GN7,\"ー\"), ISNUMBER(VALUE(集計用!GN7))), 0, IF(集計用!GN7=\"\", 0, GN12))","v":0},{"$f":"IF(OR(EXACT(集計用!GO7,\"事業概要：\"), EXACT(集計用!GO7,\"ー\"), ISNUMBER(VALUE(集計用!GO7))), 0, IF(集計用!GO7=\"\", 0, GO12))","v":0},{"$f":"IF(OR(EXACT(集計用!GP7,\"事業概要：\"), EXACT(集計用!GP7,\"ー\"), ISNUMBER(VALUE(集計用!GP7))), 0, IF(集計用!GP7=\"\", 0, GP12))","v":0},{"$f":"IF(OR(EXACT(集計用!GQ7,\"事業概要：\"), EXACT(集計用!GQ7,\"ー\"), ISNUMBER(VALUE(集計用!GQ7))), 0, IF(集計用!GQ7=\"\", 0, GQ12))","v":0},{"$f":"IF(OR(EXACT(集計用!GR7,\"事業概要：\"), EXACT(集計用!GR7,\"ー\"), ISNUMBER(VALUE(集計用!GR7))), 0, IF(集計用!GR7=\"\", 0, GR12))","v":0},{"$f":"IF(OR(EXACT(集計用!GS7,\"事業概要：\"), EXACT(集計用!GS7,\"ー\"), ISNUMBER(VALUE(集計用!GS7))), 0, IF(集計用!GS7=\"\", 0, GS12))","v":0},{"$f":"IF(OR(EXACT(集計用!GT7,\"事業概要：\"), EXACT(集計用!GT7,\"ー\"), ISNUMBER(VALUE(集計用!GT7))), 0, IF(集計用!GT7=\"\", 0, GT12))","v":0},{"$f":"IF(OR(EXACT(集計用!GU7,\"事業概要：\"), EXACT(集計用!GU7,\"ー\"), ISNUMBER(VALUE(集計用!GU7))), 0, IF(集計用!GU7=\"\", 0, GU12))","v":0},{"$f":"IF(OR(EXACT(集計用!GV7,\"事業概要：\"), EXACT(集計用!GV7,\"ー\"), ISNUMBER(VALUE(集計用!GV7))), 0, IF(集計用!GV7=\"\", 0, GV12))","v":0},{"$f":"IF(OR(EXACT(集計用!GW7,\"事業概要：\"), EXACT(集計用!GW7,\"ー\"), ISNUMBER(VALUE(集計用!GW7))), 0, IF(集計用!GW7=\"\", 0, GW12))","v":0},{"$f":"IF(OR(EXACT(集計用!GX7,\"事業概要：\"), EXACT(集計用!GX7,\"ー\"), ISNUMBER(VALUE(集計用!GX7))), 0, IF(集計用!GX7=\"\", 0, GX12))","v":0},{"$f":"IF(OR(EXACT(集計用!GY7,\"事業概要：\"), EXACT(集計用!GY7,\"ー\"), ISNUMBER(VALUE(集計用!GY7))), 0, IF(集計用!GY7=\"\", 0, GY12))","v":0},{"$f":"IF(OR(EXACT(集計用!GZ7,\"事業概要：\"), EXACT(集計用!GZ7,\"ー\"), ISNUMBER(VALUE(集計用!GZ7))), 0, IF(集計用!GZ7=\"\", 0, GZ12))","v":0},{"$f":"IF(OR(EXACT(集計用!HA7,\"事業概要：\"), EXACT(集計用!HA7,\"ー\"), EXACT(集計用!HA7,0), NOT(ISNUMBER(VALUE(集計用!HA7)))), 0, IF(集計用!HA7=\"\", 0, HA12))","v":0},{"$f":"IF(OR(EXACT(集計用!HB7,\"事業概要：\"), EXACT(集計用!HB7,\"ー\"), EXACT(集計用!HB7,0), NOT(ISNUMBER(VALUE(集計用!HB7)))), 0, IF(集計用!HB7=\"\", 0, HB12))","v":0},{"$f":"IF(OR(EXACT(集計用!HC7,\"事業概要：\"), EXACT(集計用!HC7,\"ー\"), ISNUMBER(VALUE(集計用!HC7))), 0, IF(集計用!HC7=\"\", 0, HC12))","v":0},{"$f":"IF(OR(EXACT(集計用!HD7,\"事業概要：\"), EXACT(集計用!HD7,\"ー\"), ISNUMBER(VALUE(集計用!HD7))), 0, IF(集計用!HD7=\"\", 0, HD12))","v":0},{"$f":"IF(OR(EXACT(集計用!HE7,\"事業概要：\"), EXACT(集計用!HE7,\"ー\"), ISNUMBER(VALUE(集計用!HE7))), 0, IF(集計用!HE7=\"\", 0, HE12))","v":0},{"$f":"IF(OR(EXACT(集計用!HF7,\"事業概要：\"), EXACT(集計用!HF7,\"ー\"), ISNUMBER(VALUE(集計用!HF7))), 0, IF(集計用!HF7=\"\", 0, HF12))","v":0},{"$f":"IF(OR(EXACT(集計用!HG7,\"事業概要：\"), EXACT(集計用!HG7,\"ー\"), ISNUMBER(VALUE(集計用!HG7))), 0, IF(集計用!HG7=\"\", 0, HG12))","v":0},{"$f":"IF(OR(EXACT(集計用!HH7,\"事業概要：\"), EXACT(集計用!HH7,\"ー\"), ISNUMBER(VALUE(集計用!HH7))), 0, IF(集計用!HH7=\"\", 0, HH12))","v":0},{"$f":"IF(OR(EXACT(集計用!HI7,\"事業概要：\"), EXACT(集計用!HI7,\"ー\"), ISNUMBER(VALUE(集計用!HI7))), 0, IF(集計用!HI7=\"\", 0, HI12))","v":0},{"$f":"IF(OR(EXACT(集計用!HJ7,\"事業概要：\"), EXACT(集計用!HJ7,\"ー\"), EXACT(集計用!HJ7,0), NOT(ISNUMBER(VALUE(集計用!HJ7)))), 0, IF(集計用!HJ7=\"\", 0, HJ12))","v":0},{"$f":"IF(OR(EXACT(集計用!HK7,\"事業概要：\"), EXACT(集計用!HK7,\"ー\"), EXACT(集計用!HK7,0), NOT(ISNUMBER(VALUE(集計用!HK7)))), 0, IF(集計用!HK7=\"\", 0, HK12))","v":0},{"$f":"IF(OR(EXACT(集計用!HL7,\"事業概要：\"), EXACT(集計用!HL7,\"ー\"), ISNUMBER(VALUE(集計用!HL7))), 0, IF(集計用!HL7=\"\", 0, HL12))","v":0},{"$f":"IF(OR(EXACT(集計用!HM7,\"事業概要：\"), EXACT(集計用!HM7,\"ー\"), ISNUMBER(VALUE(集計用!HM7))), 0, IF(集計用!HM7=\"\", 0, HM12))","v":0},{"$f":"IF(OR(EXACT(集計用!HN7,\"事業概要：\"), EXACT(集計用!HN7,\"ー\"), ISNUMBER(VALUE(集計用!HN7))), 0, IF(集計用!HN7=\"\", 0, HN12))","v":0},{"$f":"IF(OR(EXACT(集計用!HO7,\"事業概要：\"), EXACT(集計用!HO7,\"ー\"), ISNUMBER(VALUE(集計用!HO7))), 0, IF(集計用!HO7=\"\", 0, HO12))","v":0},{"$f":"IF(OR(EXACT(集計用!HP7,\"事業概要：\"), EXACT(集計用!HP7,\"ー\"), ISNUMBER(VALUE(集計用!HP7))), 0, IF(集計用!HP7=\"\", 0, HP12))","v":0},{"$f":"IF(OR(EXACT(集計用!HQ7,\"事業概要：\"), EXACT(集計用!HQ7,\"ー\"), ISNUMBER(VALUE(集計用!HQ7))), 0, IF(集計用!HQ7=\"\", 0, HQ12))","v":0},{"$f":"IF(OR(EXACT(集計用!HR7,\"事業概要：\"), EXACT(集計用!HR7,\"ー\"), ISNUMBER(VALUE(集計用!HR7))), 0, IF(集計用!HR7=\"\", 0, HR12))","v":0},{"$f":"IF(OR(EXACT(集計用!HS7,\"事業概要：\"), EXACT(集計用!HS7,\"ー\"), EXACT(集計用!HS7,0), NOT(ISNUMBER(VALUE(集計用!HS7)))), 0, IF(集計用!HS7=\"\", 0, HS12))","v":0},{"$f":"IF(OR(EXACT(集計用!HT7,\"事業概要：\"), EXACT(集計用!HT7,\"ー\"), EXACT(集計用!HT7,0), NOT(ISNUMBER(VALUE(集計用!HT7)))), 0, IF(集計用!HT7=\"\", 0, HT12))","v":0},{"$f":"IF(OR(EXACT(集計用!HU7,\"事業概要：\"), EXACT(集計用!HU7,\"ー\"), ISNUMBER(VALUE(集計用!HU7))), 0, IF(集計用!HU7=\"\", 0, HU12))","v":0},{"$f":"IF(OR(EXACT(集計用!HV7,\"事業概要：\"), EXACT(集計用!HV7,\"ー\"), ISNUMBER(VALUE(集計用!HV7))), 0, IF(集計用!HV7=\"\", 0, HV12))","v":0},{"$f":"IF(OR(EXACT(集計用!HW7,\"事業概要：\"), EXACT(集計用!HW7,\"ー\"), ISNUMBER(VALUE(集計用!HW7))), 0, IF(集計用!HW7=\"\", 0, HW12))","v":0},{"$f":"IF(OR(EXACT(集計用!HX7,\"事業概要：\"), EXACT(集計用!HX7,\"ー\"), ISNUMBER(VALUE(集計用!HX7))), 0, IF(集計用!HX7=\"\", 0, HX12))","v":0},{"$f":"IF(OR(EXACT(集計用!HY7,\"事業概要：\"), EXACT(集計用!HY7,\"ー\"), ISNUMBER(VALUE(集計用!HY7))), 0, IF(集計用!HY7=\"\", 0, HY12))","v":0},{"$f":"IF(OR(EXACT(集計用!HZ7,\"事業概要：\"), EXACT(集計用!HZ7,\"ー\"), ISNUMBER(VALUE(集計用!HZ7))), 0, IF(集計用!HZ7=\"\", 0, HZ12))","v":0},{"$f":"IF(OR(EXACT(集計用!IA7,\"事業概要：\"), EXACT(集計用!IA7,\"ー\"), ISNUMBER(VALUE(集計用!IA7))), 0, IF(集計用!IA7=\"\", 0, IA12))","v":0},{"$f":"IF(OR(EXACT(集計用!IB7,\"事業概要：\"), EXACT(集計用!IB7,\"ー\"), EXACT(集計用!IB7,0), NOT(ISNUMBER(VALUE(集計用!IB7)))), 0, IF(集計用!IB7=\"\", 0, IB12))","v":0},{"$f":"IF(OR(EXACT(集計用!IC7,\"事業概要：\"), EXACT(集計用!IC7,\"ー\"), EXACT(集計用!IC7,0), NOT(ISNUMBER(VALUE(集計用!IC7)))), 0, IF(集計用!IC7=\"\", 0, IC12))","v":0},{"$f":"IF(OR(EXACT(集計用!ID7,\"事業概要：\"), EXACT(集計用!ID7,\"ー\"), ISNUMBER(VALUE(集計用!ID7))), 0, IF(集計用!ID7=\"\", 0, ID12))","v":0},{"$f":"IF(OR(EXACT(集計用!IE7,\"事業概要：\"), EXACT(集計用!IE7,\"ー\"), ISNUMBER(VALUE(集計用!IE7))), 0, IF(集計用!IE7=\"\", 0, IE12))","v":0},{"$f":"IF(OR(EXACT(集計用!IF7,\"事業概要：\"), EXACT(集計用!IF7,\"ー\"), ISNUMBER(VALUE(集計用!IF7))), 0, IF(集計用!IF7=\"\", 0, IF12))","v":0},{"$f":"IF(OR(EXACT(集計用!IG7,\"事業概要：\"), EXACT(集計用!IG7,\"ー\"), ISNUMBER(VALUE(集計用!IG7))), 0, IF(集計用!IG7=\"\", 0, IG12))","v":0},{"$f":"IF(OR(EXACT(集計用!IH7,\"事業概要：\"), EXACT(集計用!IH7,\"ー\"), ISNUMBER(VALUE(集計用!IH7))), 0, IF(集計用!IH7=\"\", 0, IH12))","v":0},{"$f":"IF(OR(EXACT(集計用!II7,\"事業概要：\"), EXACT(集計用!II7,\"ー\"), ISNUMBER(VALUE(集計用!II7))), 0, IF(集計用!II7=\"\", 0, II12))","v":0},{"$f":"IF(OR(EXACT(集計用!IJ7,\"事業概要：\"), EXACT(集計用!IJ7,\"ー\"), ISNUMBER(VALUE(集計用!IJ7))), 0, IF(集計用!IJ7=\"\", 0, IJ12))","v":0},{"$f":"IF(OR(EXACT(集計用!IK7,\"事業概要：\"), EXACT(集計用!IK7,\"ー\"), EXACT(集計用!IK7,0), NOT(ISNUMBER(VALUE(集計用!IK7)))), 0, IF(集計用!IK7=\"\", 0, IK12))","v":0},{"$f":"IF(OR(EXACT(集計用!IL7,\"事業概要：\"), EXACT(集計用!IL7,\"ー\"), EXACT(集計用!IL7,0), NOT(ISNUMBER(VALUE(集計用!IL7)))), 0, IF(集計用!IL7=\"\", 0, IL12))","v":0},{"$f":"IF(OR(EXACT(集計用!IM7,\"事業概要：\"), EXACT(集計用!IM7,\"ー\"), ISNUMBER(VALUE(集計用!IM7))), 0, IF(集計用!IM7=\"\", 0, IM12))","v":0},{"$f":"IF(OR(EXACT(集計用!IN7,\"事業概要：\"), EXACT(集計用!IN7,\"ー\"), ISNUMBER(VALUE(集計用!IN7))), 0, IF(集計用!IN7=\"\", 0, IN12))","v":0},{"$f":"IF(OR(EXACT(集計用!IO7,\"事業概要：\"), EXACT(集計用!IO7,\"ー\"), ISNUMBER(VALUE(集計用!IO7))), 0, IF(集計用!IO7=\"\", 0, IO12))","v":0},{"$f":"IF(OR(EXACT(集計用!IP7,\"事業概要：\"), EXACT(集計用!IP7,\"ー\"), ISNUMBER(VALUE(集計用!IP7))), 0, IF(集計用!IP7=\"\", 0, IP12))","v":0},{"$f":"IF(OR(EXACT(集計用!IQ7,\"事業概要：\"), EXACT(集計用!IQ7,\"ー\"), ISNUMBER(VALUE(集計用!IQ7))), 0, IF(集計用!IQ7=\"\", 0, IQ12))","v":0},{"$f":"IF(OR(EXACT(集計用!IR7,\"事業概要：\"), EXACT(集計用!IR7,\"ー\"), ISNUMBER(VALUE(集計用!IR7))), 0, IF(集計用!IR7=\"\", 0, IR12))","v":0},{"$f":"IF(OR(EXACT(集計用!IS7,\"事業概要：\"), EXACT(集計用!IS7,\"ー\"), ISNUMBER(VALUE(集計用!IS7))), 0, IF(集計用!IS7=\"\", 0, IS12))","v":0},{"$f":"IF(OR(EXACT(集計用!IT7,\"事業概要：\"), EXACT(集計用!IT7,\"ー\"), EXACT(集計用!IT7,0), NOT(ISNUMBER(VALUE(集計用!IT7)))), 0, IF(集計用!IT7=\"\", 0, IT12))","v":0},{"$f":"IF(OR(EXACT(集計用!IU7,\"事業概要：\"), EXACT(集計用!IU7,\"ー\"), EXACT(集計用!IU7,0), NOT(ISNUMBER(VALUE(集計用!IU7)))), 0, IF(集計用!IU7=\"\", 0, IU12))","v":0},{"$f":"IF(OR(EXACT(集計用!IV7,\"事業概要：\"), EXACT(集計用!IV7,\"ー\"), ISNUMBER(VALUE(集計用!IV7))), 0, IF(集計用!IV7=\"\", 0, IV12))","v":0},{"$f":"IF(OR(EXACT(集計用!IW7,\"事業概要：\"), EXACT(集計用!IW7,\"ー\"), ISNUMBER(VALUE(集計用!IW7))), 0, IF(集計用!IW7=\"\", 0, IW12))","v":0},{"$f":"IF(OR(EXACT(集計用!IX7,\"事業概要：\"), EXACT(集計用!IX7,\"ー\"), ISNUMBER(VALUE(集計用!IX7))), 0, IF(集計用!IX7=\"\", 0, IX12))","v":0},{"$f":"IF(OR(EXACT(集計用!IY7,\"事業概要：\"), EXACT(集計用!IY7,\"ー\"), ISNUMBER(VALUE(集計用!IY7))), 0, IF(集計用!IY7=\"\", 0, IY12))","v":0},{"$f":"IF(OR(EXACT(集計用!IZ7,\"事業概要：\"), EXACT(集計用!IZ7,\"ー\"), ISNUMBER(VALUE(集計用!IZ7))), 0, IF(集計用!IZ7=\"\", 0, IZ12))","v":0},{"$f":"IF(OR(EXACT(集計用!JA7,\"事業概要：\"), EXACT(集計用!JA7,\"ー\"), ISNUMBER(VALUE(集計用!JA7))), 0, IF(集計用!JA7=\"\", 0, JA12))","v":0},{"$f":"IF(OR(EXACT(集計用!JB7,\"事業概要：\"), EXACT(集計用!JB7,\"ー\"), ISNUMBER(VALUE(集計用!JB7))), 0, IF(集計用!JB7=\"\", 0, JB12))","v":0},{"$f":"IF(OR(EXACT(集計用!JC7,\"事業概要：\"), EXACT(集計用!JC7,\"ー\"), EXACT(集計用!JC7,0), NOT(ISNUMBER(VALUE(集計用!JC7)))), 0, IF(集計用!JC7=\"\", 0, JC12))","v":0},{"$f":"IF(OR(EXACT(集計用!JD7,\"事業概要：\"), EXACT(集計用!JD7,\"ー\"), EXACT(集計用!JD7,0), NOT(ISNUMBER(VALUE(集計用!JD7)))), 0, IF(集計用!JD7=\"\", 0, JD12))","v":0},{"$f":"IF(OR(EXACT(集計用!JE7,\"事業概要：\"), EXACT(集計用!JE7,\"ー\"), ISNUMBER(VALUE(集計用!JE7))), 0, IF(集計用!JE7=\"\", 0, JE12))","v":0},{"$f":"IF(OR(EXACT(集計用!JF7,\"事業概要：\"), EXACT(集計用!JF7,\"ー\"), ISNUMBER(VALUE(集計用!JF7))), 0, IF(集計用!JF7=\"\", 0, JF12))","v":0},{"$f":"IF(OR(EXACT(集計用!JG7,\"事業概要：\"), EXACT(集計用!JG7,\"ー\"), ISNUMBER(VALUE(集計用!JG7))), 0, IF(集計用!JG7=\"\", 0, JG12))","v":0},{"$f":"IF(OR(EXACT(集計用!JH7,\"事業概要：\"), EXACT(集計用!JH7,\"ー\"), ISNUMBER(VALUE(集計用!JH7))), 0, IF(集計用!JH7=\"\", 0, JH12))","v":0},{"$f":"IF(OR(EXACT(集計用!JI7,\"事業概要：\"), EXACT(集計用!JI7,\"ー\"), ISNUMBER(VALUE(集計用!JI7))), 0, IF(集計用!JI7=\"\", 0, JI12))","v":0},{"$f":"IF(OR(EXACT(集計用!JJ7,\"事業概要：\"), EXACT(集計用!JJ7,\"ー\"), ISNUMBER(VALUE(集計用!JJ7))), 0, IF(集計用!JJ7=\"\", 0, JJ12))","v":0},{"$f":"IF(OR(EXACT(集計用!JK7,\"事業概要：\"), EXACT(集計用!JK7,\"ー\"), ISNUMBER(VALUE(集計用!JK7))), 0, IF(集計用!JK7=\"\", 0, JK12))","v":0},{"$f":"IF(OR(EXACT(集計用!JL7,\"事業概要：\"), EXACT(集計用!JL7,\"ー\"), EXACT(集計用!JL7,0), NOT(ISNUMBER(VALUE(集計用!JL7)))), 0, IF(集計用!JL7=\"\", 0, JL12))","v":0},{"$f":"IF(OR(EXACT(集計用!JM7,\"事業概要：\"), EXACT(集計用!JM7,\"ー\"), EXACT(集計用!JM7,0), NOT(ISNUMBER(VALUE(集計用!JM7)))), 0, IF(集計用!JM7=\"\", 0, JM12))","v":0},{"$f":"IF(OR(EXACT(集計用!JN7,\"事業概要：\"), EXACT(集計用!JN7,\"ー\"), ISNUMBER(VALUE(集計用!JN7))), 0, IF(集計用!JN7=\"\", 0, JN12))","v":0},{"$f":"IF(OR(EXACT(集計用!JO7,\"事業概要：\"), EXACT(集計用!JO7,\"ー\"), ISNUMBER(VALUE(集計用!JO7))), 0, IF(集計用!JO7=\"\", 0, JO12))","v":0},{"$f":"IF(OR(EXACT(集計用!JP7,\"事業概要：\"), EXACT(集計用!JP7,\"ー\"), ISNUMBER(VALUE(集計用!JP7))), 0, IF(集計用!JP7=\"\", 0, JP12))","v":0},{"$f":"IF(OR(EXACT(集計用!JQ7,\"事業概要：\"), EXACT(集計用!JQ7,\"ー\"), ISNUMBER(VALUE(集計用!JQ7))), 0, IF(集計用!JQ7=\"\", 0, JQ12))","v":0},{"$f":"IF(OR(EXACT(集計用!JR7,\"事業概要：\"), EXACT(集計用!JR7,\"ー\"), ISNUMBER(VALUE(集計用!JR7))), 0, IF(集計用!JR7=\"\", 0, JR12))","v":0},{"$f":"IF(OR(EXACT(集計用!JS7,\"事業概要：\"), EXACT(集計用!JS7,\"ー\"), ISNUMBER(VALUE(集計用!JS7))), 0, IF(集計用!JS7=\"\", 0, JS12))","v":0},{"$f":"IF(OR(EXACT(集計用!JT7,\"事業概要：\"), EXACT(集計用!JT7,\"ー\"), ISNUMBER(VALUE(集計用!JT7))), 0, IF(集計用!JT7=\"\", 0, JT12))","v":0},{"$f":"IF(OR(EXACT(集計用!JU7,\"事業概要：\"), EXACT(集計用!JU7,\"ー\"), EXACT(集計用!JU7,0), NOT(ISNUMBER(VALUE(集計用!JU7)))), 0, IF(集計用!JU7=\"\", 0, JU12))","v":0},{"$f":"IF(OR(EXACT(集計用!JV7,\"事業概要：\"), EXACT(集計用!JV7,\"ー\"), EXACT(集計用!JV7,0), NOT(ISNUMBER(VALUE(集計用!JV7)))), 0, IF(集計用!JV7=\"\", 0, JV12))","v":0},{"$f":"IF(OR(EXACT(集計用!JW7,\"事業概要：\"), EXACT(集計用!JW7,\"ー\"), ISNUMBER(VALUE(集計用!JW7))), 0, IF(集計用!JW7=\"\", 0, JW12))","v":0},{"$f":"IF(OR(EXACT(集計用!JX7,\"事業概要：\"), EXACT(集計用!JX7,\"ー\"), ISNUMBER(VALUE(集計用!JX7))), 0, IF(集計用!JX7=\"\", 0, JX12))","v":0},{"$f":"IF(OR(EXACT(集計用!JY7,\"事業概要：\"), EXACT(集計用!JY7,\"ー\"), ISNUMBER(VALUE(集計用!JY7))), 0, IF(集計用!JY7=\"\", 0, JY12))","v":0},{"$f":"IF(OR(EXACT(集計用!JZ7,\"事業概要：\"), EXACT(集計用!JZ7,\"ー\"), ISNUMBER(VALUE(集計用!JZ7))), 0, IF(集計用!JZ7=\"\", 0, JZ12))","v":0},{"$f":"IF(OR(EXACT(集計用!KA7,\"事業概要：\"), EXACT(集計用!KA7,\"ー\"), ISNUMBER(VALUE(集計用!KA7))), 0, IF(集計用!KA7=\"\", 0, KA12))","v":0},{"$f":"IF(OR(EXACT(集計用!KB7,\"事業概要：\"), EXACT(集計用!KB7,\"ー\"), ISNUMBER(VALUE(集計用!KB7))), 0, IF(集計用!KB7=\"\", 0, KB12))","v":0},{"$f":"IF(OR(EXACT(集計用!KC7,\"事業概要：\"), EXACT(集計用!KC7,\"ー\"), ISNUMBER(VALUE(集計用!KC7))), 0, IF(集計用!KC7=\"\", 0, KC12))","v":0},{"$f":"IF(OR(EXACT(集計用!KD7,\"事業概要：\"), EXACT(集計用!KD7,\"ー\"), EXACT(集計用!KD7,0), NOT(ISNUMBER(VALUE(集計用!KD7)))), 0, IF(集計用!KD7=\"\", 0, KD12))","v":0},{"$f":"IF(OR(EXACT(集計用!KE7,\"事業概要：\"), EXACT(集計用!KE7,\"ー\"), EXACT(集計用!KE7,0), NOT(ISNUMBER(VALUE(集計用!KE7)))), 0, IF(集計用!KE7=\"\", 0, KE12))","v":0},{"$f":"IF(OR(EXACT(集計用!KF7,\"事業概要：\"), EXACT(集計用!KF7,\"ー\"), ISNUMBER(VALUE(集計用!KF7))), 0, IF(集計用!KF7=\"\", 0, KF12))","v":0},{"$f":"IF(OR(EXACT(集計用!KG7,\"事業概要：\"), EXACT(集計用!KG7,\"ー\"), ISNUMBER(VALUE(集計用!KG7))), 0, IF(集計用!KG7=\"\", 0, KG12))","v":0},{"$f":"IF(OR(EXACT(集計用!KH7,\"事業概要：\"), EXACT(集計用!KH7,\"ー\"), ISNUMBER(VALUE(集計用!KH7))), 0, IF(集計用!KH7=\"\", 0, KH12))","v":0},{"$f":"IF(OR(EXACT(集計用!KI7,\"事業概要：\"), EXACT(集計用!KI7,\"ー\"), ISNUMBER(VALUE(集計用!KI7))), 0, IF(集計用!KI7=\"\", 0, KI12))","v":0},{"$f":"IF(OR(EXACT(集計用!KJ7,\"事業概要：\"), EXACT(集計用!KJ7,\"ー\"), ISNUMBER(VALUE(集計用!KJ7))), 0, IF(集計用!KJ7=\"\", 0, KJ12))","v":0},{"$f":"IF(OR(EXACT(集計用!KK7,\"事業概要：\"), EXACT(集計用!KK7,\"ー\"), ISNUMBER(VALUE(集計用!KK7))), 0, IF(集計用!KK7=\"\", 0, KK12))","v":0},{"$f":"IF(OR(EXACT(集計用!KL7,\"事業概要：\"), EXACT(集計用!KL7,\"ー\"), ISNUMBER(VALUE(集計用!KL7))), 0, IF(集計用!KL7=\"\", 0, KL12))","v":0}]
[{"$f":"IF(OR(EXACT(集計用!A7,\"事業概要：\"),EXACT(集計用!A7,\"ー\"),集計用!A7=0,集計用!A7=\"\"),0,1)","v":0},{"$f":"IF(OR(EXACT(集計用!B7,\"事業概要：\"),EXACT(集計用!B7,\"ー\"),集計用!B7=0,集計用!B7=\"\"),0,1)","v":0},{"$f":"IF(OR(EXACT(集計用!C7,\"事業概要：\"),EXACT(集計用!C7,\"ー\"),集計用!C7=0,集計用!C7=\"\"),0,1)","v":0},{"$f":"IF(OR(EXACT(集計用!D7,\"事業概要：\"),EXACT(集計用!D7,\"ー\"),集計用!D7=0,集計用!D7=\"\"),0,1)","v":0},{"$f":"IF(OR(EXACT(集計用!E7,\"事業概要：\"),EXACT(集計用!E7,\"ー\"),集計用!E7=0,集計用!E7=\"\"),0,1)","v":0},{"$f":"IF(OR(EXACT(集計用!F7,\"事業概要：\"),EXACT(集計用!F7,\"ー\"),集計用!F7=0,集計用!F7=\"\"),0,1)","v":0},{"$f":"IF(OR(EXACT(集計用!G7,\"事業概要：\"),EXACT(集計用!G7,\"ー\"),集計用!G7=0,集計用!G7=\"\"),0,1)","v":0},{"$f":"IF(OR(EXACT(集計用!H7,\"事業概要：\"),EXACT(集計用!H7,\"ー\"),集計用!H7=0,集計用!H7=\"\"),0,1)","v":0},{"$f":"IF(OR(EXACT(集計用!I7,\"事業概要：\"),EXACT(集計用!I7,\"ー\"),集計用!I7=0,集計用!I7=\"\"),0,1)","v":0},{"$f":"IF(OR(EXACT(集計用!J7,\"事業概要：\"),EXACT(集計用!J7,\"ー\"),集計用!J7=0,集計用!J7=\"\"),0,1)","v":0},{"$f":"IF(OR(EXACT(集計用!K7,\"事業概要：\"),EXACT(集計用!K7,\"ー\"),集計用!K7=0,集計用!K7=\"\"),0,1)","v":0},{"$f":"IF(OR(EXACT(集計用!L7,\"事業概要：\"),EXACT(集計用!L7,\"ー\"),集計用!L7=0,集計用!L7=\"\"),0,1)","v":0},{"$f":"IF(OR(EXACT(集計用!M7,\"事業概要：\"),EXACT(集計用!M7,\"ー\"),集計用!M7=0,集計用!M7=\"\"),0,1)","v":0},{"$f":"IF(OR(EXACT(集計用!N7,\"事業概要：\"),EXACT(集計用!N7,\"ー\"),集計用!N7=0,集計用!N7=\"\"),0,1)","v":0},{"$f":"IF(OR(EXACT(集計用!O7,\"事業概要：\"),EXACT(集計用!O7,\"ー\"),集計用!O7=0,集計用!O7=\"\"),0,1)","v":0},{"$f":"IF(OR(EXACT(集計用!P7,\"事業概要：\"),EXACT(集計用!P7,\"ー\"),集計用!P7=0,集計用!P7=\"\"),0,1)","v":0},{"$f":"IF(OR(EXACT(集計用!Q7,\"事業概要：\"),EXACT(集計用!Q7,\"ー\"),集計用!Q7=0,集計用!Q7=\"\"),0,1)","v":0},{"$f":"IF(OR(EXACT(集計用!R7,\"事業概要：\"),EXACT(集計用!R7,\"ー\"),集計用!R7=0,集計用!R7=\"\"),0,1)","v":0},{"$f":"IF(OR(EXACT(集計用!S7,\"事業概要：\"),EXACT(集計用!S7,\"ー\"),集計用!S7=0,集計用!S7=\"\"),0,1)","v":0},{"$f":"IF(OR(EXACT(集計用!T7,\"事業概要：\"),EXACT(集計用!T7,\"ー\"),集計用!T7=0,集計用!T7=\"\"),0,1)","v":0},{"$f":"IF(OR(EXACT(集計用!U7,\"事業概要：\"),EXACT(集計用!U7,\"ー\"),集計用!U7=0,集計用!U7=\"\"),0,1)","v":0},{"$f":"IF(OR(EXACT(集計用!V7,\"事業概要：\"),EXACT(集計用!V7,\"ー\"),集計用!V7=0,集計用!V7=\"\"),0,1)","v":0},{"$f":"IF(OR(EXACT(集計用!W7,\"事業概要：\"),EXACT(集計用!W7,\"ー\"),集計用!W7=0,集計用!W7=\"\"),0,1)","v":0},{"$f":"IF(OR(EXACT(集計用!X7,\"事業概要：\"),EXACT(集計用!X7,\"ー\"),集計用!X7=0,集計用!X7=\"\"),0,1)","v":0},{"$f":"IF(OR(EXACT(集計用!Y7,\"事業概要：\"),EXACT(集計用!Y7,\"ー\"),集計用!Y7=0,集計用!Y7=\"\"),0,1)","v":0},{"$f":"IF(OR(EXACT(集計用!Z7,\"事業概要：\"),EXACT(集計用!Z7,\"ー\"),集計用!Z7=0,集計用!Z7=\"\"),0,1)","v":0},{"$f":"IF(OR(EXACT(集計用!AA7,\"事業概要：\"),EXACT(集計用!AA7,\"ー\"),集計用!AA7=0,集計用!AA7=\"\"),0,1)","v":0},{"$f":"IF(OR(EXACT(集計用!AB7,\"事業概要：\"),EXACT(集計用!AB7,\"ー\"),集計用!AB7=0,集計用!AB7=\"\"),0,1)","v":0},{"$f":"IF(OR(EXACT(集計用!AC7,\"事業概要：\"),EXACT(集計用!AC7,\"ー\"),集計用!AC7=0,集計用!AC7=\"\"),0,1)","v":0},{"$f":"IF(OR(EXACT(集計用!AD7,\"事業概要：\"),EXACT(集計用!AD7,\"ー\"),集計用!AD7=0,集計用!AD7=\"\"),0,1)","v":0},{"$f":"IF(OR(EXACT(集計用!AE7,\"事業概要：\"),EXACT(集計用!AE7,\"ー\"),集計用!AE7=0,集計用!AE7=\"\"),0,1)","v":0},{"$f":"IF(OR(EXACT(集計用!AF7,\"事業概要：\"),EXACT(集計用!AF7,\"ー\"),集計用!AF7=0,集計用!AF7=\"\"),0,1)","v":0},{"$f":"IF(OR(EXACT(集計用!AG7,\"事業概要：\"),EXACT(集計用!AG7,\"ー\"),集計用!AG7=0,集計用!AG7=\"\"),0,1)","v":0},{"$f":"IF(OR(EXACT(集計用!AH7,\"事業概要：\"),EXACT(集計用!AH7,\"ー\"),集計用!AH7=0,集計用!AH7=\"\"),0,1)","v":0},{"$f":"IF(OR(EXACT(集計用!AI7,\"事業概要：\"),EXACT(集計用!AI7,\"ー\"),集計用!AI7=0,集計用!AI7=\"\"),0,1)","v":0},{"$f":"IF(OR(EXACT(集計用!AJ7,\"事業概要：\"),EXACT(集計用!AJ7,\"ー\"),集計用!AJ7=0,集計用!AJ7=\"\"),0,1)","v":0},{"$f":"IF(OR(EXACT(集計用!AK7,\"事業概要：\"),EXACT(集計用!AK7,\"ー\"),集計用!AK7=0,集計用!AK7=\"\"),0,1)","v":0},{"$f":"IF(OR(EXACT(集計用!AL7,\"事業概要：\"),EXACT(集計用!AL7,\"ー\"),集計用!AL7=0,集計用!AL7=\"\"),0,1)","v":0},{"$f":"IF(OR(EXACT(集計用!AM7,\"事業概要：\"),EXACT(集計用!AM7,\"ー\"),集計用!AM7=0,集計用!AM7=\"\"),0,1)","v":0},{"$f":"IF(OR(EXACT(集計用!AN7,\"事業概要：\"),EXACT(集計用!AN7,\"ー\"),集計用!AN7=0,集計用!AN7=\"\"),0,1)","v":0},{"$f":"IF(OR(EXACT(集計用!AO7,\"事業概要：\"),EXACT(集計用!AO7,\"ー\"),集計用!AO7=0,集計用!AO7=\"\"),0,1)","v":0},{"$f":"IF(OR(EXACT(集計用!AP7,\"事業概要：\"),EXACT(集計用!AP7,\"ー\"),集計用!AP7=0,集計用!AP7=\"\"),0,1)","v":0},{"$f":"IF(OR(EXACT(集計用!AQ7,\"事業概要：\"),EXACT(集計用!AQ7,\"ー\"),集計用!AQ7=0,集計用!AQ7=\"\"),0,1)","v":0},{"$f":"IF(OR(EXACT(集計用!AR7,\"事業概要：\"),EXACT(集計用!AR7,\"ー\"),集計用!AR7=0,集計用!AR7=\"\"),0,1)","v":0},{"$f":"IF(OR(EXACT(集計用!AS7,\"事業概要：\"),EXACT(集計用!AS7,\"ー\"),集計用!AS7=0,集計用!AS7=\"\"),0,1)","v":0},{"$f":"IF(OR(EXACT(集計用!AT7,\"事業概要：\"),EXACT(集計用!AT7,\"ー\"),集計用!AT7=0,集計用!AT7=\"\"),0,1)","v":0},{"$f":"IF(OR(EXACT(集計用!AU7,\"事業概要：\"),EXACT(集計用!AU7,\"ー\"),集計用!AU7=0,集計用!AU7=\"\"),0,1)","v":0},{"$f":"IF(OR(EXACT(集計用!AV7,\"事業概要：\"),EXACT(集計用!AV7,\"ー\"),集計用!AV7=0,集計用!AV7=\"\"),0,1)","v":0},{"$f":"IF(OR(EXACT(集計用!AW7,\"事業概要：\"),EXACT(集計用!AW7,\"ー\"),集計用!AW7=0,集計用!AW7=\"\"),0,1)","v":0},{"$f":"IF(OR(EXACT(集計用!AX7,\"事業概要：\"),EXACT(集計用!AX7,\"ー\"),集計用!AX7=0,集計用!AX7=\"\"),0,1)","v":0},{"$f":"IF(OR(EXACT(集計用!AY7,\"事業概要：\"),EXACT(集計用!AY7,\"ー\"),集計用!AY7=0,集計用!AY7=\"\"),0,1)","v":0},{"$f":"IF(OR(EXACT(集計用!AZ7,\"事業概要：\"),EXACT(集計用!AZ7,\"ー\"),集計用!AZ7=0,集計用!AZ7=\"\"),0,1)","v":0},{"$f":"IF(OR(EXACT(集計用!BA7,\"事業概要：\"),EXACT(集計用!BA7,\"ー\"),集計用!BA7=0,集計用!BA7=\"\"),0,1)","v":0},{"$f":"IF(OR(EXACT(集計用!BB7,\"事業概要：\"),EXACT(集計用!BB7,\"ー\"),集計用!BB7=0,集計用!BB7=\"\"),0,1)","v":0},{"$f":"IF(OR(EXACT(集計用!BC7,\"事業概要：\"),EXACT(集計用!BC7,\"ー\"),集計用!BC7=0,集計用!BC7=\"\"),0,1)","v":0},{"$f":"IF(OR(EXACT(集計用!BD7,\"事業概要：\"),EXACT(集計用!BD7,\"ー\"),集計用!BD7=0,集計用!BD7=\"\"),0,1)","v":0},{"$f":"IF(OR(EXACT(集計用!BE7,\"事業概要：\"),EXACT(集計用!BE7,\"ー\"),集計用!BE7=0,集計用!BE7=\"\"),0,1)","v":0},{"$f":"IF(OR(EXACT(集計用!BF7,\"事業概要：\"),EXACT(集計用!BF7,\"ー\"),集計用!BF7=0,集計用!BF7=\"\"),0,1)","v":0},{"$f":"IF(OR(EXACT(集計用!BG7,\"事業概要：\"),EXACT(集計用!BG7,\"ー\"),集計用!BG7=0,集計用!BG7=\"\"),0,1)","v":0},{"$f":"IF(OR(EXACT(集計用!BH7,\"事業概要：\"),EXACT(集計用!BH7,\"ー\"),集計用!BH7=0,集計用!BH7=\"\"),0,1)","v":0},{"$f":"IF(OR(EXACT(集計用!BI7,\"事業概要：\"),EXACT(集計用!BI7,\"ー\"),集計用!BI7=0,集計用!BI7=\"\"),0,1)","v":0},{"$f":"IF(OR(EXACT(集計用!BJ7,\"事業概要：\"),EXACT(集計用!BJ7,\"ー\"),集計用!BJ7=0,集計用!BJ7=\"\"),0,1)","v":0},{"$f":"IF(OR(EXACT(集計用!BK7,\"事業概要：\"),EXACT(集計用!BK7,\"ー\"),集計用!BK7=0,集計用!BK7=\"\"),0,1)","v":0},{"$f":"IF(OR(EXACT(集計用!BL7,\"事業概要：\"),EXACT(集計用!BL7,\"ー\"),集計用!BL7=0,集計用!BL7=\"\"),0,1)","v":0},{"$f":"IF(OR(EXACT(集計用!BM7,\"事業概要：\"),EXACT(集計用!BM7,\"ー\"),集計用!BM7=0,集計用!BM7=\"\"),0,1)","v":0},{"$f":"IF(OR(EXACT(集計用!BN7,\"事業概要：\"),EXACT(集計用!BN7,\"ー\"),集計用!BN7=0,集計用!BN7=\"\"),0,1)","v":0},{"$f":"IF(OR(EXACT(集計用!BO7,\"事業概要：\"),EXACT(集計用!BO7,\"ー\"),集計用!BO7=0,集計用!BO7=\"\"),0,1)","v":0},{"$f":"IF(OR(EXACT(集計用!BP7,\"事業概要：\"),EXACT(集計用!BP7,\"ー\"),集計用!BP7=0,集計用!BP7=\"\"),0,1)","v":0},{"$f":"IF(OR(EXACT(集計用!BQ7,\"事業概要：\"),EXACT(集計用!BQ7,\"ー\"),集計用!BQ7=0,集計用!BQ7=\"\"),0,1)","v":0},{"$f":"IF(OR(EXACT(集計用!BR7,\"事業概要：\"),EXACT(集計用!BR7,\"ー\"),集計用!BR7=0,集計用!BR7=\"\"),0,1)","v":0},{"$f":"IF(OR(EXACT(集計用!BS7,\"事業概要：\"),EXACT(集計用!BS7,\"ー\"),集計用!BS7=0,集計用!BS7=\"\"),0,1)","v":0},{"$f":"IF(OR(EXACT(集計用!BT7,\"事業概要：\"),EXACT(集計用!BT7,\"ー\"),集計用!BT7=0,集計用!BT7=\"\"),0,1)","v":0},{"$f":"IF(OR(EXACT(集計用!BU7,\"事業概要：\"),EXACT(集計用!BU7,\"ー\"),集計用!BU7=0,集計用!BU7=\"\"),0,1)","v":0},{"$f":"IF(OR(EXACT(集計用!BV7,\"事業概要：\"),EXACT(集計用!BV7,\"ー\"),集計用!BV7=0,集計用!BV7=\"\"),0,1)","v":0},{"$f":"IF(OR(EXACT(集計用!BW7,\"事業概要：\"),EXACT(集計用!BW7,\"ー\"),集計用!BW7=0,集計用!BW7=\"\"),0,1)","v":0},{"$f":"IF(OR(EXACT(集計用!BX7,\"事業概要：\"),EXACT(集計用!BX7,\"ー\"),集計用!BX7=0,集計用!BX7=\"\"),0,1)","v":0},{"$f":"IF(OR(EXACT(集計用!BY7,\"事業概要：\"),EXACT(集計用!BY7,\"ー\"),集計用!BY7=0,集計用!BY7=\"\"),0,1)","v":0},{"$f":"IF(OR(EXACT(集計用!BZ7,\"事業概要：\"),EXACT(集計用!BZ7,\"ー\"),集計用!BZ7=0,集計用!BZ7=\"\"),0,1)","v":0},{"$f":"IF(OR(EXACT(集計用!CA7,\"事業概要：\"),EXACT(集計用!CA7,\"ー\"),集計用!CA7=0,集計用!CA7=\"\"),0,1)","v":0},{"$f":"IF(OR(EXACT(集計用!CB7,\"事業概要：\"),EXACT(集計用!CB7,\"ー\"),集計用!CB7=0,集計用!CB7=\"\"),0,1)","v":0},{"$f":"IF(OR(EXACT(集計用!CC7,\"事業概要：\"),EXACT(集計用!CC7,\"ー\"),集計用!CC7=0,集計用!CC7=\"\"),0,1)","v":0},{"$f":"IF(OR(EXACT(集計用!CD7,\"事業概要：\"),EXACT(集計用!CD7,\"ー\"),集計用!CD7=0,集計用!CD7=\"\"),0,1)","v":0},{"$f":"IF(OR(EXACT(集計用!CE7,\"事業概要：\"),EXACT(集計用!CE7,\"ー\"),集計用!CE7=0,集計用!CE7=\"\"),0,1)","v":0},{"$f":"IF(OR(EXACT(集計用!CF7,\"事業概要：\"),EXACT(集計用!CF7,\"ー\"),集計用!CF7=0,集計用!CF7=\"\"),0,1)","v":0},{"$f":"IF(OR(EXACT(集計用!CG7,\"事業概要：\"),EXACT(集計用!CG7,\"ー\"),集計用!CG7=0,集計用!CG7=\"\"),0,1)","v":0},{"$f":"IF(OR(EXACT(集計用!CH7,\"事業概要：\"),EXACT(集計用!CH7,\"ー\"),集計用!CH7=0,集計用!CH7=\"\"),0,1)","v":0},{"$f":"IF(OR(EXACT(集計用!CI7,\"事業概要：\"),EXACT(集計用!CI7,\"ー\"),集計用!CI7=0,集計用!CI7=\"\"),0,1)","v":0},{"$f":"IF(OR(EXACT(集計用!CJ7,\"事業概要：\"),EXACT(集計用!CJ7,\"ー\"),集計用!CJ7=0,集計用!CJ7=\"\"),0,1)","v":0},{"$f":"IF(OR(EXACT(集計用!CK7,\"事業概要：\"),EXACT(集計用!CK7,\"ー\"),集計用!CK7=0,集計用!CK7=\"\"),0,1)","v":0},{"$f":"IF(OR(EXACT(集計用!CL7,\"事業概要：\"),EXACT(集計用!CL7,\"ー\"),集計用!CL7=0,集計用!CL7=\"\"),0,1)","v":0},{"$f":"IF(OR(EXACT(集計用!CM7,\"事業概要：\"),EXACT(集計用!CM7,\"ー\"),集計用!CM7=0,集計用!CM7=\"\"),0,1)","v":0},{"$f":"IF(OR(EXACT(集計用!CN7,\"事業概要：\"),EXACT(集計用!CN7,\"ー\"),集計用!CN7=0,集計用!CN7=\"\"),0,1)","v":0},{"$f":"IF(OR(EXACT(集計用!CO7,\"事業概要：\"),EXACT(集計用!CO7,\"ー\"),集計用!CO7=0,集計用!CO7=\"\"),0,1)","v":0},{"$f":"IF(OR(EXACT(集計用!CP7,\"事業概要：\"),EXACT(集計用!CP7,\"ー\"),集計用!CP7=0,集計用!CP7=\"\"),0,1)","v":0},{"$f":"IF(OR(EXACT(集計用!CQ7,\"事業概要：\"),EXACT(集計用!CQ7,\"ー\"),集計用!CQ7=0,集計用!CQ7=\"\"),0,1)","v":0},{"$f":"IF(OR(EXACT(集計用!CR7,\"事業概要：\"),EXACT(集計用!CR7,\"ー\"),集計用!CR7=0,集計用!CR7=\"\"),0,1)","v":0},{"$f":"IF(OR(EXACT(集計用!CS7,\"事業概要：\"),EXACT(集計用!CS7,\"ー\"),集計用!CS7=0,集計用!CS7=\"\"),0,1)","v":0},{"$f":"IF(OR(EXACT(集計用!CT7,\"事業概要：\"),EXACT(集計用!CT7,\"ー\"),集計用!CT7=0,集計用!CT7=\"\"),0,1)","v":0},{"$f":"IF(OR(EXACT(集計用!CU7,\"事業概要：\"),EXACT(集計用!CU7,\"ー\"),集計用!CU7=0,集計用!CU7=\"\"),0,1)","v":0},{"$f":"IF(OR(EXACT(集計用!CV7,\"事業概要：\"),EXACT(集計用!CV7,\"ー\"),集計用!CV7=0,集計用!CV7=\"\"),0,1)","v":0},{"$f":"IF(OR(EXACT(集計用!CW7,\"事業概要：\"),EXACT(集計用!CW7,\"ー\"),集計用!CW7=0,集計用!CW7=\"\"),0,1)","v":0},{"$f":"IF(OR(EXACT(集計用!CX7,\"事業概要：\"),EXACT(集計用!CX7,\"ー\"),集計用!CX7=0,集計用!CX7=\"\"),0,1)","v":0},{"$f":"IF(OR(EXACT(集計用!CY7,\"事業概要：\"),EXACT(集計用!CY7,\"ー\"),集計用!CY7=0,集計用!CY7=\"\"),0,1)","v":0},{"$f":"IF(OR(EXACT(集計用!CZ7,\"事業概要：\"),EXACT(集計用!CZ7,\"ー\"),集計用!CZ7=0,集計用!CZ7=\"\"),0,1)","v":0},{"$f":"IF(OR(EXACT(集計用!DA7,\"事業概要：\"),EXACT(集計用!DA7,\"ー\"),集計用!DA7=0,集計用!DA7=\"\"),0,1)","v":0},{"$f":"IF(OR(EXACT(集計用!DB7,\"事業概要：\"),EXACT(集計用!DB7,\"ー\"),集計用!DB7=0,集計用!DB7=\"\"),0,1)","v":0},{"$f":"IF(OR(EXACT(集計用!DC7,\"事業概要：\"),EXACT(集計用!DC7,\"ー\"),集計用!DC7=0,集計用!DC7=\"\"),0,1)","v":0},{"$f":"IF(OR(EXACT(集計用!DD7,\"事業概要：\"),EXACT(集計用!DD7,\"ー\"),集計用!DD7=0,集計用!DD7=\"\"),0,1)","v":0},{"$f":"IF(OR(EXACT(集計用!DE7,\"事業概要：\"),EXACT(集計用!DE7,\"ー\"),集計用!DE7=0,集計用!DE7=\"\"),0,1)","v":0},{"$f":"IF(OR(EXACT(集計用!DF7,\"事業概要：\"),EXACT(集計用!DF7,\"ー\"),集計用!DF7=0,集計用!DF7=\"\"),0,1)","v":0},{"$f":"IF(OR(EXACT(集計用!DG7,\"事業概要：\"),EXACT(集計用!DG7,\"ー\"),集計用!DG7=0,集計用!DG7=\"\"),0,1)","v":0},{"$f":"IF(OR(EXACT(集計用!DH7,\"事業概要：\"),EXACT(集計用!DH7,\"ー\"),集計用!DH7=0,集計用!DH7=\"\"),0,1)","v":0},{"$f":"IF(OR(EXACT(集計用!DI7,\"事業概要：\"),EXACT(集計用!DI7,\"ー\"),集計用!DI7=0,集計用!DI7=\"\"),0,1)","v":0},{"$f":"IF(OR(EXACT(集計用!DJ7,\"事業概要：\"),EXACT(集計用!DJ7,\"ー\"),集計用!DJ7=0,集計用!DJ7=\"\"),0,1)","v":0},{"$f":"IF(OR(EXACT(集計用!DK7,\"事業概要：\"),EXACT(集計用!DK7,\"ー\"),集計用!DK7=0,集計用!DK7=\"\"),0,1)","v":0},{"$f":"IF(OR(EXACT(集計用!DL7,\"事業概要：\"),EXACT(集計用!DL7,\"ー\"),集計用!DL7=0,集計用!DL7=\"\"),0,1)","v":0},{"$f":"IF(OR(EXACT(集計用!DM7,\"事業概要：\"),EXACT(集計用!DM7,\"ー\"),集計用!DM7=0,集計用!DM7=\"\"),0,1)","v":0},{"$f":"IF(OR(EXACT(集計用!DN7,\"事業概要：\"),EXACT(集計用!DN7,\"ー\"),集計用!DN7=0,集計用!DN7=\"\"),0,1)","v":0},{"$f":"IF(OR(EXACT(集計用!DO7,\"事業概要：\"),EXACT(集計用!DO7,\"ー\"),集計用!DO7=0,集計用!DO7=\"\"),0,1)","v":0},{"$f":"IF(OR(EXACT(集計用!DP7,\"事業概要：\"),EXACT(集計用!DP7,\"ー\"),集計用!DP7=0,集計用!DP7=\"\"),0,1)","v":0},{"$f":"IF(OR(EXACT(集計用!DQ7,\"事業概要：\"),EXACT(集計用!DQ7,\"ー\"),集計用!DQ7=0,集計用!DQ7=\"\"),0,1)","v":0},{"$f":"IF(OR(EXACT(集計用!DR7,\"事業概要：\"),EXACT(集計用!DR7,\"ー\"),集計用!DR7=0,集計用!DR7=\"\"),0,1)","v":0},{"$f":"IF(OR(EXACT(集計用!DS7,\"事業概要：\"),EXACT(集計用!DS7,\"ー\"),集計用!DS7=0,集計用!DS7=\"\"),0,1)","v":0},{"$f":"IF(OR(EXACT(集計用!DT7,\"事業概要：\"),EXACT(集計用!DT7,\"ー\"),集計用!DT7=0,集計用!DT7=\"\"),0,1)","v":0},{"$f":"IF(OR(EXACT(集計用!DU7,\"事業概要：\"),EXACT(集計用!DU7,\"ー\"),集計用!DU7=0,集計用!DU7=\"\"),0,1)","v":0},{"$f":"IF(OR(EXACT(集計用!DV7,\"事業概要：\"),EXACT(集計用!DV7,\"ー\"),集計用!DV7=0,集計用!DV7=\"\"),0,1)","v":0},{"$f":"IF(OR(EXACT(集計用!DW7,\"事業概要：\"),EXACT(集計用!DW7,\"ー\"),集計用!DW7=0,集計用!DW7=\"\"),0,1)","v":0},{"$f":"IF(OR(EXACT(集計用!DX7,\"事業概要：\"),EXACT(集計用!DX7,\"ー\"),集計用!DX7=0,集計用!DX7=\"\"),0,1)","v":0},{"$f":"IF(OR(EXACT(集計用!DY7,\"事業概要：\"),EXACT(集計用!DY7,\"ー\"),集計用!DY7=0,集計用!DY7=\"\"),0,1)","v":0},{"$f":"IF(OR(EXACT(集計用!DZ7,\"事業概要：\"),EXACT(集計用!DZ7,\"ー\"),集計用!DZ7=0,集計用!DZ7=\"\"),0,1)","v":0},{"$f":"IF(OR(EXACT(集計用!EA7,\"事業概要：\"),EXACT(集計用!EA7,\"ー\"),集計用!EA7=0,集計用!EA7=\"\"),0,1)","v":0},{"$f":"IF(OR(EXACT(集計用!EB7,\"事業概要：\"),EXACT(集計用!EB7,\"ー\"),集計用!EB7=0,集計用!EB7=\"\"),0,1)","v":0},{"$f":"IF(OR(EXACT(集計用!EC7,\"事業概要：\"),EXACT(集計用!EC7,\"ー\"),集計用!EC7=0,集計用!EC7=\"\"),0,1)","v":0},{"$f":"IF(OR(EXACT(集計用!ED7,\"事業概要：\"),EXACT(集計用!ED7,\"ー\"),集計用!ED7=0,集計用!ED7=\"\"),0,1)","v":0},{"$f":"IF(OR(EXACT(集計用!EE7,\"事業概要：\"),EXACT(集計用!EE7,\"ー\"),集計用!EE7=0,集計用!EE7=\"\"),0,1)","v":0},{"$f":"IF(OR(EXACT(集計用!EF7,\"事業概要：\"),EXACT(集計用!EF7,\"ー\"),集計用!EF7=0,集計用!EF7=\"\"),0,1)","v":0},{"$f":"IF(OR(EXACT(集計用!EG7,\"事業概要：\"),EXACT(集計用!EG7,\"ー\"),集計用!EG7=0,集計用!EG7=\"\"),0,1)","v":0},{"$f":"IF(OR(EXACT(集計用!EH7,\"事業概要：\"),EXACT(集計用!EH7,\"ー\"),集計用!EH7=0,集計用!EH7=\"\"),0,1)","v":0},{"$f":"IF(OR(EXACT(集計用!EI7,\"事業概要：\"),EXACT(集計用!EI7,\"ー\"),集計用!EI7=0,集計用!EI7=\"\"),0,1)","v":0},{"$f":"IF(OR(EXACT(集計用!EJ7,\"事業概要：\"),EXACT(集計用!EJ7,\"ー\"),集計用!EJ7=0,集計用!EJ7=\"\"),0,1)","v":0},{"$f":"IF(OR(EXACT(集計用!EK7,\"事業概要：\"),EXACT(集計用!EK7,\"ー\"),集計用!EK7=0,集計用!EK7=\"\"),0,1)","v":0},{"$f":"IF(OR(EXACT(集計用!EL7,\"事業概要：\"),EXACT(集計用!EL7,\"ー\"),集計用!EL7=0,集計用!EL7=\"\"),0,1)","v":0},{"$f":"IF(OR(EXACT(集計用!EM7,\"事業概要：\"),EXACT(集計用!EM7,\"ー\"),集計用!EM7=0,集計用!EM7=\"\"),0,1)","v":0},{"$f":"IF(OR(EXACT(集計用!EN7,\"事業概要：\"),EXACT(集計用!EN7,\"ー\"),集計用!EN7=0,集計用!EN7=\"\"),0,1)","v":0},{"$f":"IF(OR(EXACT(集計用!EO7,\"事業概要：\"),EXACT(集計用!EO7,\"ー\"),集計用!EO7=0,集計用!EO7=\"\"),0,1)","v":0},{"$f":"IF(OR(EXACT(集計用!EP7,\"事業概要：\"),EXACT(集計用!EP7,\"ー\"),集計用!EP7=0,集計用!EP7=\"\"),0,1)","v":0},{"$f":"IF(OR(EXACT(集計用!EQ7,\"事業概要：\"),EXACT(集計用!EQ7,\"ー\"),集計用!EQ7=0,集計用!EQ7=\"\"),0,1)","v":0},{"$f":"IF(OR(EXACT(集計用!ER7,\"事業概要：\"),EXACT(集計用!ER7,\"ー\"),集計用!ER7=0,集計用!ER7=\"\"),0,1)","v":0},{"$f":"IF(OR(EXACT(集計用!ES7,\"事業概要：\"),EXACT(集計用!ES7,\"ー\"),集計用!ES7=0,集計用!ES7=\"\"),0,1)","v":0},{"$f":"IF(OR(EXACT(集計用!ET7,\"事業概要：\"),EXACT(集計用!ET7,\"ー\"),集計用!ET7=0,集計用!ET7=\"\"),0,1)","v":0},{"$f":"IF(OR(EXACT(集計用!EU7,\"事業概要：\"),EXACT(集計用!EU7,\"ー\"),集計用!EU7=0,集計用!EU7=\"\"),0,1)","v":0},{"$f":"IF(OR(EXACT(集計用!EV7,\"事業概要：\"),EXACT(集計用!EV7,\"ー\"),集計用!EV7=0,集計用!EV7=\"\"),0,1)","v":0},{"$f":"IF(OR(EXACT(集計用!EW7,\"事業概要：\"),EXACT(集計用!EW7,\"ー\"),集計用!EW7=0,集計用!EW7=\"\"),0,1)","v":0},{"$f":"IF(OR(EXACT(集計用!EX7,\"事業概要：\"),EXACT(集計用!EX7,\"ー\"),集計用!EX7=0,集計用!EX7=\"\"),0,1)","v":0},{"$f":"IF(OR(EXACT(集計用!EY7,\"事業概要：\"),EXACT(集計用!EY7,\"ー\"),集計用!EY7=0,集計用!EY7=\"\"),0,1)","v":0},{"$f":"IF(OR(EXACT(集計用!EZ7,\"事業概要：\"),EXACT(集計用!EZ7,\"ー\"),集計用!EZ7=0,集計用!EZ7=\"\"),0,1)","v":0},{"$f":"IF(OR(EXACT(集計用!FA7,\"事業概要：\"),EXACT(集計用!FA7,\"ー\"),集計用!FA7=0,集計用!FA7=\"\"),0,1)","v":0},{"$f":"IF(OR(EXACT(集計用!FB7,\"事業概要：\"),EXACT(集計用!FB7,\"ー\"),集計用!FB7=0,集計用!FB7=\"\"),0,1)","v":0},{"$f":"IF(OR(EXACT(集計用!FC7,\"事業概要：\"),EXACT(集計用!FC7,\"ー\"),集計用!FC7=0,集計用!FC7=\"\"),0,1)","v":0},{"$f":"IF(OR(EXACT(集計用!FD7,\"事業概要：\"),EXACT(集計用!FD7,\"ー\"),集計用!FD7=0,集計用!FD7=\"\"),0,1)","v":0},{"$f":"IF(OR(EXACT(集計用!FE7,\"事業概要：\"),EXACT(集計用!FE7,\"ー\"),集計用!FE7=0,集計用!FE7=\"\"),0,1)","v":0},{"$f":"IF(OR(EXACT(集計用!FF7,\"事業概要：\"),EXACT(集計用!FF7,\"ー\"),集計用!FF7=0,集計用!FF7=\"\"),0,1)","v":0},{"$f":"IF(OR(EXACT(集計用!FG7,\"事業概要：\"),EXACT(集計用!FG7,\"ー\"),集計用!FG7=0,集計用!FG7=\"\"),0,1)","v":0},{"$f":"IF(OR(EXACT(集計用!FH7,\"事業概要：\"),EXACT(集計用!FH7,\"ー\"),集計用!FH7=0,集計用!FH7=\"\"),0,1)","v":0},{"$f":"IF(OR(EXACT(集計用!FI7,\"事業概要：\"),EXACT(集計用!FI7,\"ー\"),集計用!FI7=0,集計用!FI7=\"\"),0,1)","v":0},{"$f":"IF(OR(EXACT(集計用!FJ7,\"事業概要：\"),EXACT(集計用!FJ7,\"ー\"),集計用!FJ7=0,集計用!FJ7=\"\"),0,1)","v":0},{"$f":"IF(OR(EXACT(集計用!FK7,\"事業概要：\"),EXACT(集計用!FK7,\"ー\"),集計用!FK7=0,集計用!FK7=\"\"),0,1)","v":0},{"$f":"IF(OR(EXACT(集計用!FL7,\"事業概要：\"),EXACT(集計用!FL7,\"ー\"),集計用!FL7=0,集計用!FL7=\"\"),0,1)","v":0},{"$f":"IF(OR(EXACT(集計用!FM7,\"事業概要：\"),EXACT(集計用!FM7,\"ー\"),集計用!FM7=0,集計用!FM7=\"\"),0,1)","v":0},{"$f":"IF(OR(EXACT(集計用!FN7,\"事業概要：\"),EXACT(集計用!FN7,\"ー\"),集計用!FN7=0,集計用!FN7=\"\"),0,1)","v":0},{"$f":"IF(OR(EXACT(集計用!FO7,\"事業概要：\"),EXACT(集計用!FO7,\"ー\"),集計用!FO7=0,集計用!FO7=\"\"),0,1)","v":0},{"$f":"IF(OR(EXACT(集計用!FP7,\"事業概要：\"),EXACT(集計用!FP7,\"ー\"),集計用!FP7=0,集計用!FP7=\"\"),0,1)","v":0},{"$f":"IF(OR(EXACT(集計用!FQ7,\"事業概要：\"),EXACT(集計用!FQ7,\"ー\"),集計用!FQ7=0,集計用!FQ7=\"\"),0,1)","v":0},{"$f":"IF(OR(EXACT(集計用!FR7,\"事業概要：\"),EXACT(集計用!FR7,\"ー\"),集計用!FR7=0,集計用!FR7=\"\"),0,1)","v":0},{"$f":"IF(OR(EXACT(集計用!FS7,\"事業概要：\"),EXACT(集計用!FS7,\"ー\"),集計用!FS7=0,集計用!FS7=\"\"),0,1)","v":0},{"$f":"IF(OR(EXACT(集計用!FT7,\"事業概要：\"),EXACT(集計用!FT7,\"ー\"),集計用!FT7=0,集計用!FT7=\"\"),0,1)","v":0},{"$f":"IF(OR(EXACT(集計用!FU7,\"事業概要：\"),EXACT(集計用!FU7,\"ー\"),集計用!FU7=0,集計用!FU7=\"\"),0,1)","v":0},{"$f":"IF(OR(EXACT(集計用!FV7,\"事業概要：\"),EXACT(集計用!FV7,\"ー\"),集計用!FV7=0,集計用!FV7=\"\"),0,1)","v":0},{"$f":"IF(OR(EXACT(集計用!FW7,\"事業概要：\"),EXACT(集計用!FW7,\"ー\"),集計用!FW7=0,集計用!FW7=\"\"),0,1)","v":0},{"$f":"IF(OR(EXACT(集計用!FX7,\"事業概要：\"),EXACT(集計用!FX7,\"ー\"),集計用!FX7=0,集計用!FX7=\"\"),0,1)","v":0},{"$f":"IF(OR(EXACT(集計用!FY7,\"事業概要：\"),EXACT(集計用!FY7,\"ー\"),集計用!FY7=0,集計用!FY7=\"\"),0,1)","v":0},{"$f":"IF(OR(EXACT(集計用!FZ7,\"事業概要：\"),EXACT(集計用!FZ7,\"ー\"),集計用!FZ7=0,集計用!FZ7=\"\"),0,1)","v":0},{"$f":"IF(OR(EXACT(集計用!GA7,\"事業概要：\"),EXACT(集計用!GA7,\"ー\"),集計用!GA7=0,集計用!GA7=\"\"),0,1)","v":0},{"$f":"IF(OR(EXACT(集計用!GB7,\"事業概要：\"),EXACT(集計用!GB7,\"ー\"),集計用!GB7=0,集計用!GB7=\"\"),0,1)","v":0},{"$f":"IF(OR(EXACT(集計用!GC7,\"事業概要：\"),EXACT(集計用!GC7,\"ー\"),集計用!GC7=0,集計用!GC7=\"\"),0,1)","v":0},{"$f":"IF(OR(EXACT(集計用!GD7,\"事業概要：\"),EXACT(集計用!GD7,\"ー\"),集計用!GD7=0,集計用!GD7=\"\"),0,1)","v":0},{"$f":"IF(OR(EXACT(集計用!GE7,\"事業概要：\"),EXACT(集計用!GE7,\"ー\"),集計用!GE7=0,集計用!GE7=\"\"),0,1)","v":0},{"$f":"IF(OR(EXACT(集計用!GF7,\"事業概要：\"),EXACT(集計用!GF7,\"ー\"),集計用!GF7=0,集計用!GF7=\"\"),0,1)","v":0},{"$f":"IF(OR(EXACT(集計用!GG7,\"事業概要：\"),EXACT(集計用!GG7,\"ー\"),集計用!GG7=0,集計用!GG7=\"\"),0,1)","v":0},{"$f":"IF(OR(EXACT(集計用!GH7,\"事業概要：\"),EXACT(集計用!GH7,\"ー\"),集計用!GH7=0,集計用!GH7=\"\"),0,1)","v":0},{"$f":"IF(OR(EXACT(集計用!GI7,\"事業概要：\"),EXACT(集計用!GI7,\"ー\"),集計用!GI7=0,集計用!GI7=\"\"),0,1)","v":0},{"$f":"IF(OR(EXACT(集計用!GJ7,\"事業概要：\"),EXACT(集計用!GJ7,\"ー\"),集計用!GJ7=0,集計用!GJ7=\"\"),0,1)","v":0},{"$f":"IF(OR(EXACT(集計用!GK7,\"事業概要：\"),EXACT(集計用!GK7,\"ー\"),集計用!GK7=0,集計用!GK7=\"\"),0,1)","v":0},{"$f":"IF(OR(EXACT(集計用!GL7,\"事業概要：\"),EXACT(集計用!GL7,\"ー\"),集計用!GL7=0,集計用!GL7=\"\"),0,1)","v":0},{"$f":"IF(OR(EXACT(集計用!GM7,\"事業概要：\"),EXACT(集計用!GM7,\"ー\"),集計用!GM7=0,集計用!GM7=\"\"),0,1)","v":0},{"$f":"IF(OR(EXACT(集計用!GN7,\"事業概要：\"),EXACT(集計用!GN7,\"ー\"),集計用!GN7=0,集計用!GN7=\"\"),0,1)","v":0},{"$f":"IF(OR(EXACT(集計用!GO7,\"事業概要：\"),EXACT(集計用!GO7,\"ー\"),集計用!GO7=0,集計用!GO7=\"\"),0,1)","v":0},{"$f":"IF(OR(EXACT(集計用!GP7,\"事業概要：\"),EXACT(集計用!GP7,\"ー\"),集計用!GP7=0,集計用!GP7=\"\"),0,1)","v":0},{"$f":"IF(OR(EXACT(集計用!GQ7,\"事業概要：\"),EXACT(集計用!GQ7,\"ー\"),集計用!GQ7=0,集計用!GQ7=\"\"),0,1)","v":0},{"$f":"IF(OR(EXACT(集計用!GR7,\"事業概要：\"),EXACT(集計用!GR7,\"ー\"),集計用!GR7=0,集計用!GR7=\"\"),0,1)","v":0},{"$f":"IF(OR(EXACT(集計用!GS7,\"事業概要：\"),EXACT(集計用!GS7,\"ー\"),集計用!GS7=0,集計用!GS7=\"\"),0,1)","v":0},{"$f":"IF(OR(EXACT(集計用!GT7,\"事業概要：\"),EXACT(集計用!GT7,\"ー\"),集計用!GT7=0,集計用!GT7=\"\"),0,1)","v":0},{"$f":"IF(OR(EXACT(集計用!GU7,\"事業概要：\"),EXACT(集計用!GU7,\"ー\"),集計用!GU7=0,集計用!GU7=\"\"),0,1)","v":0},{"$f":"IF(OR(EXACT(集計用!GV7,\"事業概要：\"),EXACT(集計用!GV7,\"ー\"),集計用!GV7=0,集計用!GV7=\"\"),0,1)","v":0},{"$f":"IF(OR(EXACT(集計用!GW7,\"事業概要：\"),EXACT(集計用!GW7,\"ー\"),集計用!GW7=0,集計用!GW7=\"\"),0,1)","v":0},{"$f":"IF(OR(EXACT(集計用!GX7,\"事業概要：\"),EXACT(集計用!GX7,\"ー\"),集計用!GX7=0,集計用!GX7=\"\"),0,1)","v":0},{"$f":"IF(OR(EXACT(集計用!GY7,\"事業概要：\"),EXACT(集計用!GY7,\"ー\"),集計用!GY7=0,集計用!GY7=\"\"),0,1)","v":0},{"$f":"IF(OR(EXACT(集計用!GZ7,\"事業概要：\"),EXACT(集計用!GZ7,\"ー\"),集計用!GZ7=0,集計用!GZ7=\"\"),0,1)","v":0},{"$f":"IF(OR(EXACT(集計用!HA7,\"事業概要：\"),EXACT(集計用!HA7,\"ー\"),集計用!HA7=0,集計用!HA7=\"\"),0,1)","v":0},{"$f":"IF(OR(EXACT(集計用!HB7,\"事業概要：\"),EXACT(集計用!HB7,\"ー\"),集計用!HB7=0,集計用!HB7=\"\"),0,1)","v":0},{"$f":"IF(OR(EXACT(集計用!HC7,\"事業概要：\"),EXACT(集計用!HC7,\"ー\"),集計用!HC7=0,集計用!HC7=\"\"),0,1)","v":0},{"$f":"IF(OR(EXACT(集計用!HD7,\"事業概要：\"),EXACT(集計用!HD7,\"ー\"),集計用!HD7=0,集計用!HD7=\"\"),0,1)","v":0},{"$f":"IF(OR(EXACT(集計用!HE7,\"事業概要：\"),EXACT(集計用!HE7,\"ー\"),集計用!HE7=0,集計用!HE7=\"\"),0,1)","v":0},{"$f":"IF(OR(EXACT(集計用!HF7,\"事業概要：\"),EXACT(集計用!HF7,\"ー\"),集計用!HF7=0,集計用!HF7=\"\"),0,1)","v":0},{"$f":"IF(OR(EXACT(集計用!HG7,\"事業概要：\"),EXACT(集計用!HG7,\"ー\"),集計用!HG7=0,集計用!HG7=\"\"),0,1)","v":0},{"$f":"IF(OR(EXACT(集計用!HH7,\"事業概要：\"),EXACT(集計用!HH7,\"ー\"),集計用!HH7=0,集計用!HH7=\"\"),0,1)","v":0},{"$f":"IF(OR(EXACT(集計用!HI7,\"事業概要：\"),EXACT(集計用!HI7,\"ー\"),集計用!HI7=0,集計用!HI7=\"\"),0,1)","v":0},{"$f":"IF(OR(EXACT(集計用!HJ7,\"事業概要：\"),EXACT(集計用!HJ7,\"ー\"),集計用!HJ7=0,集計用!HJ7=\"\"),0,1)","v":0},{"$f":"IF(OR(EXACT(集計用!HK7,\"事業概要：\"),EXACT(集計用!HK7,\"ー\"),集計用!HK7=0,集計用!HK7=\"\"),0,1)","v":0},{"$f":"IF(OR(EXACT(集計用!HL7,\"事業概要：\"),EXACT(集計用!HL7,\"ー\"),集計用!HL7=0,集計用!HL7=\"\"),0,1)","v":0},{"$f":"IF(OR(EXACT(集計用!HM7,\"事業概要：\"),EXACT(集計用!HM7,\"ー\"),集計用!HM7=0,集計用!HM7=\"\"),0,1)","v":0},{"$f":"IF(OR(EXACT(集計用!HN7,\"事業概要：\"),EXACT(集計用!HN7,\"ー\"),集計用!HN7=0,集計用!HN7=\"\"),0,1)","v":0},{"$f":"IF(OR(EXACT(集計用!HO7,\"事業概要：\"),EXACT(集計用!HO7,\"ー\"),集計用!HO7=0,集計用!HO7=\"\"),0,1)","v":0},{"$f":"IF(OR(EXACT(集計用!HP7,\"事業概要：\"),EXACT(集計用!HP7,\"ー\"),集計用!HP7=0,集計用!HP7=\"\"),0,1)","v":0},{"$f":"IF(OR(EXACT(集計用!HQ7,\"事業概要：\"),EXACT(集計用!HQ7,\"ー\"),集計用!HQ7=0,集計用!HQ7=\"\"),0,1)","v":0},{"$f":"IF(OR(EXACT(集計用!HR7,\"事業概要：\"),EXACT(集計用!HR7,\"ー\"),集計用!HR7=0,集計用!HR7=\"\"),0,1)","v":0},{"$f":"IF(OR(EXACT(集計用!HS7,\"事業概要：\"),EXACT(集計用!HS7,\"ー\"),集計用!HS7=0,集計用!HS7=\"\"),0,1)","v":0},{"$f":"IF(OR(EXACT(集計用!HT7,\"事業概要：\"),EXACT(集計用!HT7,\"ー\"),集計用!HT7=0,集計用!HT7=\"\"),0,1)","v":0},{"$f":"IF(OR(EXACT(集計用!HU7,\"事業概要：\"),EXACT(集計用!HU7,\"ー\"),集計用!HU7=0,集計用!HU7=\"\"),0,1)","v":0},{"$f":"IF(OR(EXACT(集計用!HV7,\"事業概要：\"),EXACT(集計用!HV7,\"ー\"),集計用!HV7=0,集計用!HV7=\"\"),0,1)","v":0},{"$f":"IF(OR(EXACT(集計用!HW7,\"事業概要：\"),EXACT(集計用!HW7,\"ー\"),集計用!HW7=0,集計用!HW7=\"\"),0,1)","v":0},{"$f":"IF(OR(EXACT(集計用!HX7,\"事業概要：\"),EXACT(集計用!HX7,\"ー\"),集計用!HX7=0,集計用!HX7=\"\"),0,1)","v":0},{"$f":"IF(OR(EXACT(集計用!HY7,\"事業概要：\"),EXACT(集計用!HY7,\"ー\"),集計用!HY7=0,集計用!HY7=\"\"),0,1)","v":0},{"$f":"IF(OR(EXACT(集計用!HZ7,\"事業概要：\"),EXACT(集計用!HZ7,\"ー\"),集計用!HZ7=0,集計用!HZ7=\"\"),0,1)","v":0},{"$f":"IF(OR(EXACT(集計用!IA7,\"事業概要：\"),EXACT(集計用!IA7,\"ー\"),集計用!IA7=0,集計用!IA7=\"\"),0,1)","v":0},{"$f":"IF(OR(EXACT(集計用!IB7,\"事業概要：\"),EXACT(集計用!IB7,\"ー\"),集計用!IB7=0,集計用!IB7=\"\"),0,1)","v":0},{"$f":"IF(OR(EXACT(集計用!IC7,\"事業概要：\"),EXACT(集計用!IC7,\"ー\"),集計用!IC7=0,集計用!IC7=\"\"),0,1)","v":0},{"$f":"IF(OR(EXACT(集計用!ID7,\"事業概要：\"),EXACT(集計用!ID7,\"ー\"),集計用!ID7=0,集計用!ID7=\"\"),0,1)","v":0},{"$f":"IF(OR(EXACT(集計用!IE7,\"事業概要：\"),EXACT(集計用!IE7,\"ー\"),集計用!IE7=0,集計用!IE7=\"\"),0,1)","v":0},{"$f":"IF(OR(EXACT(集計用!IF7,\"事業概要：\"),EXACT(集計用!IF7,\"ー\"),集計用!IF7=0,集計用!IF7=\"\"),0,1)","v":0},{"$f":"IF(OR(EXACT(集計用!IG7,\"事業概要：\"),EXACT(集計用!IG7,\"ー\"),集計用!IG7=0,集計用!IG7=\"\"),0,1)","v":0},{"$f":"IF(OR(EXACT(集計用!IH7,\"事業概要：\"),EXACT(集計用!IH7,\"ー\"),集計用!IH7=0,集計用!IH7=\"\"),0,1)","v":0},{"$f":"IF(OR(EXACT(集計用!II7,\"事業概要：\"),EXACT(集計用!II7,\"ー\"),集計用!II7=0,集計用!II7=\"\"),0,1)","v":0},{"$f":"IF(OR(EXACT(集計用!IJ7,\"事業概要：\"),EXACT(集計用!IJ7,\"ー\"),集計用!IJ7=0,集計用!IJ7=\"\"),0,1)","v":0},{"$f":"IF(OR(EXACT(集計用!IK7,\"事業概要：\"),EXACT(集計用!IK7,\"ー\"),集計用!IK7=0,集計用!IK7=\"\"),0,1)","v":0},{"$f":"IF(OR(EXACT(集計用!IL7,\"事業概要：\"),EXACT(集計用!IL7,\"ー\"),集計用!IL7=0,集計用!IL7=\"\"),0,1)","v":0},{"$f":"IF(OR(EXACT(集計用!IM7,\"事業概要：\"),EXACT(集計用!IM7,\"ー\"),集計用!IM7=0,集計用!IM7=\"\"),0,1)","v":0},{"$f":"IF(OR(EXACT(集計用!IN7,\"事業概要：\"),EXACT(集計用!IN7,\"ー\"),集計用!IN7=0,集計用!IN7=\"\"),0,1)","v":0},{"$f":"IF(OR(EXACT(集計用!IO7,\"事業概要：\"),EXACT(集計用!IO7,\"ー\"),集計用!IO7=0,集計用!IO7=\"\"),0,1)","v":0},{"$f":"IF(OR(EXACT(集計用!IP7,\"事業概要：\"),EXACT(集計用!IP7,\"ー\"),集計用!IP7=0,集計用!IP7=\"\"),0,1)","v":0},{"$f":"IF(OR(EXACT(集計用!IQ7,\"事業概要：\"),EXACT(集計用!IQ7,\"ー\"),集計用!IQ7=0,集計用!IQ7=\"\"),0,1)","v":0},{"$f":"IF(OR(EXACT(集計用!IR7,\"事業概要：\"),EXACT(集計用!IR7,\"ー\"),集計用!IR7=0,集計用!IR7=\"\"),0,1)","v":0},{"$f":"IF(OR(EXACT(集計用!IS7,\"事業概要：\"),EXACT(集計用!IS7,\"ー\"),集計用!IS7=0,集計用!IS7=\"\"),0,1)","v":0},{"$f":"IF(OR(EXACT(集計用!IT7,\"事業概要：\"),EXACT(集計用!IT7,\"ー\"),集計用!IT7=0,集計用!IT7=\"\"),0,1)","v":0},{"$f":"IF(OR(EXACT(集計用!IU7,\"事業概要：\"),EXACT(集計用!IU7,\"ー\"),集計用!IU7=0,集計用!IU7=\"\"),0,1)","v":0},{"$f":"IF(OR(EXACT(集計用!IV7,\"事業概要：\"),EXACT(集計用!IV7,\"ー\"),集計用!IV7=0,集計用!IV7=\"\"),0,1)","v":0},{"$f":"IF(OR(EXACT(集計用!IW7,\"事業概要：\"),EXACT(集計用!IW7,\"ー\"),集計用!IW7=0,集計用!IW7=\"\"),0,1)","v":0},{"$f":"IF(OR(EXACT(集計用!IX7,\"事業概要：\"),EXACT(集計用!IX7,\"ー\"),集計用!IX7=0,集計用!IX7=\"\"),0,1)","v":0},{"$f":"IF(OR(EXACT(集計用!IY7,\"事業概要：\"),EXACT(集計用!IY7,\"ー\"),集計用!IY7=0,集計用!IY7=\"\"),0,1)","v":0},{"$f":"IF(OR(EXACT(集計用!IZ7,\"事業概要：\"),EXACT(集計用!IZ7,\"ー\"),集計用!IZ7=0,集計用!IZ7=\"\"),0,1)","v":0},{"$f":"IF(OR(EXACT(集計用!JA7,\"事業概要：\"),EXACT(集計用!JA7,\"ー\"),集計用!JA7=0,集計用!JA7=\"\"),0,1)","v":0},{"$f":"IF(OR(EXACT(集計用!JB7,\"事業概要：\"),EXACT(集計用!JB7,\"ー\"),集計用!JB7=0,集計用!JB7=\"\"),0,1)","v":0},{"$f":"IF(OR(EXACT(集計用!JC7,\"事業概要：\"),EXACT(集計用!JC7,\"ー\"),集計用!JC7=0,集計用!JC7=\"\"),0,1)","v":0},{"$f":"IF(OR(EXACT(集計用!JD7,\"事業概要：\"),EXACT(集計用!JD7,\"ー\"),集計用!JD7=0,集計用!JD7=\"\"),0,1)","v":0},{"$f":"IF(OR(EXACT(集計用!JE7,\"事業概要：\"),EXACT(集計用!JE7,\"ー\"),集計用!JE7=0,集計用!JE7=\"\"),0,1)","v":0},{"$f":"IF(OR(EXACT(集計用!JF7,\"事業概要：\"),EXACT(集計用!JF7,\"ー\"),集計用!JF7=0,集計用!JF7=\"\"),0,1)","v":0},{"$f":"IF(OR(EXACT(集計用!JG7,\"事業概要：\"),EXACT(集計用!JG7,\"ー\"),集計用!JG7=0,集計用!JG7=\"\"),0,1)","v":0},{"$f":"IF(OR(EXACT(集計用!JH7,\"事業概要：\"),EXACT(集計用!JH7,\"ー\"),集計用!JH7=0,集計用!JH7=\"\"),0,1)","v":0},{"$f":"IF(OR(EXACT(集計用!JI7,\"事業概要：\"),EXACT(集計用!JI7,\"ー\"),集計用!JI7=0,集計用!JI7=\"\"),0,1)","v":0},{"$f":"IF(OR(EXACT(集計用!JJ7,\"事業概要：\"),EXACT(集計用!JJ7,\"ー\"),集計用!JJ7=0,集計用!JJ7=\"\"),0,1)","v":0},{"$f":"IF(OR(EXACT(集計用!JK7,\"事業概要：\"),EXACT(集計用!JK7,\"ー\"),集計用!JK7=0,集計用!JK7=\"\"),0,1)","v":0},{"$f":"IF(OR(EXACT(集計用!JL7,\"事業概要：\"),EXACT(集計用!JL7,\"ー\"),集計用!JL7=0,集計用!JL7=\"\"),0,1)","v":0},{"$f":"IF(OR(EXACT(集計用!JM7,\"事業概要：\"),EXACT(集計用!JM7,\"ー\"),集計用!JM7=0,集計用!JM7=\"\"),0,1)","v":0},{"$f":"IF(OR(EXACT(集計用!JN7,\"事業概要：\"),EXACT(集計用!JN7,\"ー\"),集計用!JN7=0,集計用!JN7=\"\"),0,1)","v":0},{"$f":"IF(OR(EXACT(集計用!JO7,\"事業概要：\"),EXACT(集計用!JO7,\"ー\"),集計用!JO7=0,集計用!JO7=\"\"),0,1)","v":0},{"$f":"IF(OR(EXACT(集計用!JP7,\"事業概要：\"),EXACT(集計用!JP7,\"ー\"),集計用!JP7=0,集計用!JP7=\"\"),0,1)","v":0},{"$f":"IF(OR(EXACT(集計用!JQ7,\"事業概要：\"),EXACT(集計用!JQ7,\"ー\"),集計用!JQ7=0,集計用!JQ7=\"\"),0,1)","v":0},{"$f":"IF(OR(EXACT(集計用!JR7,\"事業概要：\"),EXACT(集計用!JR7,\"ー\"),集計用!JR7=0,集計用!JR7=\"\"),0,1)","v":0},{"$f":"IF(OR(EXACT(集計用!JS7,\"事業概要：\"),EXACT(集計用!JS7,\"ー\"),集計用!JS7=0,集計用!JS7=\"\"),0,1)","v":0},{"$f":"IF(OR(EXACT(集計用!JT7,\"事業概要：\"),EXACT(集計用!JT7,\"ー\"),集計用!JT7=0,集計用!JT7=\"\"),0,1)","v":0},{"$f":"IF(OR(EXACT(集計用!JU7,\"事業概要：\"),EXACT(集計用!JU7,\"ー\"),集計用!JU7=0,集計用!JU7=\"\"),0,1)","v":0},{"$f":"IF(OR(EXACT(集計用!JV7,\"事業概要：\"),EXACT(集計用!JV7,\"ー\"),集計用!JV7=0,集計用!JV7=\"\"),0,1)","v":0},{"$f":"IF(OR(EXACT(集計用!JW7,\"事業概要：\"),EXACT(集計用!JW7,\"ー\"),集計用!JW7=0,集計用!JW7=\"\"),0,1)","v":0},{"$f":"IF(OR(EXACT(集計用!JX7,\"事業概要：\"),EXACT(集計用!JX7,\"ー\"),集計用!JX7=0,集計用!JX7=\"\"),0,1)","v":0},{"$f":"IF(OR(EXACT(集計用!JY7,\"事業概要：\"),EXACT(集計用!JY7,\"ー\"),集計用!JY7=0,集計用!JY7=\"\"),0,1)","v":0},{"$f":"IF(OR(EXACT(集計用!JZ7,\"事業概要：\"),EXACT(集計用!JZ7,\"ー\"),集計用!JZ7=0,集計用!JZ7=\"\"),0,1)","v":0},{"$f":"IF(OR(EXACT(集計用!KA7,\"事業概要：\"),EXACT(集計用!KA7,\"ー\"),集計用!KA7=0,集計用!KA7=\"\"),0,1)","v":0},{"$f":"IF(OR(EXACT(集計用!KB7,\"事業概要：\"),EXACT(集計用!KB7,\"ー\"),集計用!KB7=0,集計用!KB7=\"\"),0,1)","v":0},{"$f":"IF(OR(EXACT(集計用!KC7,\"事業概要：\"),EXACT(集計用!KC7,\"ー\"),集計用!KC7=0,集計用!KC7=\"\"),0,1)","v":0},{"$f":"IF(OR(EXACT(集計用!KD7,\"事業概要：\"),EXACT(集計用!KD7,\"ー\"),集計用!KD7=0,集計用!KD7=\"\"),0,1)","v":0},{"$f":"IF(OR(EXACT(集計用!KE7,\"事業概要：\"),EXACT(集計用!KE7,\"ー\"),集計用!KE7=0,集計用!KE7=\"\"),0,1)","v":0},{"$f":"IF(OR(EXACT(集計用!KF7,\"事業概要：\"),EXACT(集計用!KF7,\"ー\"),集計用!KF7=0,集計用!KF7=\"\"),0,1)","v":0},{"$f":"IF(OR(EXACT(集計用!KG7,\"事業概要：\"),EXACT(集計用!KG7,\"ー\"),集計用!KG7=0,集計用!KG7=\"\"),0,1)","v":0},{"$f":"IF(OR(EXACT(集計用!KH7,\"事業概要：\"),EXACT(集計用!KH7,\"ー\"),集計用!KH7=0,集計用!KH7=\"\"),0,1)","v":0},{"$f":"IF(OR(EXACT(集計用!KI7,\"事業概要：\"),EXACT(集計用!KI7,\"ー\"),集計用!KI7=0,集計用!KI7=\"\"),0,1)","v":0},{"$f":"IF(OR(EXACT(集計用!KJ7,\"事業概要：\"),EXACT(集計用!KJ7,\"ー\"),集計用!KJ7=0,集計用!KJ7=\"\"),0,1)","v":0},{"$f":"IF(OR(EXACT(集計用!KK7,\"事業概要：\"),EXACT(集計用!KK7,\"ー\"),集計用!KK7=0,集計用!KK7=\"\"),0,1)","v":0},{"$f":"IF(OR(EXACT(集計用!KL7,\"事業概要：\"),EXACT(集計用!KL7,\"ー\"),集計用!KL7=0,集計用!KL7=\"\"),0,1)","v":0}]
["F","F","F","F","F","T","T","T","T","T","T","T","T","T","T","T","T","T","T","F","F","F","F","F","F","F","F","F","F","F","F","F","F","F","F","F","F","F","F","F","F","F","F","F","F","F","F","T","T","F","F","T","F","F","F","F","F","T","T","F","F","T","F","F","F","F","F","T","T","F","F","T","F","F","F","F","F","F","T","F","F","T","F","F","F","F","F","T","T","F","F","T","F","F","F","F","F","T","T","F","F","T","F","F","F","F","F","T","T","T","F","F","T","F","F","F","F","F","T","T","F","F","T","F","F","F","F","F","T","T","F","F","T","F","F","F","F","F","T","T","F","F","T","F","F","F","F","F","T","T","F","F","T","F","F","F","F","F","T","T","F","F","T","F","F","F","F","F","T","T","F","F","T","F","F","F","F","F","T","T","F","F","T","F","F","F","F","F","T","T","F","F","T","F","F","F","F","F","T","T","F","F","T","F","F","F","F","F","T","T","T","T","T","T","T","T","T","T","T","T","T","T","T","T","T","T","T","T","T","T","T","T","T","T","T","T","T","T","T","T","T","T","T","T","T","T","T","T","T","T","T","T","T","T","T","T","T","T","T","T","T","T","T","T","T","T","T","T","T","T","T","T","T","T","T","T","T","T","T","T","T","T","T","T","T","T","T","T","T","T","T","T","T","T","T","T","T","T"]
[null,null,null,null,null,null,null,null,null,0,0,0,null,null,0,null,0,0,null,null,null,null,null,null,null,null,null,null,null,null,null,null,null,null,null,null,null,null,null,null,null,null,null,null,null,null,null,0,0,null,null,null,null,null,null,null,null,0,0,null,null,null,null,null,null,null,null,0,0,null,null,null,null,null,null,null,null,null,0,null,null,null,null,null,null,null,null,0,0,null,null,null,null,null,null,null,null,0,0,null,null,null,null,null,null,null,null,null,0,0,null,null,null,null,null,null,null,null,0,0,null,null,null,null,null,null,null,null,0,0,null,null,null,null,null,null,null,null,0,0,null,null,null,null,null,null,null,null,0,0,null,null,0,null,null,null,null,null,0,0,null,null,null,null,null,null,null,null,0,0,null,null,null,null,null,null,null,null,0,0,null,null,null,null,null,null,null,null,0,0,null,null,null,null,null,null,null,null,0,0]
[]
[null,null,null,null,null,2,2,2,2,1,2,2,1,2,1,2,1,3,2,1,1,1,1,1,1,1,1,1,1,1,1,1,1,1,1,1,1,1,1,1,1,1,1,1,1,1,1,1,1,1,1,1,1,1,1,1,1,1,1,1,1,1,1,1,1,1,1,1,1,1,1,1,1,1,1,1,1,1,1,1,1,1,1,1,1,1,1,1,1,1,1,1,1,1,1,1,1,1,1,1,1,1,1,1,1,1,1,2,1,1,1,1,1,1,1,1,1,1,1,1,1,1,1,1,1,1,1,1,1,1,1,1,1,1,1,1,1,1,1,1,1,1,1,1,1,1,1,1,1,1,1,1,1,1,1,1,1,1,1,1,1,1,1,1,1,1,1,1,1,1,1,1,1,1,1,1,1,1,1,1,1,1,1,1,1,1,1,1,1,1,1,1,1,1,1,1,1,1,1,1,1,1,1,1,1,1,1,1,2,2,1,1,1,1,1,1,1,2,2,1,1,1,1,1,1,1,2,2,1,1,1,1,1,1,1,2,2,1,1,1,1,1,1,1,2,2,1,1,1,1,1,1,1,2,2,1,1,1,1,1,1,1,2,2,1,1,1,1,1,1,1,2,2,1,1,1,1,1,1,1,2,2,1,1,1,1,1,1,1,2,2,1,1,1,1,1,1,1]

{"sheet":"補助","index":4,"n_rows":1145,"n_cols":24,"rows_kept":1145,"cut":false,"hidden":true,"merged":[]}
[null,{"$f":"YEAR(TODAY()) - YEAR(DATE(2019, 5, 1)) + 1","v":6},"C:\\Users\\dxgxstaff132\\Desktop"]
[null,{"$f":"MONTH(TODAY())","v":6},"様式第1A.pdf",null,"金融機関等\nコード","金融機関等\n名称",null,null,"口座名義（フリガナ）",null,null,null,"中央値","補助対象経費","数","下限","上限",null,null,null,null,null,null,"F4"]
[null,{"$f":"DAY(TODAY())","v":21},"C:\\Users\\dxgxstaff132\\Desktop",null,null,null,null,null,"使用可能文字一覧",null,null,null,null,null,null,null,null,null,null,null,null,null,null,"Q4"]
["MM29",null,"様式第1B.pdf",null,1,"みずほ",null,null,"ｱ",null,null,null,85000,"$S$58","$P$58",8500,850000,{"$f":"M4*10","v":850000},{"$f":"M4/10","v":8500},null,null,null,null,"F6"]
[null,null,null,null,5,"三菱ＵＦＪ",null,null,"ｲ",null,null,null,31800,"$S$59","$P$59",3180,318000,{"$f":"M5*10","v":318000},{"$f":"M5/10","v":3180},null,null,null,null,"Q6"]
[null,null,null,null,9,"三井住友",null,null,"ｳ",null,null,null,273800,"$S$60","$P$60",27380,2738000,2738000,27380,null,null,null,null,"F8"]
[null,null,{"$f":"IF(COUNT(INDEX(FIND(I4:I93,B7),))=LEN(B7),0,3)","v":0},null,10,"りそな",null,null,"ｴ",null,null,null,2500000,"$S$61","$P$61",25000000,250000,25000000,250000,null,null,null,null,"Q8"]
[null,null,null,null,17,"埼玉りそな",null,null,"ｵ",null,null,null,240000,"$S$62","$P$62",24000,2400000,2400000,24000,null,null,null,null,"F12"]
[null,null,null,null,33,"ＰａｙＰａｙ",null,null,"ｶ",null,null,null,242500,"$S$63","$P$63",24250,2425000,2425000,24250,null,null,null,null,"Q12"]
[null,null,null,null,34,"セブン",null,null,"ｷ",null,null,null,78.695333333333338,"$S$68","$P$68",7.8695333333333339,786.95333333333338,786.95333333333338,7.8695333333333339,null,null,null,null,"F14"]
[null,null,null,null,35,"ソニー",null,null,"ｸ",null,null,null,1400,"$S$69","$P$69",140,14000,14000,140,null,null,null,null,"F16"]
[null,null,null,null,36,"楽天",null,null,"ｹ",null,null,null,2771400,"$S$70","$P$70",277140,27714000,27714000,277140,null,null,null,null,"F18"]
[null,null,null,null,38,"住信ＳＢＩネット",null,null,"ｺ",null,null,null,96000,"$S$75","$P$75",9600,960000,960000,9600,null,null,null,null,"F20"]
[null,null,null,null,39,"ａｕじぶん",null,null,"ｻ",null,null,null,1250000,"$S$76","$P$76",125000,12500000,12500000,125000,null,null,null,null,"F22"]
[null,null,null,null,40,"イオン",null,null,"ｼ",null,null,null,2100000,"$S$77","$P$77",210000,21000000,21000000,210000,null,null,null,null,"F24"]
[null,null,null,null,41,"大和ネクスト",null,null,"ｽ",null,null,null,57727,"$S$78","$P$78",5772.7,577270,577270,5772.7,null,null,null,null,"P58"]
[null,null,null,null,42,"ローソン",null,null,"ｾ",null,null,null,2718,"$S$87","$P$87",271.8,27180,27180,271.8,null,null,null,null,"S58"]
[null,null,null,null,43,"みんなの",null,null,"ｿ",null,null,null,77805.5,"$S$88","$P$88",7780.55,778055,778055,7780.55,null,null,null,null,"P59"]
[null,null,null,null,44,"ＵＩ",null,null,"ﾀ",null,null,null,562761,"$S$89","$P$89",56276.1,5627610,5627610,56276.1,null,null,null,null,"S59"]
[null,null,null,null,116,"北海道",null,null,"ﾁ",null,null,null,null,null,null,null,null,null,null,null,null,null,null,"P60"]
[null,null,null,null,117,"青森",null,null,"ﾂ",null,null,null,null,null,null,null,null,null,null,null,null,null,null,"S60"]
[null,null,null,null,118,"みちのく",null,null,"ﾃ",null,null,null,null,null,null,null,null,null,null,null,null,null,null,"S61"]
[null,null,null,null,119,"秋田",null,null,"ﾄ",null,null,null,null,null,null,null,null,null,null,null,null,null,null,"P62"]
[null,null,null,null,120,"北都",null,null,"ﾅ",null,null,null,null,null,null,null,null,null,null,null,null,null,null,"S62"]
[null,null,null,null,121,"荘内",null,null,"ﾆ",null,null,null,null,null,null,null,null,null,null,null,null,null,null,"P63"]
[null,null,null,null,122,"山形",null,null,"ﾇ",null,null,null,null,null,null,null,null,null,null,null,null,null,null,"S63"]
[null,null,null,null,123,"岩手",null,null,"ﾈ",null,null,null,null,null,null,null,null,null,null,null,null,null,null,"E64"]
[null,null,null,null,124,"東北",null,null,"ﾉ",null,null,null,null,null,null,null,null,null,null,null,null,null,null,"P68"]
[null,null,null,null,125,"七十七",null,null,"ﾊ",null,null,null,null,null,null,null,null,null,null,null,null,null,null,"S68"]
[null,null,null,null,126,"東邦",null,null,"ﾋ",null,null,null,null,null,null,null,null,null,null,null,null,null,null,"P69"]
[null,null,null,null,128,"群馬",null,null,"ﾌ",null,null,null,null,null,null,null,null,null,null,null,null,null,null,"S69"]
[null,null,null,null,129,"足利",null,null,"ﾍ",null,null,null,null,null,null,null,null,null,null,null,null,null,null,"P70"]
[null,null,null,null,130,"常陽",null,null,"ﾎ",null,null,null,null,null,null,null,null,null,null,null,null,null,null,"S70"]
[null,null,null,null,131,"筑波",null,null,"ﾏ",null,null,null,null,null,null,null,null,null,null,null,null,null,null,"P75"]
[null,null,null,null,133,"武蔵野",null,null,"ﾐ",null,null,null,null,null,null,null,null,null,null,null,null,null,null,"S75"]
[null,null,null,null,134,"千葉",null,null,"ﾑ",null,null,null,null,null,null,null,null,null,null,null,null,null,null,"P76"]
[null,null,null,null,135,"千葉興業",null,null,"ﾒ",null,null,null,null,null,null,null,null,null,null,null,null,null,null,"S76"]
[null,null,null,null,137,"きらぼし",null,null,"ﾓ",null,null,null,null,null,null,null,null,null,null,null,null,null,null,"P77"]
[null,null,null,null,138,"横浜",null,null,"ﾔ",null,null,null,null,null,null,null,null,null,null,null,null,null,null,"S77"]
[null,null,null,null,140,"第四北越",null,null,"ﾕ",null,null,null,null,null,null,null,null,null,null,null,null,null,null,"P78"]
[null,null,null,null,142,"山梨中央",null,null,"ﾖ",null,null,null,null,null,null,null,null,null,null,null,null,null,null,"S78"]
[null,null,null,null,143,"八十二",null,null,"ﾗ",null,null,null,null,null,null,null,null,null,null,null,null,null,null,"P87"]
[null,null,null,null,144,"北陸",null,null,"ﾘ",null,null,null,null,null,null,null,null,null,null,null,null,null,null,"S87"]
[null,null,null,null,145,"富山",null,null,"ﾙ",null,null,null,null,null,null,null,null,null,null,null,null,null,null,"P88"]
[null,null,null,null,146,"北國",null,null,"ﾚ",null,null,null,null,null,null,null,null,null,null,null,null,null,null,"S88"]
[null,null,null,null,147,"福井",null,null,"ﾛ",null,null,null,null,null,null,null,null,null,null,null,null,null,null,"P89"]
[null,null,null,null,149,"静岡",null,null,"ﾜ",null,null,null,null,null,null,null,null,null,null,null,null,null,null,"S89"]
[null,null,null,null,150,"スルガ",null,null,"ﾝ",null,null,null,null,null,null,null,null,null,null,null,null,null,null,"D104"]
[null,null,null,null,151,"清水",null,null,"ﾞ",null,null,null,null,null,null,null,null,null,null,null,null,null,null,"F104"]
[null,null,null,null,152,"大垣共立",null,null,"ﾟ",null,null,null,null,null,null,null,null,null,null,null,null,null,null,"P104"]
[null,null,null,null,153,"十六",null,null,0,null,null,null,null,null,null,null,null,null,null,null,null,null,null,"S104"]
[null,null,null,null,154,"三十三",null,null,1,null,null,null,null,null,null,null,null,null,null,null,null,null,null,"V104"]
[null,null,null,null,155,"百五",null,null,2,null,null,null,null,null,null,null,null,null,null,null,null,null,null,"Y104"]
[null,null,null,null,157,"滋賀",null,null,3,null,null,null,null,null,null,null,null,null,null,null,null,null,null,"AB104"]
[null,null,null,null,158,"京都",null,null,4,null,null,null,null,null,null,null,null,null,null,null,null,null,null,"AJ104"]
[null,null,null,null,159,"関西みらい",null,null,5,null,null,null,null,null,null,null,null,null,null,null,null,null,null,"AM104"]
[null,null,null,null,161,"池田泉州",null,null,6,null,null,null,null,null,null,null,null,null,null,null,null,null,null,"D105"]
[null,null,null,null,162,"南都",null,null,7,null,null,null,null,null,null,null,null,null,null,null,null,null,null,"F105"]
[null,null,null,null,163,"紀陽",null,null,8,null,null,null,null,null,null,null,null,null,null,null,null,null,null,"P105"]
[null,null,null,null,164,"但馬",null,null,9,null,null,null,null,null,null,null,null,null,null,null,null,null,null,"S105"]
[null,null,null,null,166,"鳥取",null,null,"A",null,null,null,null,null,null,null,null,null,null,null,null,null,null,"V105"]
[null,null,null,null,167,"山陰合同",null,null,"B",null,null,null,null,null,null,null,null,null,null,null,null,null,null,"Y105"]
[null,null,null,null,168,"中国",null,null,"C",null,null,null,null,null,null,null,null,null,null,null,null,null,null,"AB105"]
[null,null,null,null,169,"広島",null,null,"D",null,null,null,null,null,null,null,null,null,null,null,null,null,null,"AJ105"]
[null,null,null,null,170,"山口",null,null,"E",null,null,null,null,null,null,null,null,null,null,null,null,null,null,"AM105"]
[null,null,null,null,172,"阿波",null,null,"F",null,null,null,null,null,null,null,null,null,null,null,null,null,null,"D106"]
[null,null,null,null,173,"百十四",null,null,"G",null,null,null,null,null,null,null,null,null,null,null,null,null,null,"F106"]
[null,null,null,null,174,"伊予",null,null,"H",null,null,null,null,null,null,null,null,null,null,null,null,null,null,"P106"]
[null,null,null,null,175,"四国",null,null,"I",null,null,null,null,null,null,null,null,null,null,null,null,null,null,"S106"]
[null,null,null,null,177,"福岡",null,null,"J",null,null,null,null,null,null,null,null,null,null,null,null,null,null,"V106"]
[null,null,null,null,178,"筑邦",null,null,"K",null,null,null,null,null,null,null,null,null,null,null,null,null,null,"Y106"]
[null,null,null,null,179,"佐賀",null,null,"L",null,null,null,null,null,null,null,null,null,null,null,null,null,null,"AB106"]
[null,null,null,null,181,"十八親和",null,null,"M",null,null,null,null,null,null,null,null,null,null,null,null,null,null,"AJ106"]
[null,null,null,null,182,"肥後",null,null,"N",null,null,null,null,null,null,null,null,null,null,null,null,null,null,"AM106"]
[null,null,null,null,183,"大分",null,null,"O",null,null,null,null,null,null,null,null,null,null,null,null,null,null,"D107"]
[null,null,null,null,184,"宮崎",null,null,"P",null,null,null,null,null,null,null,null,null,null,null,null,null,null,"F107"]
[null,null,null,null,185,"鹿児島",null,null,"Q",null,null,null,null,null,null,null,null,null,null,null,null,null,null,"P107"]
[null,null,null,null,187,"琉球",null,null,"R",null,null,null,null,null,null,null,null,null,null,null,null,null,null,"S107"]
[null,null,null,null,188,"沖縄",null,null,"S",null,null,null,null,null,null,null,null,null,null,null,null,null,null,"V107"]
[null,null,null,null,190,"西日本シティ",null,null,"T",null,null,null,null,null,null,null,null,null,null,null,null,null,null,"Y107"]
[null,null,null,null,191,"北九州",null,null,"U",null,null,null,null,null,null,null,null,null,null,null,null,null,null,"AB107"]
[null,null,null,null,288,"三菱ＵＦＪ信託",null,null,"V",null,null,null,null,null,null,null,null,null,null,null,null,null,null,"AJ107"]
[null,null,null,null,289,"みずほ信託",null,null,"W",null,null,null,null,null,null,null,null,null,null,null,null,null,null,"AM107"]
[null,null,null,null,294,"三井住友信託",null,null,"X",null,null,null,null,null,null,null,null,null,null,null,null,null,null,"D108"]
[null,null,null,null,297,"日本マスタートラスト信託",null,null,"Y",null,null,null,null,null,null,null,null,null,null,null,null,null,null,"F108"]
[null,null,null,null,300,"ＳＭＢＣ信託",null,null,"Z",null,null,null,null,null,null,null,null,null,null,null,null,null,null,"P108"]
[null,null,null,null,304,"野村信託",null,null,"(",null,null,null,null,null,null,null,null,null,null,null,null,null,null,"S108"]
[null,null,null,null,307,"オリックス",null,null,")",null,null,null,null,null,null,null,null,null,null,null,null,null,null,"V108"]
[null,null,null,null,310,"ＧＭＯあおぞらネット",null,null,".",null,null,null,null,null,null,null,null,null,null,null,null,null,null,"Y108"]
[null,null,null,null,324,"日本カストディ",null,null,"-",null,null,null,null,null,null,null,null,null,null,null,null,null,null,"AB108"]
[null,null,null,null,397,"ＳＢＩ新生",null,null,"ｰ",null,null,null,null,null,null,null,null,null,null,null,null,null,null,"AJ108"]
[null,null,null,null,398,"あおぞら",null,null,"/",null,null,null,null,null,null,null,null,null,null,null,null,null,null,"AM108"]
[null,null,null,null,401,"シティバンク、エヌ・エイ",null,null," ",null,null,null,null,null,null,null,null,null,null,null,null,null,null,"D109"]
[null,null,null,null,402,"ジェー・ピー・モルガン・チェース・バンク・ナショナル・アソシエーション",null,null,null,null,null,null,null,null,null,null,null,null,null,null,null,null,null,"F109"]
[null,null,null,null,403,"バンク・オブ・アメリカ・エヌ・エイ",null,null,null,null,null,null,null,null,null,null,null,null,null,null,null,null,null,"P109"]
[null,null,null,null,411,"香港上海",null,null,null,null,null,null,null,null,null,null,null,null,null,null,null,null,null,"S109"]
[null,null,null,null,430,"ドイツ",null,null,null,null,null,null,null,null,null,null,null,null,null,null,null,null,null,"V109"]
[null,null,null,null,443,"ビー・エヌ・ピー・パリバ",null,null,null,null,null,null,null,null,null,null,null,null,null,null,null,null,null,"Y109"]
[null,null,null,null,472,"ＳＢＪ",null,null,null,null,null,null,null,null,null,null,null,null,null,null,null,null,null,"AB109"]
[null,null,null,null,489,"バンク・オブ・チャイナ",null,null,null,null,null,null,null,null,null,null,null,null,null,null,null,null,null,"AJ109"]
[null,null,null,null,501,"北洋",null,null,null,null,null,null,null,null,null,null,null,null,null,null,null,null,null,"AM109"]
[null,null,null,null,508,"きらやか",null,null,null,null,null,null,null,null,null,null,null,null,null,null,null,null,null,"D110"]
[null,null,null,null,509,"北日本",null,null,null,null,null,null,null,null,null,null,null,null,null,null,null,null,null,"F110"]
[null,null,null,null,512,"仙台",null,null,null,null,null,null,null,null,null,null,null,null,null,null,null,null,null,"P110"]
[null,null,null,null,513,"福島",null,null,null,null,null,null,null,null,null,null,null,null,null,null,null,null,null,"S110"]
[null,null,null,null,514,"大東",null,null,null,null,null,null,null,null,null,null,null,null,null,null,null,null,null,"V110"]
[null,null,null,null,516,"東和",null,null,null,null,null,null,null,null,null,null,null,null,null,null,null,null,null,"Y110"]
[null,null,null,null,517,"栃木",null,null,null,null,null,null,null,null,null,null,null,null,null,null,null,null,null,"AB110"]
[null,null,null,null,522,"京葉",null,null,null,null,null,null,null,null,null,null,null,null,null,null,null,null,null,"AJ110"]
[null,null,null,null,525,"東日本",null,null,null,null,null,null,null,null,null,null,null,null,null,null,null,null,null,"AM110"]
[null,null,null,null,526,"東京スター",null,null,null,null,null,null,null,null,null,null,null,null,null,null,null,null,null,"D111"]
[null,null,null,null,530,"神奈川",null,null,null,null,null,null,null,null,null,null,null,null,null,null,null,null,null,"F111"]
[null,null,null,null,532,"大光",null,null,null,null,null,null,null,null,null,null,null,null,null,null,null,null,null,"P111"]
[null,null,null,null,533,"長野",null,null,null,null,null,null,null,null,null,null,null,null,null,null,null,null,null,"S111"]
[null,null,null,null,534,"富山第一",null,null,null,null,null,null,null,null,null,null,null,null,null,null,null,null,null,"V111"]
[null,null,null,null,537,"福邦",null,null,null,null,null,null,null,null,null,null,null,null,null,null,null,null,null,"Y111"]
[null,null,null,null,538,"静岡中央",null,null,null,null,null,null,null,null,null,null,null,null,null,null,null,null,null,"AB111"]
[null,null,null,null,542,"愛知",null,null,null,null,null,null,null,null,null,null,null,null,null,null,null,null,null,"AJ111"]
[null,null,null,null,543,"名古屋",null,null,null,null,null,null,null,null,null,null,null,null,null,null,null,null,null,"AM111"]
[null,null,null,null,544,"中京",null,null,null,null,null,null,null,null,null,null,null,null,null,null,null,null,null,"D112"]
[null,null,null,null,562,"みなと",null,null,null,null,null,null,null,null,null,null,null,null,null,null,null,null,null,"F112"]
[null,null,null,null,565,"島根",null,null,null,null,null,null,null,null,null,null,null,null,null,null,null,null,null,"P112"]
[null,null,null,null,566,"トマト",null,null,null,null,null,null,null,null,null,null,null,null,null,null,null,null,null,"S112"]
[null,null,null,null,569,"もみじ",null,null,null,null,null,null,null,null,null,null,null,null,null,null,null,null,null,"V112"]
[null,null,null,null,570,"西京",null,null,null,null,null,null,null,null,null,null,null,null,null,null,null,null,null,"Y112"]
[null,null,null,null,572,"徳島大正",null,null,null,null,null,null,null,null,null,null,null,null,null,null,null,null,null,"AB112"]
[null,null,null,null,573,"香川",null,null,null,null,null,null,null,null,null,null,null,null,null,null,null,null,null,"AJ112"]
[null,null,null,null,576,"愛媛",null,null,null,null,null,null,null,null,null,null,null,null,null,null,null,null,null,"AM112"]
[null,null,null,null,578,"高知",null,null,null,null,null,null,null,null,null,null,null,null,null,null,null,null,null,"D113"]
[null,null,null,null,582,"福岡中央",null,null,null,null,null,null,null,null,null,null,null,null,null,null,null,null,null,"F113"]
[null,null,null,null,583,"佐賀共栄",null,null,null,null,null,null,null,null,null,null,null,null,null,null,null,null,null,"P113"]
[null,null,null,null,585,"長崎",null,null,null,null,null,null,null,null,null,null,null,null,null,null,null,null,null,"S113"]
[null,null,null,null,587,"熊本",null,null,null,null,null,null,null,null,null,null,null,null,null,null,null,null,null,"V113"]
[null,null,null,null,590,"豊和",null,null,null,null,null,null,null,null,null,null,null,null,null,null,null,null,null,"Y113"]
[null,null,null,null,591,"宮崎太陽",null,null,null,null,null,null,null,null,null,null,null,null,null,null,null,null,null,"AB113"]
[null,null,null,null,594,"南日本",null,null,null,null,null,null,null,null,null,null,null,null,null,null,null,null,null,"AJ113"]
[null,null,null,null,596,"沖縄海邦",null,null,null,null,null,null,null,null,null,null,null,null,null,null,null,null,null,"AM113"]
[null,null,null,null,1000,"信金中央金庫"]
[null,null,null,null,1001,"北海道信金"]
[null,null,null,null,1003,"室蘭信金"]
[null,null,null,null,1004,"空知信金"]
[null,null,null,null,1006,"苫小牧信金"]
[null,null,null,null,1008,"北門信金"]
[null,null,null,null,1009,"伊達信金"]
[null,null,null,null,1010,"北空知信金"]
[null,null,null,null,1011,"日高信金"]
[null,null,null,null,1013,"渡島信金"]
[null,null,null,null,1014,"道南うみ街信金"]
[null,null,null,null,1020,"旭川信金"]
[null,null,null,null,1021,"稚内信金"]
[null,null,null,null,1022,"留萌信金"]
[null,null,null,null,1024,"北星信金"]
[null,null,null,null,1026,"帯広信金"]
[null,null,null,null,1027,"釧路信金"]
[null,null,null,null,1028,"大地みらい信金"]
[null,null,null,null,1030,"北見信金"]
[null,null,null,null,1031,"網走信金"]
[null,null,null,null,1033,"遠軽信金"]
[null,null,null,null,1104,"東奥信金"]
[null,null,null,null,1105,"青い森信金"]
[null,null,null,null,1120,"秋田信金"]
[null,null,null,null,1123,"羽後信金"]
[null,null,null,null,1140,"山形信金"]
[null,null,null,null,1141,"米沢信金"]
[null,null,null,null,1142,"鶴岡信金"]
[null,null,null,null,1143,"新庄信金"]
[null,null,null,null,1150,"盛岡信金"]
[null,null,null,null,1152,"宮古信金"]
[null,null,null,null,1153,"一関信金"]
[null,null,null,null,1154,"北上信金"]
[null,null,null,null,1155,"花巻信金"]
[null,null,null,null,1156,"水沢信金"]
[null,null,null,null,1170,"杜の都信金"]
[null,null,null,null,1171,"宮城第一信金"]
[null,null,null,null,1172,"石巻信金"]
[null,null,null,null,1174,"仙南信金"]
[null,null,null,null,1175,"気仙沼信金"]
[null,null,null,null,1181,"会津信金"]
[null,null,null,null,1182,"郡山信金"]
[null,null,null,null,1184,"白河信金"]
[null,null,null,null,1185,"須賀川信金"]
[null,null,null,null,1186,"ひまわり信金"]
[null,null,null,null,1188,"あぶくま信金"]
[null,null,null,null,1189,"二本松信金"]
[null,null,null,null,1190,"福島信金"]
[null,null,null,null,1203,"高崎信金"]
[null,null,null,null,1204,"桐生信金"]
[null,null,null,null,1206,"アイオー信金"]
[null,null,null,null,1208,"利根郡信金"]
[null,null,null,null,1209,"館林信金"]
[null,null,null,null,1210,"北群馬信金"]
[null,null,null,null,1211,"しののめ信金"]
[null,null,null,null,1221,"足利小山信金"]
[null,null,null,null,1222,"栃木信金"]
[null,null,null,null,1223,"鹿沼相互信金"]
[null,null,null,null,1224,"佐野信金"]
[null,null,null,null,1225,"大田原信金"]
[null,null,null,null,1227,"烏山信金"]
[null,null,null,null,1240,"水戸信金"]
[null,null,null,null,1242,"結城信金"]
[null,null,null,null,1250,"埼玉縣信金"]
[null,null,null,null,1251,"川口信金"]
[null,null,null,null,1252,"青木信金"]
[null,null,null,null,1253,"飯能信金"]
[null,null,null,null,1260,"千葉信金"]
[null,null,null,null,1261,"銚子信金"]
[null,null,null,null,1262,"東京ベイ信金"]
[null,null,null,null,1264,"館山信金"]
[null,null,null,null,1267,"佐原信金"]
[null,null,null,null,1280,"横浜信金"]
[null,null,null,null,1281,"かながわ信金"]
[null,null,null,null,1282,"湘南信金"]
[null,null,null,null,1283,"川崎信金"]
[null,null,null,null,1286,"平塚信金"]
[null,null,null,null,1288,"さがみ信金"]
[null,null,null,null,1289,"中栄信金"]
[null,null,null,null,1290,"中南信金"]
[null,null,null,null,1303,"朝日信金"]
[null,null,null,null,1305,"興産信金"]
[null,null,null,null,1310,"さわやか信金"]
[null,null,null,null,1311,"東京シティ信金"]
[null,null,null,null,1319,"芝信金"]
[null,null,null,null,1320,"東京東信金"]
[null,null,null,null,1321,"東栄信金"]
[null,null,null,null,1323,"亀有信金"]
[null,null,null,null,1326,"小松川信金"]
[null,null,null,null,1327,"足立成和信金"]
[null,null,null,null,1333,"東京三協信金"]
[null,null,null,null,1336,"西京信金"]
[null,null,null,null,1341,"西武信金"]
[null,null,null,null,1344,"城南信金"]
[null,null,null,null,1345,"昭和信金"]
[null,null,null,null,1346,"目黒信金"]
[null,null,null,null,1348,"世田谷信金"]
[null,null,null,null,1349,"東京信金"]
[null,null,null,null,1351,"城北信金"]
[null,null,null,null,1352,"瀧野川信金"]
[null,null,null,null,1356,"巣鴨信金"]
[null,null,null,null,1358,"青梅信金"]
[null,null,null,null,1360,"多摩信金"]
[null,null,null,null,1370,"新潟信金"]
[null,null,null,null,1371,"長岡信金"]
[null,null,null,null,1373,"三条信金"]
[null,null,null,null,1374,"新発田信金"]
[null,null,null,null,1375,"柏崎信金"]
[null,null,null,null,1376,"上越信金"]
[null,null,null,null,1377,"新井信金"]
[null,null,null,null,1379,"村上信金"]
[null,null,null,null,1380,"加茂信金"]
[null,null,null,null,1385,"甲府信金"]
[null,null,null,null,1386,"山梨信金"]
[null,null,null,null,1390,"長野信金"]
[null,null,null,null,1391,"松本信金"]
[null,null,null,null,1392,"上田信金"]
[null,null,null,null,1393,"諏訪信金"]
[null,null,null,null,1394,"飯田信金"]
[null,null,null,null,1396,"アルプス中央信金"]
[null,null,null,null,1401,"富山信金"]
[null,null,null,null,1402,"高岡信金"]
[null,null,null,null,1404,"新湊信金"]
[null,null,null,null,1405,"にいかわ信金"]
[null,null,null,null,1406,"氷見伏木信金"]
[null,null,null,null,1412,"砺波信金"]
[null,null,null,null,1413,"石動信金"]
[null,null,null,null,1440,"金沢信金"]
[null,null,null,null,1442,"のと共栄信金"]
[null,null,null,null,1444,"はくさん信金"]
[null,null,null,null,1448,"興能信金"]
[null,null,null,null,1470,"福井信金"]
[null,null,null,null,1471,"敦賀信金"]
[null,null,null,null,1473,"小浜信金"]
[null,null,null,null,1475,"越前信金"]
[null,null,null,null,1501,"しずおか焼津信金"]
[null,null,null,null,1502,"静清信金"]
[null,null,null,null,1503,"浜松磐田信金"]
[null,null,null,null,1505,"沼津信金"]
[null,null,null,null,1506,"三島信金"]
[null,null,null,null,1507,"富士宮信金"]
[null,null,null,null,1513,"島田掛川信金"]
[null,null,null,null,1515,"富士信金"]
[null,null,null,null,1517,"遠州信金"]
[null,null,null,null,1530,"岐阜信金"]
[null,null,null,null,1531,"大垣西濃信金"]
[null,null,null,null,1532,"高山信金"]
[null,null,null,null,1533,"東濃信金"]
[null,null,null,null,1534,"関信金"]
[null,null,null,null,1538,"八幡信金"]
[null,null,null,null,1550,"愛知信金"]
[null,null,null,null,1551,"豊橋信金"]
[null,null,null,null,1552,"岡崎信金"]
[null,null,null,null,1553,"いちい信金"]
[null,null,null,null,1554,"瀬戸信金"]
[null,null,null,null,1555,"半田信金"]
[null,null,null,null,1556,"知多信金"]
[null,null,null,null,1557,"豊川信金"]
[null,null,null,null,1559,"豊田信金"]
[null,null,null,null,1560,"碧海信金"]
[null,null,null,null,1561,"西尾信金"]
[null,null,null,null,1562,"蒲郡信金"]
[null,null,null,null,1563,"尾西信金"]
[null,null,null,null,1565,"中日信金"]
[null,null,null,null,1566,"東春信金"]
[null,null,null,null,1580,"津信金"]
[null,null,null,null,1581,"北伊勢上野信金"]
[null,null,null,null,1583,"桑名三重信金"]
[null,null,null,null,1585,"紀北信金"]
[null,null,null,null,1602,"滋賀中央信金"]
[null,null,null,null,1603,"長浜信金"]
[null,null,null,null,1604,"湖東信金"]
[null,null,null,null,1610,"京都信金"]
[null,null,null,null,1611,"京都中央信金"]
[null,null,null,null,1620,"京都北都信金"]
[null,null,null,null,1630,"大阪信金"]
[null,null,null,null,1633,"大阪厚生信金"]
[null,null,null,null,1635,"大阪シティ信金"]
[null,null,null,null,1636,"大阪商工信金"]
[null,null,null,null,1643,"永和信金"]
[null,null,null,null,1645,"北おおさか信金"]
[null,null,null,null,1656,"枚方信金"]
[null,null,null,null,1666,"奈良信金"]
[null,null,null,null,1667,"大和信金"]
[null,null,null,null,1668,"奈良中央信金"]
[null,null,null,null,1671,"新宮信金"]
[null,null,null,null,1674,"きのくに信金"]
[null,null,null,null,1680,"神戸信金"]
[null,null,null,null,1685,"姫路信金"]
[null,null,null,null,1686,"播州信金"]
[null,null,null,null,1687,"兵庫信金"]
[null,null,null,null,1688,"尼崎信金"]
[null,null,null,null,1689,"日新信金"]
[null,null,null,null,1691,"淡路信金"]
[null,null,null,null,1692,"但馬信金"]
[null,null,null,null,1694,"西兵庫信金"]
[null,null,null,null,1695,"中兵庫信金"]
[null,null,null,null,1696,"但陽信金"]
[null,null,null,null,1701,"鳥取信金"]
[null,null,null,null,1702,"米子信金"]
[null,null,null,null,1703,"倉吉信金"]
[null,null,null,null,1710,"しまね信金"]
[null,null,null,null,1711,"日本海信金"]
[null,null,null,null,1712,"島根中央信金"]
[null,null,null,null,1732,"おかやま信金"]
[null,null,null,null,1734,"水島信金"]
[null,null,null,null,1735,"津山信金"]
[null,null,null,null,1738,"玉島信金"]
[null,null,null,null,1740,"備北信金"]
[null,null,null,null,1741,"吉備信金"]
[null,null,null,null,1743,"備前日生信金"]
[null,null,null,null,1750,"広島信金"]
[null,null,null,null,1752,"呉信金"]
[null,null,null,null,1756,"しまなみ信金"]
[null,null,null,null,1758,"広島みどり信金"]
[null,null,null,null,1780,"萩山口信金"]
[null,null,null,null,1781,"西中国信金"]
[null,null,null,null,1789,"東山口信金"]
[null,null,null,null,1801,"徳島信金"]
[null,null,null,null,1803,"阿南信金"]
[null,null,null,null,1830,"高松信金"]
[null,null,null,null,1833,"観音寺信金"]
[null,null,null,null,1860,"愛媛信金"]
[null,null,null,null,1862,"宇和島信金"]
[null,null,null,null,1864,"東予信金"]
[null,null,null,null,1866,"川之江信金"]
[null,null,null,null,1880,"幡多信金"]
[null,null,null,null,1881,"高知信金"]
[null,null,null,null,1901,"福岡信金"]
[null,null,null,null,1903,"福岡ひびき信金"]
[null,null,null,null,1908,"大牟田柳川信金"]
[null,null,null,null,1909,"筑後信金"]
[null,null,null,null,1910,"飯塚信金"]
[null,null,null,null,1913,"田川信金"]
[null,null,null,null,1917,"大川信金"]
[null,null,null,null,1920,"遠賀信金"]
[null,null,null,null,1930,"唐津信金"]
[null,null,null,null,1931,"佐賀信金"]
[null,null,null,null,1932,"伊万里信金"]
[null,null,null,null,1933,"九州ひぜん信金"]
[null,null,null,null,1942,"たちばな信金"]
[null,null,null,null,1951,"熊本信金"]
[null,null,null,null,1952,"熊本第一信金"]
[null,null,null,null,1954,"熊本中央信金"]
[null,null,null,null,1955,"天草信金"]
[null,null,null,null,1960,"大分信金"]
[null,null,null,null,1962,"大分みらい信金"]
[null,null,null,null,1968,"日田信金"]
[null,null,null,null,1980,"宮崎第一信金"]
[null,null,null,null,1982,"延岡信金"]
[null,null,null,null,1985,"高鍋信金"]
[null,null,null,null,1990,"鹿児島信金"]
[null,null,null,null,1991,"鹿児島相互信金"]
[null,null,null,null,1993,"奄美大島信金"]
[null,null,null,null,1996,"コザ信金"]
[null,null,null,null,2004,"商工組合中央金庫"]
[null,null,null,null,2010,"全国信用協同組合連合会"]
[null,null,null,null,2011,"北央信組"]
[null,null,null,null,2013,"札幌中央信組"]
[null,null,null,null,2014,"ウリ信組"]
[null,null,null,null,2017,"函館商工信組"]
[null,null,null,null,2019,"空知商工信組"]
[null,null,null,null,2024,"十勝信組"]
[null,null,null,null,2025,"釧路信組"]
[null,null,null,null,2030,"青森県信組"]
[null,null,null,null,2045,"杜陵信組"]
[null,null,null,null,2049,"岩手県医師信組"]
[null,null,null,null,2060,"あすか信組"]
[null,null,null,null,2061,"石巻商工信組"]
[null,null,null,null,2062,"古川信組"]
[null,null,null,null,2063,"仙北信組"]
[null,null,null,null,2075,"秋田県信組"]
[null,null,null,null,2083,"北郡信組"]
[null,null,null,null,2084,"山形中央信組"]
[null,null,null,null,2085,"山形第一信組"]
[null,null,null,null,2090,"福島県商工信組"]
[null,null,null,null,2092,"いわき信組"]
[null,null,null,null,2095,"相双五城信組"]
[null,null,null,null,2096,"会津商工信組"]
[null,null,null,null,2101,"茨城県信組"]
[null,null,null,null,2122,"真岡信組"]
[null,null,null,null,2125,"那須信組"]
[null,null,null,null,2143,"あかぎ信組"]
[null,null,null,null,2146,"群馬県信組"]
[null,null,null,null,2149,"ぐんまみらい信組"]
[null,null,null,null,2151,"群馬県医師信組"]
[null,null,null,null,2162,"埼玉県医師信組"]
[null,null,null,null,2165,"熊谷商工信組"]
[null,null,null,null,2167,"埼玉信組"]
[null,null,null,null,2180,"房総信組"]
[null,null,null,null,2184,"銚子商工信組"]
[null,null,null,null,2190,"君津信組"]
[null,null,null,null,2202,"全東栄信組"]
[null,null,null,null,2210,"東浴信組"]
[null,null,null,null,2211,"文化産業信組"]
[null,null,null,null,2213,"整理回収機構"]
[null,null,null,null,2215,"東京証券信組"]
[null,null,null,null,2224,"東京厚生信組"]
[null,null,null,null,2226,"東信組"]
[null,null,null,null,2229,"江東信組"]
[null,null,null,null,2231,"青和信組"]
[null,null,null,null,2235,"中ノ郷信組"]
[null,null,null,null,2241,"共立信組"]
[null,null,null,null,2243,"七島信組"]
[null,null,null,null,2248,"大東京信組"]
[null,null,null,null,2254,"第一勧業信組"]
[null,null,null,null,2271,"警視庁職員信組"]
[null,null,null,null,2274,"東京消防信組"]
[null,null,null,null,2276,"東京都職員信組"]
[null,null,null,null,2277,"ハナ信組"]
[null,null,null,null,2304,"神奈川県医師信組"]
[null,null,null,null,2305,"神奈川県歯科医師信組"]
[null,null,null,null,2306,"横浜幸銀信組"]
[null,null,null,null,2307,"横浜華銀信組"]
[null,null,null,null,2315,"小田原第一信組"]
[null,null,null,null,2318,"相愛信組"]
[null,null,null,null,2332,"静岡県医師信組"]
[null,null,null,null,2351,"新潟縣信組"]
[null,null,null,null,2354,"新潟鉄道信組"]
[null,null,null,null,2356,"興栄信組"]
[null,null,null,null,2357,"はばたき信組"]
[null,null,null,null,2360,"協栄信組"]
[null,null,null,null,2361,"三條信組"]
[null,null,null,null,2362,"巻信組"]
[null,null,null,null,2363,"新潟大栄信組"]
[null,null,null,null,2365,"塩沢信組"]
[null,null,null,null,2366,"糸魚川信組"]
[null,null,null,null,2377,"山梨県民信組"]
[null,null,null,null,2378,"都留信組"]
[null,null,null,null,2390,"長野県信組"]
[null,null,null,null,2402,"富山県医師信組"]
[null,null,null,null,2404,"富山県信組"]
[null,null,null,null,2411,"金沢中央信組"]
[null,null,null,null,2417,"石川県医師信組"]
[null,null,null,null,2430,"福泉信組"]
[null,null,null,null,2435,"福井県医師信組"]
[null,null,null,null,2440,"丸八信組"]
[null,null,null,null,2442,"愛知商銀信組"]
[null,null,null,null,2443,"愛知県警察信組"]
[null,null,null,null,2444,"名古屋青果物信組"]
[null,null,null,null,2446,"愛知県医療信組"]
[null,null,null,null,2447,"愛知県医師信組"]
[null,null,null,null,2448,"豊橋商工信組"]
[null,null,null,null,2451,"愛知県中央信組"]
[null,null,null,null,2470,"岐阜商工信組"]
[null,null,null,null,2471,"イオ信組"]
[null,null,null,null,2473,"岐阜県医師信組"]
[null,null,null,null,2476,"飛騨信組"]
[null,null,null,null,2481,"益田信組"]
[null,null,null,null,2504,"滋賀県民信組"]
[null,null,null,null,2505,"滋賀県信組"]
[null,null,null,null,2526,"京滋信組"]
[null,null,null,null,2540,"大同信組"]
[null,null,null,null,2541,"成協信組"]
[null,null,null,null,2543,"大阪協栄信組"]
[null,null,null,null,2548,"大阪貯蓄信組"]
[null,null,null,null,2549,"のぞみ信組"]
[null,null,null,null,2556,"中央信組"]
[null,null,null,null,2560,"大阪府医師信組"]
[null,null,null,null,2566,"大阪府警察信組"]
[null,null,null,null,2567,"近畿産業信組"]
[null,null,null,null,2580,"朝日新聞信組"]
[null,null,null,null,2581,"毎日信組"]
[null,null,null,null,2582,"ミレ信組"]
[null,null,null,null,2602,"兵庫県警察信組"]
[null,null,null,null,2605,"兵庫県医療信組"]
[null,null,null,null,2606,"兵庫県信組"]
[null,null,null,null,2610,"神戸市職員信組"]
[null,null,null,null,2616,"淡陽信組"]
[null,null,null,null,2620,"兵庫ひまわり信組"]
[null,null,null,null,2634,"和歌山県医師信組"]
[null,null,null,null,2661,"島根益田信組"]
[null,null,null,null,2672,"朝銀西信組"]
[null,null,null,null,2674,"笠岡信組"]
[null,null,null,null,2680,"広島市信組"]
[null,null,null,null,2681,"広島県信組"]
[null,null,null,null,2684,"広島商銀信組"]
[null,null,null,null,2690,"両備信組"]
[null,null,null,null,2696,"備後信組"]
[null,null,null,null,2703,"山口県信組"]
[null,null,null,null,2721,"香川県信組"]
[null,null,null,null,2740,"土佐信組"]
[null,null,null,null,2741,"宿毛商銀信組"]
[null,null,null,null,2751,"福岡県庁信組"]
[null,null,null,null,2753,"福岡県医師信組"]
[null,null,null,null,2773,"福岡県信組"]
[null,null,null,null,2802,"佐賀県医師信組"]
[null,null,null,null,2803,"佐賀東信組"]
[null,null,null,null,2808,"佐賀西信組"]
[null,null,null,null,2820,"長崎三菱信組"]
[null,null,null,null,2821,"長崎県医師信組"]
[null,null,null,null,2825,"西海みずき信組"]
[null,null,null,null,2833,"福江信組"]
[null,null,null,null,2842,"熊本県医師信組"]
[null,null,null,null,2845,"熊本県信組"]
[null,null,null,null,2870,"大分県信組"]
[null,null,null,null,2884,"宮崎県南部信組"]
[null,null,null,null,2890,"鹿児島興業信組"]
[null,null,null,null,2891,"鹿児島県医師信組"]
[null,null,null,null,2895,"奄美信組"]
[null,null,null,null,2950,"労働金庫連合会"]
[null,null,null,null,2951,"北海道労金"]
[null,null,null,null,2954,"東北労金"]
[null,null,null,null,2963,"中央労金"]
[null,null,null,null,2965,"新潟県労金"]
[null,null,null,null,2966,"長野県労金"]
[null,null,null,null,2968,"静岡県労金"]
[null,null,null,null,2970,"北陸労金"]
[null,null,null,null,2972,"東海労金"]
[null,null,null,null,2978,"近畿労金"]
[null,null,null,null,2984,"中国労金"]
[null,null,null,null,2987,"四国労金"]
[null,null,null,null,2990,"九州労金"]
[null,null,null,null,2997,"沖縄県労金"]
[null,null,null,null,3000,"農林中央金庫"]
[null,null,null,null,3001,"北海道信連"]
[null,null,null,null,3003,"岩手県信連"]
[null,null,null,null,3008,"茨城県信連"]
[null,null,null,null,3011,"埼玉県信連"]
[null,null,null,null,3013,"東京都信連"]
[null,null,null,null,3014,"神奈川県信連"]
[null,null,null,null,3015,"山梨県信連"]
[null,null,null,null,3016,"長野県信連"]
[null,null,null,null,3017,"新潟県信連"]
[null,null,null,null,3019,"石川県信連"]
[null,null,null,null,3020,"岐阜県信連"]
[null,null,null,null,3021,"静岡県信連"]
[null,null,null,null,3022,"愛知県信連"]
[null,null,null,null,3023,"三重県信連"]
[null,null,null,null,3024,"福井県信連"]
[null,null,null,null,3025,"滋賀県信連"]
[null,null,null,null,3026,"京都府信連"]
[null,null,null,null,3027,"大阪府信連"]
[null,null,null,null,3028,"兵庫県信連"]
[null,null,null,null,3030,"和歌山県信連"]
[null,null,null,null,3031,"鳥取県信連"]
[null,null,null,null,3034,"広島県信連"]
[null,null,null,null,3035,"山口県信連"]
[null,null,null,null,3036,"徳島県信連"]
[null,null,null,null,3037,"香川県信連"]
[null,null,null,null,3038,"愛媛県信連"]
[null,null,null,null,3039,"高知県信連"]
[null,null,null,null,3040,"福岡県信連"]
[null,null,null,null,3041,"佐賀県信連"]
[null,null,null,null,3044,"大分県信連"]
[null,null,null,null,3045,"宮崎県信連"]
[null,null,null,null,3046,"鹿児島県信連"]
[null,null,null,null,3058,"今金町農協"]
[null,null,null,null,3066,"函館市亀田農協"]
[null,null,null,null,3068,"新函館農協"]
[null,null,null,null,3086,"ようてい農協"]
[null,null,null,null,3087,"きょうわ農協"]
[null,null,null,null,3094,"新おたる農協"]
[null,null,null,null,3095,"余市町農協"]
[null,null,null,null,3103,"とうや湖農協"]
[null,null,null,null,3107,"伊達市農協"]
[null,null,null,null,3112,"とまこまい広域農協"]
[null,null,null,null,3114,"鵡川農協"]
[null,null,null,null,3120,"びらとり農協"]
[null,null,null,null,3122,"門別町農協"]
[null,null,null,null,3126,"みついし農協"]
[null,null,null,null,3133,"札幌市農協"]
[null,null,null,null,3139,"道央農協"]
[null,null,null,null,3142,"石狩市農協"]
[null,null,null,null,3145,"北石狩農協"]
[null,null,null,null,3147,"新篠津村農協"]
[null,null,null,null,3154,"サツラク農協"]
[null,null,null,null,3156,"いわみざわ農協"]
[null,null,null,null,3161,"南幌町農協"]
[null,null,null,null,3164,"美唄市農協"]
[null,null,null,null,3165,"峰延農協"]
[null,null,null,null,3168,"月形町農協"]
[null,null,null,null,3170,"ながぬま農協"]
[null,null,null,null,3172,"そらち南農協"]
[null,null,null,null,3173,"夕張市農協"]
[null,null,null,null,3175,"新砂川農協"]
[null,null,null,null,3177,"たきかわ農協"]
[null,null,null,null,3181,"ピンネ農協"]
[null,null,null,null,3188,"北いぶき農協"]
[null,null,null,null,3189,"きたそらち農協"]
[null,null,null,null,3202,"るもい農協"]
[null,null,null,null,3208,"幌延町農協"]
[null,null,null,null,3210,"あさひかわ農協"]
[null,null,null,null,3214,"たいせつ農協"]
[null,null,null,null,3219,"東神楽農協"]
[null,null,null,null,3220,"東旭川農協"]
[null,null,null,null,3223,"当麻農協"]
[null,null,null,null,3224,"比布町農協"]
[null,null,null,null,3225,"上川中央農協"]
[null,null,null,null,3227,"東川町農協"]
[null,null,null,null,3228,"美瑛町農協"]
[null,null,null,null,3231,"ふらの農協"]
[null,null,null,null,3238,"北ひびき農協"]
[null,null,null,null,3244,"道北なよろ農協"]
[null,null,null,null,3248,"北はるか農協"]
[null,null,null,null,3257,"北宗谷農協"]
[null,null,null,null,3259,"東宗谷農協"]
[null,null,null,null,3261,"宗谷南農協"]
[null,null,null,null,3264,"帯広市川西農協"]
[null,null,null,null,3265,"帯広大正農協"]
[null,null,null,null,3266,"中札内村農協"]
[null,null,null,null,3267,"更別村農協"]
[null,null,null,null,3268,"忠類農協"]
[null,null,null,null,3269,"大樹町農協"]
[null,null,null,null,3270,"広尾町農協"]
[null,null,null,null,3271,"芽室町農協"]
[null,null,null,null,3273,"十勝清水町農協"]
[null,null,null,null,3275,"新得町農協"]
[null,null,null,null,3276,"鹿追町農協"]
[null,null,null,null,3277,"木野農協"]
[null,null,null,null,3278,"音更町農協"]
[null,null,null,null,3279,"士幌町農協"]
[null,null,null,null,3280,"上士幌町農協"]
[null,null,null,null,3281,"札内農協"]
[null,null,null,null,3282,"幕別町農協"]
[null,null,null,null,3283,"十勝池田町農協"]
[null,null,null,null,3286,"豊頃町農協"]
[null,null,null,null,3287,"浦幌町農協"]
[null,null,null,null,3288,"本別町農協"]
[null,null,null,null,3289,"足寄町農協"]
[null,null,null,null,3290,"陸別町農協"]
[null,null,null,null,3297,"北オホーツク農協"]
[null,null,null,null,3301,"オホーツクはまなす農協"]
[null,null,null,null,3303,"佐呂間町農協"]
[null,null,null,null,3305,"湧別町農協"]
[null,null,null,null,3306,"えんゆう農協"]
[null,null,null,null,3317,"きたみらい農協"]
[null,null,null,null,3319,"津別町農協"]
[null,null,null,null,3320,"美幌町農協"]
[null,null,null,null,3321,"女満別町農協"]
[null,null,null,null,3322,"常呂町農協"]
[null,null,null,null,3326,"オホーツク網走農協"]
[null,null,null,null,3328,"小清水町農協"]
[null,null,null,null,3329,"しれとこ斜里農協"]
[null,null,null,null,3330,"清里町農協"]
[null,null,null,null,3334,"釧路太田農協"]
[null,null,null,null,3335,"浜中町農協"]
[null,null,null,null,3336,"標茶町農協"]
[null,null,null,null,3337,"摩周湖農協"]
[null,null,null,null,3338,"阿寒農協"]
[null,null,null,null,3339,"釧路丹頂農協"]
[null,null,null,null,3348,"標津町農協"]
[null,null,null,null,3349,"中標津町農協"]
[null,null,null,null,3350,"計根別農協"]
[null,null,null,null,3354,"道東あさひ農協"]
[null,null,null,null,3358,"中春別農協"]
[null,null,null,null,3373,"青森農協"]
[null,null,null,null,3387,"つがる弘前農協"]
[null,null,null,null,3390,"相馬村農協"]
[null,null,null,null,3407,"津軽みらい農協"]
[null,null,null,null,3421,"つがるにしきた農協"]
[null,null,null,null,3442,"ごしょつがる農協"]
[null,null,null,null,3455,"十和田おいらせ農協"]
[null,null,null,null,3469,"ゆうき青森農協"]
[null,null,null,null,3474,"おいらせ農協"]
[null,null,null,null,3488,"八戸農協"]
[null,null,null,null,3517,"新岩手農協"]
[null,null,null,null,3541,"岩手中央農協"]
[null,null,null,null,3553,"花巻農協"]
[null,null,null,null,3572,"岩手ふるさと農協"]
[null,null,null,null,3579,"岩手江刺農協"]
[null,null,null,null,3590,"いわて平泉農協"]
[null,null,null,null,3598,"大船渡市農協"]
[null,null,null,null,3636,"仙台農協"]
[null,null,null,null,3647,"岩沼市農協"]
[null,null,null,null,3652,"名取岩沼農協"]
[null,null,null,null,3653,"みやぎ亘理農協"]
[null,null,null,null,3665,"みやぎ登米農協"]
[null,null,null,null,3704,"古川農協"]
[null,null,null,null,3710,"加美よつば農協"]
[null,null,null,null,3721,"新みやぎ農協"]
[null,null,null,null,3731,"いしのまき農協"]
[null,null,null,null,3751,"みやぎ仙南農協"]
[null,null,null,null,3762,"かづの農協"]
[null,null,null,null,3764,"あきた北農協"]
[null,null,null,null,3771,"秋田たかのす農協"]
[null,null,null,null,3784,"あきた白神農協"]
[null,null,null,null,3795,"秋田やまもと農協"]
[null,null,null,null,3798,"あきた湖東農協"]
[null,null,null,null,3810,"秋田なまはげ農協"]
[null,null,null,null,3825,"秋田しんせい農協"]
[null,null,null,null,3855,"秋田おばこ農協"]
[null,null,null,null,3878,"秋田ふるさと農協"]
[null,null,null,null,3913,"こまち農協"]
[null,null,null,null,3917,"うご農協"]
[null,null,null,null,3929,"大潟村農協"]
[null,null,null,null,3931,"山形市農協"]
[null,null,null,null,3932,"山形農協"]
[null,null,null,null,3938,"天童市農協"]
[null,null,null,null,3943,"さがえ西村山農協"]
[null,null,null,null,3960,"みちのく村山農協"]
[null,null,null,null,3962,"東根市農協"]
[null,null,null,null,3971,"新庄市農協"]
[null,null,null,null,3973,"もがみ中央農協"]
[null,null,null,null,3987,"金山農協"]
[null,null,null,null,3989,"山形おきたま農協"]
[null,null,null,null,4000,"鶴岡市農協"]
[null,null,null,null,4013,"庄内たがわ農協"]
[null,null,null,null,4022,"余目町農協"]
[null,null,null,null,4027,"庄内みどり農協"]
[null,null,null,null,4036,"酒田市袖浦農協"]
[null,null,null,null,4047,"ふくしま未来農協"]
[null,null,null,null,4091,"夢みなみ農協"]
[null,null,null,null,4132,"東西しらかわ農協"]
[null,null,null,null,4160,"会津よつば農協"]
[null,null,null,null,4196,"福島さくら農協"]
[null,null,null,null,4238,"水戸農協"]
[null,null,null,null,4263,"常陸農協"]
[null,null,null,null,4294,"日立市多賀農協"]
[null,null,null,null,4295,"茨城旭村農協"]
[null,null,null,null,4296,"ほこた農協"]
[null,null,null,null,4301,"なめがたしおさい農協"]
[null,null,null,null,4322,"稲敷農協"]
[null,null,null,null,4344,"水郷つくば農協"]
[null,null,null,null,4363,"つくば市農協"]
[null,null,null,null,4371,"つくば市谷田部農協"]
[null,null,null,null,4378,"茨城みなみ農協"]
[null,null,null,null,4387,"やさと農協"]
[null,null,null,null,4394,"新ひたち野農協"]
[null,null,null,null,4397,"北つくば農協"]
[null,null,null,null,4413,"常総ひかり農協"]
[null,null,null,null,4422,"茨城むつみ農協"]
[null,null,null,null,4425,"岩井農協"]
[null,null,null,null,4445,"宇都宮農協"]
[null,null,null,null,4456,"上都賀農協"]
[null,null,null,null,4463,"はが野農協"]
[null,null,null,null,4478,"下野農協"]
[null,null,null,null,4490,"小山農協"]
[null,null,null,null,4497,"塩野谷農協"]
[null,null,null,null,4507,"那須野農協"]
[null,null,null,null,4518,"那須南農協"]
[null,null,null,null,4523,"佐野農協"]
[null,null,null,null,4533,"足利市農協"]
[null,null,null,null,4540,"赤城橘農協"]
[null,null,null,null,4544,"前橋市農協"]
[null,null,null,null,4563,"高崎市農協"]
[null,null,null,null,4567,"はぐくみ農協"]
[null,null,null,null,4593,"北群渋川農協"]
[null,null,null,null,4594,"多野藤岡農協"]
[null,null,null,null,4608,"甘楽富岡農協"]
[null,null,null,null,4613,"碓氷安中農協"]
[null,null,null,null,4626,"あがつま農協"]
[null,null,null,null,4628,"嬬恋村農協"]
[null,null,null,null,4632,"利根沼田農協"]
[null,null,null,null,4652,"佐波伊勢崎農協"]
[null,null,null,null,4664,"新田みどり農協"]
[null,null,null,null,4665,"太田市農協"]
[null,null,null,null,4677,"邑楽館林農協"]
[null,null,null,null,4682,"さいたま農協"]
[null,null,null,null,4730,"あさか野農協"]
[null,null,null,null,4735,"いるま野農協"]
[null,null,null,null,4780,"埼玉中央農協"]
[null,null,null,null,4792,"ちちぶ農協"]
[null,null,null,null,4802,"埼玉ひびきの農協"]
[null,null,null,null,4808,"くまがや農協"]
[null,null,null,null,4820,"埼玉岡部農協"]
[null,null,null,null,4823,"花園農協"]
[null,null,null,null,4828,"ほくさい農協"]
[null,null,null,null,4847,"越谷市農協"]
[null,null,null,null,4848,"南彩農協"]
[null,null,null,null,4859,"埼玉みずほ農協"]
[null,null,null,null,4864,"さいかつ農協"]
[null,null,null,null,4874,"ふかや農協"]
[null,null,null,null,4876,"安房農協"]
[null,null,null,null,4893,"いすみ農協"]
[null,null,null,null,4902,"木更津市農協"]
[null,null,null,null,4909,"君津市農協"]
[null,null,null,null,4916,"長生農協"]
[null,null,null,null,4929,"山武郡市農協"]
[null,null,null,null,4949,"市原市農協"]
[null,null,null,null,4954,"千葉みらい農協"]
[null,null,null,null,4955,"八千代市農協"]
[null,null,null,null,4959,"市川市農協"]
[null,null,null,null,4965,"とうかつ中央農協"]
[null,null,null,null,4975,"ちば東葛農協"]
[null,null,null,null,4992,"成田市農協"]
[null,null,null,null,4993,"富里市農協"]
[null,null,null,null,4996,"西印旛農協"]
[null,null,null,null,5000,"かとり農協"]
[null,null,null,null,5016,"ちばみどり農協"]
[null,null,null,null,5030,"西東京農協"]
[null,null,null,null,5037,"西多摩農協"]
[null,null,null,null,5039,"秋川農協"]
[null,null,null,null,5050,"八王子市農協"]
[null,null,null,null,5055,"東京南農協"]
[null,null,null,null,5060,"町田市農協"]
[null,null,null,null,5070,"マインズ農協"]
[null,null,null,null,5072,"東京みどり農協"]
[null,null,null,null,5077,"東京みらい農協"]
[null,null,null,null,5087,"東京むさし農協"]
[null,null,null,null,5094,"東京中央農協"]
[null,null,null,null,5095,"世田谷目黒農協"]
[null,null,null,null,5097,"東京あおば農協"]
[null,null,null,null,5100,"東京スマイル農協"]
[null,null,null,null,5114,"横浜農協"]
[null,null,null,null,5123,"セレサ川崎農協"]
[null,null,null,null,5128,"よこすか葉山農協"]
[null,null,null,null,5130,"三浦市農協"]
[null,null,null,null,5131,"さがみ農協"]
[null,null,null,null,5137,"湘南農協"]
[null,null,null,null,5140,"秦野市農協"]
[null,null,null,null,5147,"かながわ西湘農協"]
[null,null,null,null,5152,"厚木市農協"]
[null,null,null,null,5153,"県央愛川農協"]
[null,null,null,null,5159,"相模原市農協"]
[null,null,null,null,5162,"神奈川つくい農協"]
[null,null,null,null,5169,"フルーツ山梨農協"]
[null,null,null,null,5199,"笛吹農協"]
[null,null,null,null,5207,"山梨みらい農協"]
[null,null,null,null,5243,"南アルプス市農協"]
[null,null,null,null,5260,"梨北農協"]
[null,null,null,null,5272,"クレイン農協"]
[null,null,null,null,5284,"北富士農協"]
[null,null,null,null,5287,"鳴沢村農協"]
[null,null,null,null,5311,"長野八ヶ岳農協"]
[null,null,null,null,5335,"佐久浅間農協"]
[null,null,null,null,5348,"信州うえだ農協"]
[null,null,null,null,5372,"信州諏訪農協"]
[null,null,null,null,5384,"上伊那農協"]
[null,null,null,null,5405,"みなみ信州農協"]
[null,null,null,null,5441,"木曽農協"]
[null,null,null,null,5448,"松本ハイランド農協"]
[null,null,null,null,5462,"洗馬農協"]
[null,null,null,null,5466,"あづみ農協"]
[null,null,null,null,5470,"大北農協"]
[null,null,null,null,5477,"グリーン長野農協"]
[null,null,null,null,5491,"中野市農協"]
[null,null,null,null,5499,"ながの農協"]
[null,null,null,null,5554,"北越後農協"]
[null,null,null,null,5568,"胎内市農協"]
[null,null,null,null,5600,"新潟かがやき農協"]
[null,null,null,null,5666,"えちご中越農協"]
[null,null,null,null,5690,"越後おぢや農協"]
[null,null,null,null,5693,"北魚沼農協"]
[null,null,null,null,5707,"みなみ魚沼農協"]
[null,null,null,null,5714,"十日町農協"]
[null,null,null,null,5719,"津南町農協"]
[null,null,null,null,5768,"えちご上越農協"]
[null,null,null,null,5797,"ひすい農協"]
[null,null,null,null,5815,"かみはやし農協"]
[null,null,null,null,5823,"にいがた岩船農協"]
[null,null,null,null,5832,"佐渡農協"]
[null,null,null,null,5847,"羽茂農協"]
[null,null,null,null,5864,"新潟市農協"]
[null,null,null,null,5877,"みな穂農協"]
[null,null,null,null,5883,"黒部市農協"]
[null,null,null,null,5885,"魚津市農協"]
[null,null,null,null,5888,"アルプス農協"]
[null,null,null,null,5895,"あおば農協"]
[null,null,null,null,5897,"富山市農協"]
[null,null,null,null,5898,"なのはな農協"]
[null,null,null,null,5911,"いみず野農協"]
[null,null,null,null,5916,"高岡市農協"]
[null,null,null,null,5920,"氷見市農協"]
[null,null,null,null,5921,"となみ野農協"]
[null,null,null,null,5927,"なんと農協"]
[null,null,null,null,5932,"いなば農協"]
[null,null,null,null,5935,"福光農協"]
[null,null,null,null,5943,"加賀農協"]
[null,null,null,null,5962,"小松市農協"]
[null,null,null,null,5980,"根上農協"]
[null,null,null,null,5982,"能美農協"]
[null,null,null,null,5997,"松任市農協"]
[null,null,null,null,6010,"野々市農協"]
[null,null,null,null,6012,"白山農協"]
[null,null,null,null,6024,"金沢中央農協"]
[null,null,null,null,6025,"金沢市農協"]
[null,null,null,null,6062,"石川かほく農協"]
[null,null,null,null,6076,"はくい農協"]
[null,null,null,null,6084,"志賀農協"]
[null,null,null,null,6094,"能登わかば農協"]
[null,null,null,null,6113,"おおぞら農協"]
[null,null,null,null,6121,"内浦町農協"]
[null,null,null,null,6122,"珠洲市農協"]
[null,null,null,null,6129,"ぎふ農協"]
[null,null,null,null,6175,"西美濃農協"]
[null,null,null,null,6198,"いび川農協"]
[null,null,null,null,6242,"めぐみの農協"]
[null,null,null,null,6265,"陶都信用農協"]
[null,null,null,null,6287,"東美濃農協"]
[null,null,null,null,6313,"飛騨農協"]
[null,null,null,null,6345,"富士伊豆農協"]
[null,null,null,null,6363,"清水農協"]
[null,null,null,null,6373,"静岡市農協"]
[null,null,null,null,6377,"大井川農協"]
[null,null,null,null,6382,"ハイナン農協"]
[null,null,null,null,6386,"掛川市農協"]
[null,null,null,null,6387,"遠州夢咲農協"]
[null,null,null,null,6391,"遠州中央農協"]
[null,null,null,null,6403,"とぴあ浜松農協"]
[null,null,null,null,6423,"三ヶ日町農協"]
[null,null,null,null,6430,"なごや農協"]
[null,null,null,null,6436,"天白信用農協"]
[null,null,null,null,6443,"緑信用農協"]
[null,null,null,null,6451,"尾張中央農協"]
[null,null,null,null,6456,"西春日井農協"]
[null,null,null,null,6466,"あいち尾東農協"]
[null,null,null,null,6470,"愛知北農協"]
[null,null,null,null,6483,"愛知西農協"]
[null,null,null,null,6503,"海部東農協"]
[null,null,null,null,6514,"あいち海部農協"]
[null,null,null,null,6531,"あいち知多農協"]
[null,null,null,null,6552,"あいち中央農協"]
[null,null,null,null,6560,"西三河農協"]
[null,null,null,null,6572,"あいち三河農協"]
[null,null,null,null,6582,"あいち豊田農協"]
[null,null,null,null,6591,"愛知東農協"]
[null,null,null,null,6606,"蒲郡市農協"]
[null,null,null,null,6612,"ひまわり農協"]
[null,null,null,null,6615,"愛知みなみ農協"]
[null,null,null,null,6618,"豊橋農協"]
[null,null,null,null,6649,"三重北農協"]
[null,null,null,null,6665,"鈴鹿農協"]
[null,null,null,null,6673,"津安芸農協"]
[null,null,null,null,6677,"みえなか農協"]
[null,null,null,null,6697,"多気郡農協"]
[null,null,null,null,6731,"伊勢農協"]
[null,null,null,null,6758,"伊賀ふるさと農協"]
[null,null,null,null,6785,"福井県農協"]
[null,null,null,null,6853,"越前たけふ農協"]
[null,null,null,null,6874,"レーク滋賀農協"]
[null,null,null,null,6889,"甲賀農協"]
[null,null,null,null,6897,"グリーン近江農協"]
[null,null,null,null,6900,"滋賀蒲生町農協"]
[null,null,null,null,6909,"東能登川農協"]
[null,null,null,null,6911,"湖東農協"]
[null,null,null,null,6912,"東びわこ農協"]
[null,null,null,null,6919,"レーク伊吹農協"]
[null,null,null,null,6924,"北びわこ農協"]
[null,null,null,null,6941,"京都市農協"]
[null,null,null,null,6956,"京都中央農協"]
[null,null,null,null,6961,"京都やましろ農協"]
[null,null,null,null,6990,"京都農協"]
[null,null,null,null,6996,"京都丹の国農協"]
[null,null,null,null,7025,"北大阪農協"]
[null,null,null,null,7029,"高槻市農協"]
[null,null,null,null,7032,"茨木市農協"]
[null,null,null,null,7041,"大阪北部農協"]
[null,null,null,null,7087,"大阪泉州農協"]
[null,null,null,null,7092,"いずみの農協"]
[null,null,null,null,7111,"堺市農協"]
[null,null,null,null,7139,"大阪南農協"]
[null,null,null,null,7156,"グリーン大阪農協"]
[null,null,null,null,7164,"大阪中河内農協"]
[null,null,null,null,7184,"大阪東部農協"]
[null,null,null,null,7191,"九個荘農協"]
[null,null,null,null,7193,"北河内農協"]
[null,null,null,null,7200,"大阪市農協"]
[null,null,null,null,7213,"兵庫六甲農協"]
[null,null,null,null,7239,"あかし農協"]
[null,null,null,null,7240,"兵庫南農協"]
[null,null,null,null,7249,"みのり農協"]
[null,null,null,null,7264,"兵庫みらい農協"]
[null,null,null,null,7274,"加古川市南農協"]
[null,null,null,null,7288,"兵庫西農協"]
[null,null,null,null,7316,"相生市農協"]
[null,null,null,null,7326,"ハリマ農協"]
[null,null,null,null,7338,"たじま農協"]
[null,null,null,null,7353,"丹波ひかみ農協"]
[null,null,null,null,7362,"丹波ささやま農協"]
[null,null,null,null,7363,"淡路日の出農協"]
[null,null,null,null,7373,"あわじ島農協"]
[null,null,null,null,7387,"奈良県農協"]
[null,null,null,null,7532,"わかやま農協"]
[null,null,null,null,7541,"ながみね農協"]
[null,null,null,null,7543,"紀の里農協"]
[null,null,null,null,7550,"紀北川上農協"]
[null,null,null,null,7559,"ありだ農協"]
[null,null,null,null,7565,"紀州農協"]
[null,null,null,null,7576,"紀南農協"]
[null,null,null,null,7591,"みくまの農協"]
[null,null,null,null,7601,"鳥取いなば農協"]
[null,null,null,null,7625,"鳥取中央農協"]
[null,null,null,null,7641,"鳥取西部農協"]
[null,null,null,null,7708,"島根県農協"]
[null,null,null,null,7755,"岡山市農協"]
[null,null,null,null,7837,"晴れの国岡山農協"]
[null,null,null,null,7909,"広島市農協"]
[null,null,null,null,7913,"呉農協"]
[null,null,null,null,7916,"安芸農協"]
[null,null,null,null,7938,"佐伯中央農協"]
[null,null,null,null,7981,"広島北部農協"]
[null,null,null,null,7994,"広島中央農協"]
[null,null,null,null,8011,"芸南農協"]
[null,null,null,null,8019,"広島ゆたか農協"]
[null,null,null,null,8027,"三原農協"]
[null,null,null,null,8029,"尾道市農協"]
[null,null,null,null,8047,"福山市農協"]
[null,null,null,null,8069,"三次農協"]
[null,null,null,null,8076,"庄原農協"]
[null,null,null,null,8134,"山口県農協"]
[null,null,null,null,8231,"徳島市農協"]
[null,null,null,null,8234,"東とくしま農協"]
[null,null,null,null,8242,"名西郡農協"]
[null,null,null,null,8252,"板野郡農協"]
[null,null,null,null,8257,"徳島北農協"]
[null,null,null,null,8261,"大津松茂農協"]
[null,null,null,null,8263,"里浦農協"]
[null,null,null,null,8268,"阿南農協"]
[null,null,null,null,8288,"かいふ農協"]
[null,null,null,null,8296,"阿波市農協"]
[null,null,null,null,8305,"麻植郡農協"]
[null,null,null,null,8312,"美馬農協"]
[null,null,null,null,8323,"阿波みよし農協"]
[null,null,null,null,8332,"香川県農協"]
[null,null,null,null,8389,"うま農協"]
[null,null,null,null,8397,"えひめ未来農協"]
[null,null,null,null,8398,"周桑農協"]
[null,null,null,null,8400,"越智今治農協"]
[null,null,null,null,8401,"今治立花農協"]
[null,null,null,null,8425,"松山市農協"]
[null,null,null,null,8457,"愛媛たいき農協"]
[null,null,null,null,8463,"西宇和農協"]
[null,null,null,null,8477,"東宇和農協"]
[null,null,null,null,8482,"えひめ南農協"]
[null,null,null,null,8500,"えひめ中央農協"]
[null,null,null,null,8551,"高知市農協"]
[null,null,null,null,8582,"高知県農協"]
[null,null,null,null,8589,"土佐くろしお農協"]
[null,null,null,null,8621,"宗像農協"]
[null,null,null,null,8626,"粕屋農協"]
[null,null,null,null,8632,"福岡市東部農協"]
[null,null,null,null,8633,"福岡市農協"]
[null,null,null,null,8635,"糸島農協"]
[null,null,null,null,8636,"筑紫農協"]
[null,null,null,null,8645,"筑前あさくら農協"]
[null,null,null,null,8653,"にじ農協"]
[null,null,null,null,8656,"みい農協"]
[null,null,null,null,8660,"久留米市農協"]
[null,null,null,null,8664,"三潴町農協"]
[null,null,null,null,8667,"福岡大城農協"]
[null,null,null,null,8668,"福岡八女農協"]
[null,null,null,null,8680,"柳川農協"]
[null,null,null,null,8689,"南筑後農協"]
[null,null,null,null,8692,"北九州農協"]
[null,null,null,null,8694,"直鞍農協"]
[null,null,null,null,8701,"福岡嘉穂農協"]
[null,null,null,null,8715,"田川農協"]
[null,null,null,null,8730,"福岡京築農協"]
[null,null,null,null,8740,"佐賀市中央農協"]
[null,null,null,null,8762,"佐賀県農協"]
[null,null,null,null,8766,"唐津農協"]
[null,null,null,null,8771,"伊万里市農協"]
[null,null,null,null,8794,"長崎西彼農協"]
[null,null,null,null,8813,"長崎県央農協"]
[null,null,null,null,8829,"島原雲仙農協"]
[null,null,null,null,8857,"ながさき西海農協"]
[null,null,null,null,8893,"ごとう農協"]
[null,null,null,null,8905,"壱岐市農協"]
[null,null,null,null,8906,"対馬農協"]
[null,null,null,null,8916,"熊本市農協"]
[null,null,null,null,8926,"玉名農協"]
[null,null,null,null,8941,"鹿本農協"]
[null,null,null,null,8949,"菊池地域農協"]
[null,null,null,null,8964,"阿蘇農協"]
[null,null,null,null,8982,"上益城農協"]
[null,null,null,null,9010,"熊本宇城農協"]
[null,null,null,null,9017,"八代地域農協"]
[null,null,null,null,9043,"あしきた農協"]
[null,null,null,null,9048,"球磨地域農協"]
[null,null,null,null,9069,"本渡五和農協"]
[null,null,null,null,9070,"あまくさ農協"]
[null,null,null,null,9072,"苓北町農協"]
[null,null,null,null,9103,"べっぷ日出農協"]
[null,null,null,null,9104,"大分県農協"]
[null,null,null,null,9145,"大分大山町農協"]
[null,null,null,null,9169,"宮崎中央農協"]
[null,null,null,null,9177,"綾町農協"]
[null,null,null,null,9178,"はまゆう農協"]
[null,null,null,null,9181,"串間市大束農協"]
[null,null,null,null,9184,"都城農協"]
[null,null,null,null,9193,"こばやし農協"]
[null,null,null,null,9197,"えびの市農協"]
[null,null,null,null,9200,"児湯農協"]
[null,null,null,null,9203,"尾鈴農協"]
[null,null,null,null,9205,"西都農協"]
[null,null,null,null,9208,"延岡農協"]
[null,null,null,null,9213,"日向農協"]
[null,null,null,null,9221,"高千穂地区農協"]
[null,null,null,null,9229,"鹿児島みらい農協"]
[null,null,null,null,9251,"いぶすき農協"]
[null,null,null,null,9257,"南さつま農協"]
[null,null,null,null,9270,"さつま日置農協"]
[null,null,null,null,9296,"北さつま農協"]
[null,null,null,null,9302,"鹿児島いずみ農協"]
[null,null,null,null,9319,"あいら農協"]
[null,null,null,null,9332,"そお鹿児島農協"]
[null,null,null,null,9338,"あおぞら農協"]
[null,null,null,null,9341,"鹿児島きもつき農協"]
[null,null,null,null,9347,"肝付吾平町農協"]
[null,null,null,null,9353,"種子屋久農協"]
[null,null,null,null,9363,"あまみ農協"]
[null,null,null,null,9375,"沖縄県農協"]
[null,null,null,null,9450,"北海道信漁連"]
[null,null,null,null,9453,"宮城県漁協"]
[null,null,null,null,9456,"福島県信漁連"]
[null,null,null,null,9461,"東日本信漁連"]
[null,null,null,null,9475,"京都府信漁連"]
[null,null,null,null,9477,"なぎさ信漁連"]
[null,null,null,null,9481,"ＪＦしまね漁協"]
[null,null,null,null,9483,"広島県信漁連"]
[null,null,null,null,9484,"山口県漁協"]
[null,null,null,null,9485,"徳島県信漁連"]
[null,null,null,null,9486,"西日本信漁連"]
[null,null,null,null,9487,"愛媛県信漁連"]
[null,null,null,null,9489,"九州信漁連"]
[null,null,null,null,9493,"大分県漁協"]
[null,null,null,null,9900,"ゆうちょ"]

{"sheet":"第1様式_A","index":5,"n_rows":40,"n_cols":37,"rows_kept":40,"cut":false,"hidden":true,"merged":[[19,18,19,22],[19,23,19,33],[1,0,1,29],[3,27,3,32],[5,26,5,27],[17,18,17,22],[17,23,17,33],[37,0,37,33],[39,0,39,33],[25,0,25,33],[27,0,27,33],[29,0,29,33],[34,18,34,22],[35,0,35,19],[35,20,35,22],[35,23,35,33]]}
[null,null,null,null,null,null,null,null,null,null,null,null,null,null,null,null,null,null,null,null,null,null,null,null,null,null,null,null,null,null,null,null,null,null,null,"行１のみ高さ13.5"]
["様式第１Ａ（日本産業規格Ａ列４番）",null,null,null,null,null,null,null,null,null,null,null,null,null,null,null,null,null,null,null,null,null,null,null,null,null,null,null,null,null,null,null,null,null,null,"文字または改行は12.75"]
[]
[null,null,null,null,null,null,null,null,null,null,null,null,null,null,null,null,null,null,null,null,null,null,null,null,null,null,"第",{"$f":"レンタカー!F3","v":0},null,null,null,null,null,"号",null,"間隔は7","列だけ調整して"]
[]
[null,null,null,null,null,null,null,null,null,null,null,null,null,null,null,null,null,null,null,null,null,null,null,null,null,null,"令和",null,6,"年",6,"月",10,"日"]
[]
[]
[]
[]
["    "]
["パシフィックコンサルタンツ株式会社"]
[]
["首都圏本社　本社長　殿"]
[]
[]
[]
[null,null,null,null,null,null,null,null,null,null,null,null,null,null,null,null,null,null," 住　　　　所",null,null,null,null,{"$f":"IF(レンタカー!Q4=\"\",\"\",レンタカー!Q4)","v":""}]
[]
[null,null,null,null,null,null,null,null,null,null,null,null,null,null,null,null,null,null," 氏名又は名称",null,null,null,null,{"$f":"IF(レンタカー!F4=\"\",\"\",レンタカー!F4)","v":""}]
[]
[]
[]
[]
[]
["令和５年度　「交通DX・GXによる経営改善支援事業等」"]
[]
["交付申請書"]
[]
[]
[]
[]
[]
[]
[]
["　 令和５年度「交通DX・GXによる経営改善支援事業等」金",null,null,null,null,null,null,null,null,null,null,null,null,null,null,null,null,null,null,null,{"$f":"集計用!AD7","v":0},null,null,"千円を交付されるよう、"]
[]
[" 補助金等に係る予算の執行の適正化に関する法律（昭和３０年法律第 １７９号）第５条及び"]
[]
[" 交付規程第７条の規定により、別紙様式第１のとおり申請します。　　　　"]

{"sheet":"第1様式_B","index":6,"n_rows":40,"n_cols":37,"rows_kept":40,"cut":false,"hidden":true,"merged":[[19,18,19,22],[19,23,19,33],[1,0,1,29],[3,27,3,32],[5,26,5,27],[17,18,17,22],[17,23,17,33],[39,0,39,33],[25,0,25,33],[27,0,27,33],[29,0,29,33],[34,18,34,22],[35,21,35,23],[37,0,37,33]]}
[null,null,null,null,null,null,null,null,null,null,null,null,null,null,null,null,null,null,null,null,null,null,null,null,null,null,null,null,null,null,null,null,null,null,null,"行１のみ高さ13.5"]
["様式第１Ｂ（日本産業規格Ａ列４番）",null,null,null,null,null,null,null,null,null,null,null,null,null,null,null,null,null,null,null,null,null,null,null,null,null,null,null,null,null,null,null,null,null,null,"文字または改行は12.75"]
[]
[null,null,null,null,null,null,null,null,null,null,null,null,null,null,null,null,null,null,null,null,null,null,null,null,null,null,"第",{"$f":"レンタカー!F3","v":0},null,null,null,null,null,"号",null,"間隔は7","列だけ調整して"]
[]
[null,null,null,null,null,null,null,null,null,null,null,null,null,null,null,null,null,null,null,null,null,null,null,null,null,null,"令和",null,6,"年",6,"月",10,"日"]
[]
[]
[]
[]
["    "]
["パシフィックコンサルタンツ株式会社"]
[]
["首都圏本社　本社長　殿"]
[]
[]
[]
[null,null,null,null,null,null,null,null,null,null,null,null,null,null,null,null,null,null," 住　　　　所",null,null,null,null,{"$f":"IF(レンタカー!Q4=\"\",\"\",レンタカー!Q4)","v":""}]
[]
[null,null,null,null,null,null,null,null,null,null,null,null,null,null,null,null,null,null," 氏名又は名称",null,null,null,null,{"$f":"IF(レンタカー!F4=\"\",\"\",レンタカー!F4)","v":""}]
[]
[]
[]
[]
[]
["令和５年度　「交通サービスインバウンド対応支援事業」"]
[]
["交付申請書"]
[]
[]
[]
[]
[]
[]
[]
["　令和５年度「交通サービスインバウンド対応支援事業」金",null,null,null,null,null,null,null,null,null,null,null,null,null,null,null,null,null,null,null,null,{"$f":"集計用!AE7","v":0},null,null,"千円を交付されるよう、"]
[]
["補助金等に係る予算の執行の適正化に関する法律（昭和 30 年法律第 179号）第５条及び交付規程"]
[]
["第７条の規定により、別紙様式第１のとおり申請します。　　　　"]

{"sheet":"レンタ","index":7,"n_rows":162,"n_cols":28,"rows_kept":162,"cut":false,"hidden":true,"merged":[[161,2,161,25],[153,2,153,25],[156,1,156,3],[156,4,156,7],[157,2,157,25],[160,1,160,3],[160,4,160,7],[145,2,145,25],[148,1,148,3],[148,4,148,7],[149,2,149,25],[152,1,152,3],[152,4,152,7],[137,2,137,25],[140,1,140,3],[140,4,140,7],[141,2,141,25],[144,1,144,3],[144,4,144,7],[129,2,129,25],[132,1,132,3],[132,4,132,7],[133,2,133,25],[136,1,136,3],[136,4,136,7],[125,1,125,7],[125,8,125,11],[125,12,125,14],[125,15,125,18],[127,1,127,7],[127,8,127,25],[118,1,118,25],[121,1,121,5],[121,6,121,9],[121,10,121,14],[121,15,121,25],[122,2,122,25],[117,19,117,22],[117,23,117,24],[90,13,90,16],[90,17,90,18],[90,19,90,22],[90,23,90,24],[117,1,117,4],[117,5,117,6],[117,7,117,10],[117,11,117,12],[117,13,117,16],[117,17,117,18],[105,1,105,24],[107,1,107,24],[113,1,113,4],[113,5,113,6],[113,7,113,10],[113,11,113,13],[113,14,113,15],[113,16,113,18],[113,19,113,20],[101,20,101,22],[101,23,101,24],[103,1,103,4],[103,5,103,6],[103,8,103,10],[103,11,103,12],[103,14,103,16],[103,17,103,18],[103,20,103,22],[103,23,103,24],[101,1,101,4],[101,5,101,6],[101,8,101,10],[101,11,101,12],[101,14,101,16],[101,17,101,18],[96,1,96,4],[96,5,96,6],[96,7,96,10],[96,11,96,12],[96,13,96,16],[96,17,96,18],[96,19,96,22],[96,23,96,24],[99,1,99,4],[99,5,99,6],[99,8,99,10],[99,11,99,12],[99,14,99,16],[99,17,99,18],[99,20,99,22],[99,23,99,24],[86,2,86,25],[90,1,90,4],[90,5,90,6],[90,7,90,10],[90,11,90,12],[92,1,92,4],[92,5,92,6],[92,7,92,10],[92,11,92,12],[92,13,92,16],[92,17,92,18],[92,19,92,22],[92,23,92,24],[83,19,83,22],[83,23,83,24],[85,1,85,7],[85,8,85,9],[85,10,85,16],[85,17,85,18],[85,19,85,22],[85,23,85,24],[78,17,78,18],[78,19,78,20],[78,21,78,22],[79,5,79,26],[83,1,83,4],[83,5,83,6],[83,7,83,10],[83,11,83,12],[83,13,83,16],[83,17,83,18],[78,1,78,6],[78,7,78,8],[78,9,78,10],[78,11,78,12],[78,13,78,14],[78,15,78,16],[72,2,72,25],[74,1,74,6],[74,7,74,9],[74,10,74,11],[74,12,74,14],[74,15,74,16],[74,17,74,19],[74,20,74,21],[67,19,67,22],[67,23,67,24],[69,1,69,4],[69,5,69,6],[69,7,69,24],[71,2,71,24],[65,1,65,4],[65,5,65,6],[65,7,65,24],[66,2,66,24],[67,1,67,4],[67,5,67,6],[67,7,67,10],[67,11,67,12],[67,13,67,16],[67,17,67,18],[60,1,60,4],[60,5,60,6],[60,7,60,24],[63,1,63,4],[63,5,63,6],[63,7,63,10],[63,11,63,12],[57,2,57,24],[58,1,58,4],[58,5,58,6],[58,7,58,10],[58,11,58,12],[58,13,58,16],[58,17,58,18],[58,19,58,22],[58,23,58,24],[53,1,53,4],[53,5,53,6],[53,7,53,24],[54,2,54,24],[55,2,55,24],[56,2,56,24],[49,23,49,24],[51,1,51,4],[51,5,51,6],[51,7,51,10],[51,11,51,12],[51,13,51,16],[51,17,51,18],[51,19,51,22],[51,23,51,24],[44,1,44,23],[45,1,45,25],[47,2,47,25],[49,1,49,4],[49,5,49,6],[49,7,49,10],[49,11,49,12],[49,13,49,16],[49,17,49,18],[49,19,49,22],[41,2,41,25],[38,2,38,25],[39,1,39,25],[40,1,40,3],[40,4,40,5],[40,6,40,8],[40,9,40,10],[40,11,40,13],[40,14,40,15],[35,21,35,25],[37,1,37,3],[37,4,37,6],[37,7,37,10],[37,11,37,13],[37,14,37,17],[37,18,37,20],[37,21,37,25],[35,1,35,3],[35,4,35,6],[35,7,35,10],[35,11,35,13],[35,14,35,17],[35,18,35,20],[31,21,31,25],[33,1,33,3],[33,4,33,6],[33,7,33,10],[33,11,33,13],[33,14,33,17],[33,18,33,20],[33,21,33,25],[31,1,31,3],[31,4,31,6],[31,7,31,10],[31,11,31,13],[31,14,31,17],[31,18,31,20],[0,0,0,26],[19,0,19,26],[21,1,21,23],[23,1,23,3],[23,4,23,13],[23,14,23,16],[23,17,23,25],[28,1,28,25],[29,1,29,3],[29,4,29,6],[29,7,29,10],[29,11,29,13],[29,14,29,17],[29,18,29,20],[29,21,29,25],[25,1,25,3],[25,4,25,6],[25,7,25,13],[25,14,25,16],[25,17,25,25],[27,1,27,23]]}
["令和元年度　レンタカー関係補助事業にかかる要望調査　回答票",null,null,null,null,null,null,null,null,null,null,null,null,null,null,null,null,null,null,null,null,null,null,null,null,null,null,"○"]
[]
[]
[]
[]
[]
[]
[]
[]
[]
[]
[]
[]
[]
[]
[]
[]
[]
[]
[" 上記をお読みいただけましたら、下記設問の回答にお進みください。"]
[]
["1．","ご回答様に関して"]
[]
[null,"会社名",null,null,null,null,null,null,null,null,null,null,null,null,"ご担当者名"]
[]
[null,"ご連絡先",null,null,"電話番号",null,null,null,null,null,null,null,null,null,"ＭＡＩＬアドレス"]
[]
["2．","補助事業の計画等に関して"]
[null,"Ｑ１．事業の実施を計画している都道府県、市町村名(事業実施路線が観光庁長官が国際観光振興法に\n      基づき指定した区間※に該当する場合は、そちらについてもお答えください（複数回答可）)。"]
[null,"実施地域①",null,null,"都道府県名",null,null,null,null,null,null,"市町村名",null,null,null,null,null,null,"指定区間名"]
[]
[null,"実施地域②",null,null,"都道府県名",null,null,null,null,null,null,"市町村名",null,null,null,null,null,null,"指定区間名"]
[]
[null,"実施地域③",null,null,"都道府県名",null,null,null,null,null,null,"市町村名",null,null,null,null,null,null,"指定区間名"]
[]
[null,"実施地域④",null,null,"都道府県名",null,null,null,null,null,null,"市町村名",null,null,null,null,null,null,"指定区間名"]
[]
[null,"実施地域⑤",null,null,"都道府県名",null,null,null,null,null,null,"市町村名",null,null,null,null,null,null,"指定区間名"]
[null,null,"※国際観光振興法（外国人観光旅客の来訪の促進等による国際観光の振興に関する法律）により、 観光庁長官は外国人観光旅客の利便の増進を図ることが特に必要であると認めるときは、多数の外国人観光旅客が利用する区間又は外国人観光旅客の利用の増加が見込まれる区間を「外国人観光旅客利便増進措置を講ずべき区間」として指定することができます。\n（国際観光振興法第８条）"]
[null,"Ｑ２．「公共交通利用環境刷新計画※」の提出状況をお答えください。該当する回答の回答欄に「○」をしてください。"]
[null,"提出済",null,null,null,null,"未提出",null,null,null,null,"提出予定なし"]
[null,null,"※訪日外国人旅行者のニーズが特に高い取り組みを一体的に進める事業で、重点的に国の支援を受ける（補助率１／２～）場合は、「観光振興事業費補助金交付要綱」第２６条に定める「公共交通利用環境刷新計画計画」を地方運輸局長、神戸運輸管理部長又は沖縄総合事務局長を通じて観光庁に提出の上、認定を受ける必要があります。"]
[]
[]
["3．","補助事業に関して"]
[null,"Ｑ４．今回補助制度を活用の上導入されたい対象物に関してご回答ください。\n　　　　（詳細については別添調査票にご記入ください。）"]
[null,"① 多言語、無料Ｗｉ-Ｆｉ、キャッシュレス関係"]
[null,"１）","（多言語）　"]
[null,"・","表示の多言語化　導入を予定しているものに全て「◎」を、導入済みのものに全て「○」を記入してください。"]
[null,"各種サイン※",null,null,null,null,null,"サイネージ等",null,null,null,null,null,"ＨＰ表示の多言語化※",null,null,null,null,null,"ＨＰ予約システムのクレジットカード等決済"]
[]
[null,"多言語アプリ入り\nタブレット※",null,null,null,null,null,"翻訳機器\n（ポケトーク等）",null,null,null,null,null,"ナンバリング",null,null,null,null,null,"ピクトグラム"]
[]
[null,"その他",null,null,null,null,null,"（具体的に）"]
[null,null,"※多言語化の対象となるサインは次の通りです。誘導サイン類（施設内の方向を指示するのに必要なサイン）、位置サイン類（施設等の位置を告知するのに必要なサイン）、\n　 案内サイン類（乗降条件や位置関係を案内するのに必要なサイン）、規制サイン類（利用者の行動を規制するのに必要なサイン）"]
[null,null,"※ＨＰはパソコン又は携帯電話、スマートフォン等から利用できるもので、経路検索又は予約システムを多言語で提供するものが\n　補助の対象となります。予約システムをＨＰで提供する場合は、クレジットカード等により決済できるものが望ましいとされています。"]
[null,null,"※多言語案内・翻訳用タブレット端末においては、多言語案内・翻訳アブリをインストールすることを条件とし、導入後は利用状況を把握する。路線図、時刻表等訪日外国人旅行者の\n   移動円滑化に資する多言語情報をインストールすることとされています。"]
[null,null,"多言語化対象言語　多言語化を予定している言語に全て「◎」を、多言語化済みのものに全て「○」を記入してください。"]
[null,"英語",null,null,null,null,null,"韓国語",null,null,null,null,null,"中国語（簡体字）",null,null,null,null,null,"中国語（繁体字）"]
[]
[null,"その他",null,null,null,null,null,"（具体的に）"]
[]
[null,"・","案内放送の多言語化　導入を予定しているものに全て「◎」をしてください。"]
[null,"案内放送(音声)",null,null,null,null,null,"スマホへのプッシュ式案内"]
[]
[null,"その他",null,null,null,null,null,"（具体的に）"]
[null,null,"多言語化対象言語　多言語化を予定している言語に全て「◎」を、多言語化済みのものに全て「○」を記入してください。"]
[null,"英語",null,null,null,null,null,"韓国語",null,null,null,null,null,"中国語（北京語）",null,null,null,null,null,"中国語（広東語）"]
[]
[null,"その他",null,null,null,null,null,"（具体的に）"]
[]
[null,null,"※多言語化の対象となるサインは次の通りです。誘導サイン類（施設内の方向を指示するのに必要なサイン）、位置サイン類（施設等の位置を告知するのに必要なサイン）、\n　 案内サイン類（乗降条件や位置関係を案内するのに必要なサイン）、規制サイン類（利用者の行動を規制するのに必要なサイン）"]
[null,"２）","（無料Ｗｉ-Ｆｉ）　導入にあたり、共通シンボルマーク（※Japan.Free　Wi-Fi）の申請状況で該当するものに「○」をしてください。"]
[]
[null,"共通シンボルマークの申請",null,null,null,null,null,"申請済",null,null,null,null,"申請予定",null,null,null,null,"申請予定なし"]
[]
[null,null,"　　　　　　　　　　　　採用予定の認証方法について以下のうち該当する方式に「○」をしてください。　　　　　　　　　　　　　"]
[]
[null,"採用予定認証方式",null,null,null,null,null,"①",null,null,null,"②＆③",null,null,null,"②ｏｒ③",null,null,null,"採用なし"]
[null,null,null,null,null,"＜採用予定認証方法（総務省推奨方式）＞ ① ＳＭＳ・電話番号を利用した方式、\n                                                              ② ＳＮＳアカウントを利用した方式、\n                                                              ③ 利用していることの確認を含めたメール認証方式"]
[null,"３）","（キャッシュレス）　"]
[null,null,"交通系ＩＣカード　導入を予定している対象に全て「○」をしてください。"]
[]
[null,"新規導入",null,null,null,null,null,"サービス提供区域の\n拡大",null,null,null,null,null,"サービス提供路線の\n拡大",null,null,null,null,null,"サービス提供車両の\n拡大"]
[]
[null,"バス車両内において次停留所に関する情報提供を実施済み又は実施予定",null,null,null,null,null,null,null,null,"旅客施設において施設名を多言語化",null,null,null,null,null,null,null,null,"１０カード導入"]
[null,null,"※１０カードとは、KＩｔａｃａ、Ｓｕｉｃａ、PASMO、ＴＯＩＣＡ、ｍａｎａｃａ、ＩCOCA、PiTaPa、SUGOCA、はやかけん、ｎｉｍｏｃａの全国主要エリアで利用可能な１０種類のカードを指します。"]
[]
[null,null,"クレジットカード、ＱＲコード、ＥＴＣカード　導入を予定している対象に全て「○」をしてください。"]
[]
[null,"クレジットカード",null,null,null,null,null,"ＱＲコード",null,null,null,null,null,"ＥＴＣカード",null,null,null,null,null,"ＥＴＣカード精算機\n（店舗用）"]
[]
[null,"新規導入",null,null,null,null,null,"サービス提供区域の\n拡大",null,null,null,null,null,"サービス提供路線の\n拡大",null,null,null,null,null,"サービス提供車両の\n拡大"]
[]
[null,null,"ＩＣ企画乗車券、企画乗船券　導入を予定しているものに全て「○」をしてください。"]
[]
[null,"ＩＣ企画乗車券",null,null,null,null,null,"企画乗船券造成",null,null,null,null,null,"利用状況確認方法想定済み",null,null,null,null,null,"利用状況確認方法未想定"]
[]
[null,"②車両"]
[null,"UDタクシー",null,null,null,null,null,"両","うち下記①に該当するもの",null,null,null,null,"両","うち下記②に該当するもの",null,null,null,null,"両","うち下記③に該当するもの",null,null,null,null,"両"]
[]
[null,"ジャンボタクシー",null,null,null,null,null,"両","うち下記①に該当するもの",null,null,null,null,"両","うち下記②に該当するもの",null,null,null,null,"両","うち下記③に該当するもの",null,null,null,null,"両"]
[]
[null,"その他",null,null,null,null,null,"両","うち下記①に該当するもの",null,null,null,null,"両","うち下記②に該当するもの",null,null,null,null,"両","うち下記③に該当するもの",null,null,null,null,"両"]
[]
[null,"（その他を具体的に）"]
[]
[null,"①　車両の導入と合わせ多言語、無料Ｗｉ-Ｆｉ、キャッシュレスを新規に全て導入。\n②　既に多言語、無料Ｗｉ-Ｆｉ、キャッシュレスを導入済みで今回車両の導入と合わせ、残りを全て導入。\n③　上記以外で、空港アクセス・観光周遊の乗合バス、として導入。"]
[]
[null,"③その他"]
[]
[null,"１）","（情報端末への電源供給機器、非常用電源装置［蓄電池システム、発電機］）　"]
[null,null,"該当する項目に全て「○」をしてください。"]
[null,"電源供給機器",null,null,null,null,null,"非常用電源装置",null,null,null,"蓄電池",null,null,null,null,"発電機"]
[]
[null,"２）","（外国語研修）　"]
[null,null,"該当する項目に全て「○」をしてください。"]
[null,"多言語研修",null,null,null,null,null,"接遇研修",null,null,null,null,null,"災害応対訓練研修",null,null,null,null,null,"外部講師の招聘"]
[null,"Ｑ４．事業計画と国交省観光施策の調和について　該当する内容を記入してください。"]
[]
[null,"・","広域観光周遊観光促進のための観光地支援事業※　"]
[null,"該当する地方ブロック名",null,null,null,null,null,null,null,null,"関係する取組み"]
[null,null,"※訪日外国人旅行者等の各地域への周遊を促進するため、ＤＭＯが中心となって行う、調査・戦略策定からそれに基づく滞在コンテンツの充実、　 広域周遊観光促進のための環境整備、情報発信・プロモーションといった、地域の関係者が広域的に連携して観光客の来訪・滞在促進を図る取組みに対して総合的な支援を行う事業。"]
[]
[null,"・","観光圏の整備※　"]
[null,"事業実施地域が該当する観光圏名",null,null,null,null,null,null,null,null,null,null,"市町村名"]
[]
[null,"活用した特例措置"]
[]
[null,null,"※「観光圏の整備による観光旅客の来訪及び滞在の促進に関する法律」（観光圏整備法）に基づき、各種法律の特例などにより「観光圏」の形成を支援し、国際競争力の高い魅力ある観光\n　 地域づくりを推進するもの（http://www.mlit.go.jp/common/001087871.pdf）。"]
[]
[null,"・","カテゴリーⅡ以上のＪＮＴＯ認定外国人観光案内所※が立地する地域"]
[null,"市町村名"]
[null,null,"※観光庁が定めた「外国人観光案内所の設置・運営のあり方指針（平成24年1月制定、平成30年4月改定）」に基づき、日本政府観光局（ＪＮＴＯ）が認定する外国人案内所\n　カテゴリー２は、少なくとも英語で対応可能なスタッフが常駐し、広域の案内を提供できるレベル。（https://www.jnto.go.jp/jpn/projects/visitor_support/tic_nintei.html）"]
[]
[null,"・","広域観光周遊ルート形成計画の広域観光拠点地区※"]
[null,"市町村名"]
[null,null,"※「広域観光周遊ルート形成計画」テーマ性・ストーリー性を有する魅力ある観光地域をネットワーク化し、訪日外国人旅行者の滞在日数に合わせた広域観光周遊ルートを形成する「広域観光周遊ルート形成促進事業」を実施するため、訪日外国人旅行者の周遊の促進を総合的かつ一体的に図るための計画。\n※「広域観光拠点地区」コンセプトに即した国際競争力のある観光資源を有し、本事業に重点的に取り組み、訪日外国人旅行者の集客の核となる地域"]
[]
[null,"・","「文化財を活かした観光戦略推進プラン」※に基づき文化財を中核とする観光拠点の整備に取り組む地域"]
[null,"市町村名"]
[null,null,"※文化財を中核とする観光拠点の整備や、当該拠点等において実施される文化財等の観光資源としての魅力を向上させる取組への支援を充実させるもの。\n　 直前に迫る2020年の観光立国の実現に向けて、「文化財活用・理解促進戦略プログラム2020」に基づく１０事業を実施することとしている。(http://wwwtb.mlit.go.jp/kinki/content/000093570.pdf)"]
[]
[null,"・","「国立公園満喫プロジェクト」の先導モデルとして選定され、「国立公園ステップアッププログラム２０２０」の策定に取り組む地域"]
[null,"市町村名"]
[null,null,"※2020年を目標にインバウンド対応の取組を計画的・集中的に実施し、日本の国立公園を世界の旅行者が長期滞在したいと憧れる旅行目的地にしようとするもの。\n　阿寒摩周国立公園、十和田八幡平国立公園、日光国立公園、伊勢志摩国立公園、大山隠岐国立公園、阿蘇くじゅう国立公園、霧島錦江湾国立公園、慶良間諸島国立公園の8か所の国立公園で「国立公園ステップアッププログラム2020」を策定（http://www.env.go.jp/nature/mankitsu-project/）。"]
[]
[null,"・","観光立国ショーケース※選定都市"]
[null,"市町村名"]
[null,null,"※観光立国ショーケースは、「日本再興戦略　改訂2015」（平成27年6月30日閣議決定）に基づき、多くの外国人旅行者に選ばれる、観光立国を体現する観光地域を作り、訪日外国人旅行者を地方へ誘客するモデルケースを形成しようとするもの（http://www.mlit.go.jp/common/001190393.pdf）。現在釧路市、金沢市、長崎市の３都市が選定都市とされている。"]
[]
[null,"・","東京オリンピック・パラリンピック競技会場立地都市"]
[null,"市町村名"]
[null,null,"※https://tokyo2020.org/jp/games/venue/olympic/"]
[]
[null,"・","ラグビーワールドカップ競技会場立地都市"]
[null,"市町村名"]
[null,null,"※https://www.rugbyworldcup.com/venues?lang=ja"]
[]
[null,"・","その他観光ビジョン推進地方ブロック戦略会議が訪日外国人旅行者の受入環境整備を実施すべきと認めたもの"]
[null,"市町村名"]
[null,null,"※地域における事業団体・地方自治体・関係する国の機関等からなる「観光ビジョン推進地方ブロック戦略会議」において、各地域における訪日外国人の受入環境に関する現状と課題、推進すべき観光施策等を検討することとしており、その過程で、訪日外国人旅行者受入環境整備緊急対策事業における補助事業の採択に当たり、訪日外国人旅行者への効果が高いものを優先的に採択している（https://www.gyoukaku.go.jp/review/aki/H30/img/s9.pdf）。"]